Workbook

Sheet Input
B2: TMTOOL INPUT SHEET
B3: Project Description:
B5: SECTION NO: | D5: 88000000 | I5: PREPARED BY:
B6: FM NO.: | D6: 123456-1 | I6: FILE: | K6: Version 1
B7: PROJECT LIMITS: | D7: from MP 1.200 to MP 3.200 | I7: DATE: | K7: 2015-01-12
B8: DESIGN YEAR: | D8: 2040 | I8: MID-DAY PEAK HOUR: | K8: Included
B9: INTERSECTION: | D9: Green Road and Red Boulevard
C11: NOTES:
B18: Historical AADTs:
E19: NORTH LEG | G19: EAST LEG | I19: SOUTH LEG | K19: WEST LEG
D20: YEAR | E20: AADT | G20: AADT | I20: AADT | K20: AADT
C22: Actual AADT: | D22: 2011 | E22: 20000 | G22: 20000 | I22: 20000 | K22: 20000
C23: Actual AADT: | D23: 2012 | E23: 21000 | G23: 21000 | I23: 21000 | K23: 21000
C24: Actual AADT: | D24: 2013 | E24: 22000 | G24: 22000 | I24: 22000 | K24: 22000
C25: Actual AADT: | D25: 2014 | E25: 23000 | G25: 23000 | I25: 23000 | K25: 23000
B26: Model Volume: | D26: 2035
B28: Growth Rates:
E29: NORTH LEG | G29: EAST LEG | I29: SOUTH LEG | K29: WEST LEG
B31: Historic Trend GR = | E31: 0.03 | F31: CGR | G31: 0.03 | H31: CGR | I31: 0.03 | J31: CGR | K31: 0.03 | L31: CGR
B32: Historic + Model Trend GR = | E32: 0.02 | F32: CGR | G32: 0.02 | H32: CGR | I32: 0.02 | J32: CGR | K32: 0.02 | L32: CGR
B33: Base Year Model to Future Year Model GR = | E33: 0.01 | F33: CGR | G33: 0.01 | H33: CGR | I33: 0.01 | J33: CGR | K33: 0.01 | L33: CGR
D34: Recommended Growth Rate: | E34: 0.01 | F34: CGR | G34: 0.01 | H34: CGR | I34: 0.01 | J34: CGR | K34: 0.01 | L34: CGR
B36: Choose Methodology for Calculating Growth Factor on Each Leg (Input 1, 2 or 3)
C37: 1 = Compound Growth Throughout All Years | F37: 1 | H37: 1 | J37: 1 | L37: 1
C38: 2 = Linear Growth Throughout All Years
C39: 3 = Blend of Compound Growth First Ten Years, Linear Growth Thereafter (Based Upon the Base Year AADT)
D41: YEAR | E41: FACTOR | F41: AADT | G41: FACTOR | H41: AADT | I41: FACTOR | J41: AADT | K41: FACTOR | L41: AADT
D43: 2014 | F43: 23000 | H43: 23000 | J43: 23000 | L43: 23000
B44: NO. YEARS | C44: =D44-D$43 -> 6 | D44: 2020 | E44: =IF((F$37=1),((1+E$34)^$C44),IF((F$37=2),((E$34*$C44)+1),IF((F$37=3),((1+E$34)^$C44),(ERR)))) -> 1.061520151 | F44: =ROUND($F$43*E44,-2) -> 24400 | G44: =IF((H$37=1),((1+G$34)^$C44),IF((H$37=2),((G$34*$C44)+1),IF((H$37=3),((1+G$34)^$C44),(ERR)))) -> 1.061520151 | H44: =ROUND($H$43*G44,-2) -> 24400 | I44: =IF((J$37=1),((1+I$34)^$C44),IF((J$37=2),((I$34*$C44)+1),IF((J$37=3),((1+I$34)^$C44),(ERR)))) -> 1.061520151 | J44: =ROUND($J$43*I44,-2) -> 24400 | K44: =IF((L$37=1),((1+K$34)^$C44),IF((L$37=2),((K$34*$C44)+1),IF((L$37=3),((1+K$34)^$C44),(ERR)))) -> 1.061520151 | L44: =ROUND($L$43*K44,-2) -> 24400
B45: NO. YEARS | C45: =D45-D$43 -> 16 | D45: =D44+10 -> 2030 | E45: =IF((F$37=1),((1+E$34)^$C45),IF((F$37=2),((E$34*$C45)+1),IF((F$37=3),(((1+E$34)^10)+(($C45-10)*E$34)),ERR))) -> 1.172578645 | F45: =ROUND($F$43*E45,-2) -> 27000 | G45: =IF((H$37=1),((1+G$34)^$C45),IF((H$37=2),((G$34*$C45)+1),IF((H$37=3),(((1+G$34)^10)+(($C45-10)*G$34)),ERR))) -> 1.172578645 | H45: =ROUND($H$43*G45,-2) -> 27000 | I45: =IF((J$37=1),((1+I$34)^$C45),IF((J$37=2),((I$34*$C45)+1),IF((J$37=3),(((1+I$34)^10)+(($C45-10)*I$34)),ERR))) -> 1.172578645 | J45: =ROUND($J$43*I45,-2) -> 27000 | K45: =IF((L$37=1),((1+K$34)^$C45),IF((L$37=2),((K$34*$C45)+1),IF((L$37=3),(((1+K$34)^10)+(($C45-10)*K$34)),ERR))) -> 1.172578645 | L45: =ROUND($L$43*K45,-2) -> 27000
B46: NO. YEARS | C46: =D46-D$43 -> 26 | D46: =D44+20 -> 2040 | E46: =IF((F$37=1),((1+E$34)^$C46),IF((F$37=2),((E$34*$C46)+1),IF((F$37=3),(((1+E$34)^10)+(($C46-10)*E$34)),ERR))) -> 1.295256315 | F46: =ROUND($F$43*E46,-2) -> 29800 | G46: =IF((H$37=1),((1+G$34)^$C46),IF((H$37=2),((G$34*$C46)+1),IF((H$37=3),(((1+G$34)^10)+(($C46-10)*G$34)),ERR))) -> 1.295256315 | H46: =ROUND($H$43*G46,-2) -> 29800 | I46: =IF((J$37=1),((1+I$34)^$C46),IF((J$37=2),((I$34*$C46)+1),IF((J$37=3),(((1+I$34)^10)+(($C46-10)*I$34)),ERR))) -> 1.295256315 | J46: =ROUND($J$43*I46,-2) -> 29800 | K46: =IF((L$37=1),((1+K$34)^$C46),IF((L$37=2),((K$34*$C46)+1),IF((L$37=3),(((1+K$34)^10)+(($C46-10)*K$34)),ERR))) -> 1.295256315 | L46: =ROUND($L$43*K46,-2) -> 29800
B48: Percent Turns Calculated From Base Year TMCs:
D49: FROM | G49: FROM | J49: FROM | M49: FROM
B50: TURN STUDY | D50: NORTH LEG | G50: EAST LEG | J50: SOUTH LEG | M50: WEST LEG
D51: (Southbound) | G51: (Westbound) | J51: (Northbound) | M51: (Eastbound)
C53: RIGHT | D53: THRU | E53: LEFT | F53: RIGHT | G53: THRU | H53: LEFT | I53: RIGHT | J53: THRU | K53: LEFT | L53: RIGHT | M53: THRU | N53: LEFT | O53: TOTAL
B54: A.M. | C54: 2-Way Pk Hr Vol: | D54: =C55+D55+E55+F55+J55+N55 -> 1280 | G54: =F55+G55+H55+I55+M55+E55 -> 1280 | J54: =I55+J55+K55+L55+D55+H55 -> 1280 | M54: =L55+M55+N55+C55+G55+K55 -> 1280
B55: 2014-07-20 | C55: 20 | D55: 600 | E55: 20 | F55: 20 | G55: 600 | H55: 20 | I55: 20 | J55: 600 | K55: 20 | L55: 20 | M55: 600 | N55: 20 | O55: =SUM(C55:N55) -> 2560
B56: % TURNS: | C56: =C55/(C55+D55+E55) -> 0.03125 | D56: =D55/(C55+D55+E55) -> 0.9375 | E56: =E55/(C55+D55+E55) -> 0.03125 | F56: =F55/(F55+G55+H55) -> 0.03125 | G56: =G55/(F55+G55+H55) -> 0.9375 | H56: =H55/(F55+G55+H55) -> 0.03125 | I56: =I55/(I55+J55+K55) -> 0.03125 | J56: =J55/(I55+J55+K55) -> 0.9375 | K56: =K55/(I55+J55+K55) -> 0.03125 | L56: =L55/(L55+M55+N55) -> 0.03125 | M56: =M55/(L55+M55+N55) -> 0.9375 | N56: =N55/(L55+M55+N55) -> 0.03125
B57: MID-DAY | C57: 2-Way Pk Hr Vol: | D57: =C58+D58+E58+F58+J58+N58 -> 1500 | G57: =F58+G58+H58+I58+M58+E58 -> 1500 | J57: =I58+J58+K58+L58+D58+H58 -> 1500 | M57: =L58+M58+N58+C58+G58+K58 -> 1500
B58: 2014-07-20 | C58: 25 | D58: 700 | E58: 25 | F58: 25 | G58: 700 | H58: 25 | I58: 25 | J58: 700 | K58: 25 | L58: 25 | M58: 700 | N58: 25 | O58: =SUM(C58:N58) -> 3000
B59: % TURNS: | C59: =C58/(C58+D58+E58) -> 0.03333333333 | D59: =D58/(C58+D58+E58) -> 0.9333333333 | E59: =E58/(C58+D58+E58) -> 0.03333333333 | F59: =F58/(F58+G58+H58) -> 0.03333333333 | G59: =G58/(F58+G58+H58) -> 0.9333333333 | H59: =H58/(F58+G58+H58) -> 0.03333333333 | I59: =I58/(I58+J58+K58) -> 0.03333333333 | J59: =J58/(I58+J58+K58) -> 0.9333333333 | K59: =K58/(I58+J58+K58) -> 0.03333333333 | L59: =L58/(L58+M58+N58) -> 0.03333333333 | M59: =M58/(L58+M58+N58) -> 0.9333333333 | N59: =N58/(L58+M58+N58) -> 0.03333333333
B60: P.M. | C60: 2-Way Pk Hr Vol: | D60: =C61+D61+E61+F61+J61+N61 -> 1720 | G60: =F61+G61+H61+I61+M61+E61 -> 1720 | J60: =I61+J61+K61+L61+D61+H61 -> 1720 | M60: =L61+M61+N61+C61+G61+K61 -> 1720
B61: 2014-07-20 | C61: 30 | D61: 800 | E61: 30 | F61: 30 | G61: 800 | H61: 30 | I61: 30 | J61: 800 | K61: 30 | L61: 30 | M61: 800 | N61: 30 | O61: =SUM(C61:N61) -> 3440
B62: % TURNS: | C62: =C61/(C61+D61+E61) -> 0.03488372093 | D62: =D61/(C61+D61+E61) -> 0.9302325581 | E62: =E61/(C61+D61+E61) -> 0.03488372093 | F62: =F61/(F61+G61+H61) -> 0.03488372093 | G62: =G61/(F61+G61+H61) -> 0.9302325581 | H62: =H61/(F61+G61+H61) -> 0.03488372093 | I62: =I61/(I61+J61+K61) -> 0.03488372093 | J62: =J61/(I61+J61+K61) -> 0.9302325581 | K62: =K61/(I61+J61+K61) -> 0.03488372093 | L62: =L61/(L61+M61+N61) -> 0.03488372093 | M62: =M61/(L61+M61+N61) -> 0.9302325581 | N62: =N61/(L61+M61+N61) -> 0.03488372093
B64: Est. % Turns Calculated From Base Year AADTs & TMCs:
B66: SUGGESTED STARTING POINTS
D67: NORTH LEG | G67: EAST LEG | J67: SOUTH LEG | M67: WEST LEG
C68: RIGHT | D68: THRU | E68: LEFT | F68: RIGHT | G68: THRU | H68: LEFT | I68: RIGHT | J68: THRU | K68: LEFT | L68: RIGHT | M68: THRU | N68: LEFT
B69: =B54 -> A.M.
B70: =D43 -> 2014 | C70: =C56 -> 0.03125 | D70: 0.9375 | E70: 0.03125 | F70: 0.03125 | G70: 0.9375 | H70: =H56 -> 0.03125 | I70: 0.03125 | J70: 0.9375 | K70: 0.03125 | L70: 0.03125 | M70: 0.9375 | N70: 0.03125
B71: =D44 -> 2020 | C71: =((C56*9)+Output!G31)/10 -> 0.06145833333 | D71: =((D56*9)+Output!H31)/10 -> 0.8770833333 | E71: =((E56*9)+Output!I31)/10 -> 0.06145833333 | F71: =((F56*9)+Output!K31)/10 -> 0.06145833333 | G71: =((G56*9)+Output!L31)/10 -> 0.8770833333 | H71: =((H56*9)+Output!M31)/10 -> 0.06145833333 | I71: =((I56*9)+Output!O31)/10 -> 0.06145833333 | J71: =((J56*9)+Output!P31)/10 -> 0.8770833333 | K71: =((K56*9)+Output!Q31)/10 -> 0.06145833333 | L71: =((L56*9)+Output!S31)/10 -> 0.06145833333 | M71: =((M56*9)+Output!T31)/10 -> 0.8770833333 | N71: =((N56*9)+Output!U31)/10 -> 0.06145833333
B72: =D45 -> 2030 | C72: =((C56*7)+Output!G35)/8 -> 0.06901041667 | D72: =((D56*7)+Output!H35)/8 -> 0.8619791667 | E72: =((E56*7)+Output!I35)/8 -> 0.06901041667 | F72: =((F56*7)+Output!K35)/8 -> 0.06901041667 | G72: =((G56*7)+Output!L35)/8 -> 0.8619791667 | H72: =((H56*7)+Output!M35)/8 -> 0.06901041667 | I72: =((I56*7)+Output!O35)/8 -> 0.06901041667 | J72: =((J56*7)+Output!P35)/8 -> 0.8619791667 | K72: =((K56*7)+Output!Q35)/8 -> 0.06901041667 | L72: =((L56*7)+Output!S35)/8 -> 0.06901041667 | M72: =((M56*7)+Output!T35)/8 -> 0.8619791667 | N72: =((N56*7)+Output!U35)/8 -> 0.06901041667
B73: =D46 -> 2040 | C73: =((C56*5)+Output!G39)/6 -> 0.08159722222 | D73: =((D56*5)+Output!H39)/6 -> 0.8368055556 | E73: =((E56*5)+Output!I39)/6 -> 0.08159722222 | F73: =((F56*5)+Output!K39)/6 -> 0.08159722222 | G73: =((G56*5)+Output!L39)/6 -> 0.8368055556 | H73: =((H56*5)+Output!M39)/6 -> 0.08159722222 | I73: =((I56*5)+Output!O39)/6 -> 0.08159722222 | J73: =((J56*5)+Output!P39)/6 -> 0.8368055556 | K73: =((K56*5)+Output!Q39)/6 -> 0.08159722222 | L73: =((L56*5)+Output!S39)/6 -> 0.08159722222 | M73: =((M56*5)+Output!T39)/6 -> 0.8368055556 | N73: =((N56*5)+Output!U39)/6 -> 0.08159722222
B74: =B57 -> MID-DAY
B75: =B70 -> 2014 | C75: =C59 -> 0.03333333333 | D75: 0.9333333333 | E75: 0.03333333333 | F75: 0.03333333333 | G75: 0.9333333333 | H75: 0.03333333333 | I75: 0.03333333333 | J75: 0.9333333333 | K75: 0.03333333333 | L75: 0.03333333333 | M75: 0.9333333333 | N75: 0.03333333333
B76: =B71 -> 2020 | C76: =((C59*9)+Output!G31)/10 -> 0.06333333333 | D76: =((D59*9)+Output!H31)/10 -> 0.8733333333 | E76: =((E59*9)+Output!I31)/10 -> 0.06333333333 | F76: =((F59*9)+Output!K31)/10 -> 0.06333333333 | G76: =((G59*9)+Output!L31)/10 -> 0.8733333333 | H76: =((H59*9)+Output!M31)/10 -> 0.06333333333 | I76: =((I59*9)+Output!O31)/10 -> 0.06333333333 | J76: =((J59*9)+Output!P31)/10 -> 0.8733333333 | K76: =((K59*9)+Output!Q31)/10 -> 0.06333333333 | L76: =((L59*9)+Output!S31)/10 -> 0.06333333333 | M76: =((M59*9)+Output!T31)/10 -> 0.8733333333 | N76: =((N59*9)+Output!U31)/10 -> 0.06333333333
B77: 2030 | C77: =((C59*7)+Output!G35)/8 -> 0.07083333333 | D77: =((D59*7)+Output!H35)/8 -> 0.8583333333 | E77: =((E59*7)+Output!I35)/8 -> 0.07083333333 | F77: =((F59*7)+Output!K35)/8 -> 0.07083333333 | G77: =((G59*7)+Output!L35)/8 -> 0.8583333333 | H77: =((H59*7)+Output!M35)/8 -> 0.07083333333 | I77: =((I59*7)+Output!O35)/8 -> 0.07083333333 | J77: =((J59*7)+Output!P35)/8 -> 0.8583333333 | K77: =((K59*7)+Output!Q35)/8 -> 0.07083333333 | L77: =((L59*7)+Output!S35)/8 -> 0.07083333333 | M77: =((M59*7)+Output!T35)/8 -> 0.8583333333 | N77: =((N59*7)+Output!U35)/8 -> 0.07083333333
B78: 2040 | C78: =((C59*5)+Output!G39)/6 -> 0.08333333333 | D78: =((D59*5)+Output!H39)/6 -> 0.8333333333 | E78: =((E59*5)+Output!I39)/6 -> 0.08333333333 | F78: =((F59*5)+Output!K39)/6 -> 0.08333333333 | G78: =((G59*5)+Output!L39)/6 -> 0.8333333333 | H78: =((H59*5)+Output!M39)/6 -> 0.08333333333 | I78: =((I59*5)+Output!O39)/6 -> 0.08333333333 | J78: =((J59*5)+Output!P39)/6 -> 0.8333333333 | K78: =((K59*5)+Output!Q39)/6 -> 0.08333333333 | L78: =((L59*5)+Output!S39)/6 -> 0.08333333333 | M78: =((M59*5)+Output!T39)/6 -> 0.8333333333 | N78: =((N59*5)+Output!U39)/6 -> 0.08333333333
B79: =B60 -> P.M.
B80: =B70 -> 2014 | C80: =C62 -> 0.03488372093 | D80: 0.9302325581 | E80: 0.03488372093 | F80: 0.03488372093 | G80: 0.9302325581 | H80: 0.03488372093 | I80: 0.03488372093 | J80: 0.9302325581 | K80: 0.03488372093 | L80: 0.03488372093 | M80: 0.9302325581 | N80: 0.03488372093
B81: =B71 -> 2020 | C81: =((C62*9)+Output!G31)/10 -> 0.06472868217 | D81: =((D62*9)+Output!H31)/10 -> 0.8705426357 | E81: =((E62*9)+Output!I31)/10 -> 0.06472868217 | F81: =((F62*9)+Output!K31)/10 -> 0.06472868217 | G81: =((G62*9)+Output!L31)/10 -> 0.8705426357 | H81: =((H62*9)+Output!M31)/10 -> 0.06472868217 | I81: =((I62*9)+Output!O31)/10 -> 0.06472868217 | J81: =((J62*9)+Output!P31)/10 -> 0.8705426357 | K81: =((K62*9)+Output!Q31)/10 -> 0.06472868217 | L81: =((L62*9)+Output!S31)/10 -> 0.06472868217 | M81: =((M62*9)+Output!T31)/10 -> 0.8705426357 | N81: =((N62*9)+Output!U31)/10 -> 0.06472868217
B82: =B72 -> 2030 | C82: =((C62*7)+Output!G35)/8 -> 0.07218992248 | D82: =((D62*7)+Output!H35)/8 -> 0.855620155 | E82: =((E62*7)+Output!I35)/8 -> 0.07218992248 | F82: =((F62*7)+Output!K35)/8 -> 0.07218992248 | G82: =((G62*7)+Output!L35)/8 -> 0.855620155 | H82: =((H62*7)+Output!M35)/8 -> 0.07218992248 | I82: =((I62*7)+Output!O35)/8 -> 0.07218992248 | J82: =((J62*7)+Output!P35)/8 -> 0.855620155 | K82: =((K62*7)+Output!Q35)/8 -> 0.07218992248 | L82: =((L62*7)+Output!S35)/8 -> 0.07218992248 | M82: =((M62*7)+Output!T35)/8 -> 0.855620155 | N82: =((N62*7)+Output!U35)/8 -> 0.07218992248
B83: =B73 -> 2040 | C83: =((C62*5)+Output!G39)/6 -> 0.084625323 | D83: =((D62*5)+Output!H39)/6 -> 0.830749354 | E83: =((E62*5)+Output!I39)/6 -> 0.084625323 | F83: =((F62*5)+Output!K39)/6 -> 0.084625323 | G83: =((G62*5)+Output!L39)/6 -> 0.830749354 | H83: =((H62*5)+Output!M39)/6 -> 0.084625323 | I83: =((I62*5)+Output!O39)/6 -> 0.084625323 | J83: =((J62*5)+Output!P39)/6 -> 0.830749354 | K83: =((K62*5)+Output!Q39)/6 -> 0.084625323 | L83: =((L62*5)+Output!S39)/6 -> 0.084625323 | M83: =((M62*5)+Output!T39)/6 -> 0.830749354 | N83: =((N62*5)+Output!U39)/6 -> 0.084625323
B84: K & D FACTORS:
C85: NORTH LEG | F85: EAST LEG | I85: SOUTH LEG | L85: WEST LEG
C86: AM | D86: MID | E86: PM | F86: AM | G86: MID | H86: PM | I86: AM | J86: MID | K86: PM | L86: AM | M86: MID | N86: PM
B87: K FACTOR
B88: =D43 -> 2014 | C88: =Input!D54/Output!H15 -> 0.05565217391 | D88: =D57/Output!H15 -> 0.0652173913 | E88: =Input!D60/Output!H15 -> 0.0747826087 | F88: =Input!G54/Output!L15 -> 0.05565217391 | G88: =G57/Output!L15 -> 0.0652173913 | H88: =Input!G60/Output!L15 -> 0.0747826087 | I88: =Input!J54/Output!P15 -> 0.05565217391 | J88: =J57/Output!P15 -> 0.0652173913 | K88: =Input!J60/Output!P15 -> 0.0747826087 | L88: =Input!M54/Output!T15 -> 0.05565217391 | M88: =M57/Output!T15 -> 0.0652173913 | N88: =Input!M60/Output!T15 -> 0.0747826087
B89: =D44 -> 2020 | C89: =(((C$91-C$88)/($B$91-$B$88))*($B89-$B$88))+C$88 -> 0.05565217391 | D89: 0.0652173913 | E89: 0.0747826087 | F89: 0.05565217391 | G89: =(((G$91-G$88)/($B$91-$B$88))*($B89-$B$88))+G$88 -> 0.0652173913 | H89: =(((H$91-H$88)/($B$91-$B$88))*($B89-$B$88))+H$88 -> 0.0747826087 | I89: 0.05565217391 | J89: 0.0652173913 | K89: 0.0747826087 | L89: 0.05565217391 | M89: 0.0652173913 | N89: 0.0747826087
B90: =D45 -> 2030 | C90: 0.05565217391 | D90: 0.0652173913 | E90: 0.0747826087 | F90: 0.05565217391 | G90: 0.0652173913 | H90: =(((H$91-H$88)/($B$91-$B$88))*($B90-$B$88))+H$88 -> 0.0747826087 | I90: 0.05565217391 | J90: 0.0652173913 | K90: 0.0747826087 | L90: =(((L$91-L$88)/($B$91-$B$88))*($B90-$B$88))+L$88 -> 0.05565217391 | M90: 0.0652173913 | N90: 0.0747826087
B91: =D46 -> 2040 | C91: =C88 -> 0.05565217391 | D91: =D88 -> 0.0652173913 | E91: 0.0747826087 | F91: =F88 -> 0.05565217391 | G91: 0.0652173913 | H91: =H88 -> 0.0747826087 | I91: =I88 -> 0.05565217391 | J91: =J88 -> 0.0652173913 | K91: 0.0747826087 | L91: =L88 -> 0.05565217391 | M91: =M88 -> 0.0652173913 | N91: =N88 -> 0.0747826087
B92: D FACTOR
B93: =B88 -> 2014 | C93: =SUM(Input!C55:E55)/Input!D54 -> 0.5 | D93: =SUM(C58:E58)/D57 -> 0.5 | E93: =SUM(Input!C61:E61)/Input!D60 -> 0.5 | F93: =SUM(Input!F55:H55)/Input!G54 -> 0.5 | G93: =SUM(F58:H58)/G57 -> 0.5 | H93: =SUM(Input!F61:H61)/Input!G60 -> 0.5 | I93: =SUM(Input!I55:K55)/Input!J54 -> 0.5 | J93: =SUM(I58:K58)/J57 -> 0.5 | K93: =SUM(Input!I61:K61)/Input!J60 -> 0.5 | L93: =SUM(Input!L55:N55)/Input!M54 -> 0.5 | M93: =SUM(L58:N58)/M57 -> 0.5 | N93: =SUM(Input!L61:N61)/Input!M60 -> 0.5
B94: =B89 -> 2020 | C94: =(((C$96-C$93)/($B$96-$B$93))*($B94-$B$93))+C$93 -> 0.5 | D94: 0.5 | E94: 0.5 | F94: 0.5 | G94: 0.5 | H94: 0.5 | I94: 0.5 | J94: 0.5 | K94: 0.5 | L94: 0.5 | M94: 0.5 | N94: 0.5
B95: =B90 -> 2030 | C95: 0.5 | D95: 0.5 | E95: 0.5 | F95: 0.5 | G95: 0.5 | H95: 0.5 | I95: 0.5 | J95: 0.5 | K95: 0.5 | L95: 0.5 | M95: 0.5 | N95: 0.5
B96: =B91 -> 2040 | C96: =C93 -> 0.5 | D96: 0.5 | E96: 0.5 | F96: 0.5 | G96: 0.5 | H96: 0.5 | I96: 0.5 | J96: 0.5 | K96: 0.5 | L96: 0.5 | M96: 0.5 | N96: 0.5

Sheet Output
B2: TMTOOL "TURNS" REPORT
B3: DESIGN HOUR TURNS CALCULATIONS
C5: SECTION NO: | D5: =Input!D5 -> 88000000 | I5: DATE: | J5: =Input!K7 -> 2015-01-12
C6: FM NO.: | D6: =Input!D6 -> 123456-1 | I6: NOTES: | J6: =IF(Input!D13="","",Input!D13) -> 
C7: PROJECT LIMITS: | D7: =Input!D7 -> from MP 1.200 to MP 3.200
C8: DESIGN YEAR: | D8: =Input!D8 -> 2040
C9: INTERSECTION: | D9: =Input!D9 -> Green Road and Red Boulevard
C10: PREPARED BY: | D10: =IF(Input!K5="","",Input!K5) -> 
C11: FILE: | D11: =IF(Input!K6="","",Input!K6) -> Version 1
B13: ESTIMATED TWO-WAY 24 HOUR AADT FOR EACH LEG OF THE INTERSECTION:
E14: YEAR | H14: NORTH LEG | L14: EAST LEG | P14: SOUTH LEG | T14: WEST LEG
B15: 24 HR EST. AADT | E15: =Input!D43 -> 2014 | H15: =Input!F43 -> 23000 | L15: =Input!H43 -> 23000 | P15: =Input!J43 -> 23000 | T15: =Input!L43 -> 23000
B16: 24 HR EST. AADT | E16: =Input!D44 -> 2020 | H16: =Input!F44 -> 24400 | L16: =Input!H44 -> 24400 | P16: =Input!J44 -> 24400 | T16: =Input!L44 -> 24400
B17: 24 HR EST. AADT | E17: =Input!D45 -> 2030 | H17: =Input!F45 -> 27000 | L17: =Input!H45 -> 27000 | P17: =Input!J45 -> 27000 | T17: =Input!L45 -> 27000
B18: 24 HR EST. AADT | E18: =Input!D46 -> 2040 | H18: =Input!F46 -> 29800 | L18: =Input!H46 -> 29800 | P18: =Input!J46 -> 29800 | T18: =Input!L46 -> 29800
B20: Percent Turns Calculated From Base Year AADTs:
H21: FROM | L21: FROM | P21: FROM | T21: FROM
B22: JKTURNS | H22: NORTH LEG | L22: EAST LEG | P22: SOUTH LEG | T22: WEST LEG
D24: =E15 -> 2014 | E24: 2-WAY ADT | H24: =Input!F43 -> 23000 | L24: =Input!H43 -> 23000 | P24: =Input!J43 -> 23000 | T24: =Input!L43 -> 23000
G25: RIGHT | H25: THRU | I25: LEFT | K25: RIGHT | L25: THRU | M25: LEFT | O25: RIGHT | P25: THRU | Q25: LEFT | S25: RIGHT | T25: THRU | U25: LEFT
G26: =T24 -> 23000 | H26: =P24 -> 23000 | I26: =L24 -> 23000 | K26: =H24 -> 23000 | L26: =T24 -> 23000 | M26: =P24 -> 23000 | O26: =L24 -> 23000 | P26: =H24 -> 23000 | Q26: =T24 -> 23000 | S26: =P24 -> 23000 | T26: =L24 -> 23000 | U26: =H24 -> 23000
G27: =G26/(G26+H26+I26) -> 0.3333333333 | H27: =H26/(G26+H26+I26) -> 0.3333333333 | I27: =I26/(G26+H26+I26) -> 0.3333333333 | K27: =K26/(K26+L26+M26) -> 0.3333333333 | L27: =L26/(K26+L26+M26) -> 0.3333333333 | M27: =M26/(K26+L26+M26) -> 0.3333333333 | O27: =O26/(O26+P26+Q26) -> 0.3333333333 | P27: =P26/(O26+P26+Q26) -> 0.3333333333 | Q27: =Q26/(O26+P26+Q26) -> 0.3333333333 | S27: =S26/(S26+T26+U26) -> 0.3333333333 | T27: =T26/(S26+T26+U26) -> 0.3333333333 | U27: =U26/(S26+T26+U26) -> 0.3333333333
D28: =E16 -> 2020 | E28: 2-WAY ADT | H28: =Input!F44 -> 24400 | L28: =Input!H44 -> 24400 | P28: =Input!J44 -> 24400 | T28: =Input!L44 -> 24400
G29: RIGHT | H29: THRU | I29: LEFT | K29: RIGHT | L29: THRU | M29: LEFT | O29: RIGHT | P29: THRU | Q29: LEFT | S29: RIGHT | T29: THRU | U29: LEFT
G30: =T28 -> 24400 | H30: =P28 -> 24400 | I30: =L28 -> 24400 | K30: =H28 -> 24400 | L30: =T28 -> 24400 | M30: =P28 -> 24400 | O30: =L28 -> 24400 | P30: =H28 -> 24400 | Q30: =T28 -> 24400 | S30: =P28 -> 24400 | T30: =L28 -> 24400 | U30: =H28 -> 24400
G31: =G30/(G30+H30+I30) -> 0.3333333333 | H31: =H30/(G30+H30+I30) -> 0.3333333333 | I31: =I30/(G30+H30+I30) -> 0.3333333333 | K31: =K30/(K30+L30+M30) -> 0.3333333333 | L31: =L30/(K30+L30+M30) -> 0.3333333333 | M31: =M30/(K30+L30+M30) -> 0.3333333333 | O31: =O30/(O30+P30+Q30) -> 0.3333333333 | P31: =P30/(O30+P30+Q30) -> 0.3333333333 | Q31: =Q30/(O30+P30+Q30) -> 0.3333333333 | S31: =S30/(S30+T30+U30) -> 0.3333333333 | T31: =T30/(S30+T30+U30) -> 0.3333333333 | U31: =U30/(S30+T30+U30) -> 0.3333333333
D32: =E17 -> 2030 | E32: 2-WAY ADT | H32: =Input!F45 -> 27000 | L32: =Input!H45 -> 27000 | P32: =Input!J45 -> 27000 | T32: =Input!L45 -> 27000
G33: RIGHT | H33: THRU | I33: LEFT | K33: RIGHT | L33: THRU | M33: LEFT | O33: RIGHT | P33: THRU | Q33: LEFT | S33: RIGHT | T33: THRU | U33: LEFT
G34: =T32 -> 27000 | H34: =P32 -> 27000 | I34: =L32 -> 27000 | K34: =H32 -> 27000 | L34: =T32 -> 27000 | M34: =P32 -> 27000 | O34: =L32 -> 27000 | P34: =H32 -> 27000 | Q34: =T32 -> 27000 | S34: =P32 -> 27000 | T34: =L32 -> 27000 | U34: =H32 -> 27000
G35: =G34/(G34+H34+I34) -> 0.3333333333 | H35: =H34/(G34+H34+I34) -> 0.3333333333 | I35: =I34/(G34+H34+I34) -> 0.3333333333 | K35: =K34/(K34+L34+M34) -> 0.3333333333 | L35: =L34/(K34+L34+M34) -> 0.3333333333 | M35: =M34/(K34+L34+M34) -> 0.3333333333 | O35: =O34/(O34+P34+Q34) -> 0.3333333333 | P35: =P34/(O34+P34+Q34) -> 0.3333333333 | Q35: =Q34/(O34+P34+Q34) -> 0.3333333333 | S35: =S34/(S34+T34+U34) -> 0.3333333333 | T35: =T34/(S34+T34+U34) -> 0.3333333333 | U35: =U34/(S34+T34+U34) -> 0.3333333333
D36: =E18 -> 2040 | E36: 2-WAY ADT | H36: =Input!F46 -> 29800 | L36: =Input!H46 -> 29800 | P36: =Input!J46 -> 29800 | T36: =Input!L46 -> 29800
G37: RIGHT | H37: THRU | I37: LEFT | K37: RIGHT | L37: THRU | M37: LEFT | O37: RIGHT | P37: THRU | Q37: LEFT | S37: RIGHT | T37: THRU | U37: LEFT
G38: =T36 -> 29800 | H38: =P36 -> 29800 | I38: =L36 -> 29800 | K38: =H36 -> 29800 | L38: =T36 -> 29800 | M38: =P36 -> 29800 | O38: =L36 -> 29800 | P38: =H36 -> 29800 | Q38: =T36 -> 29800 | S38: =P36 -> 29800 | T38: =L36 -> 29800 | U38: =H36 -> 29800
G39: =G38/(G38+H38+I38) -> 0.3333333333 | H39: =H38/(G38+H38+I38) -> 0.3333333333 | I39: =I38/(G38+H38+I38) -> 0.3333333333 | K39: =K38/(K38+L38+M38) -> 0.3333333333 | L39: =L38/(K38+L38+M38) -> 0.3333333333 | M39: =M38/(K38+L38+M38) -> 0.3333333333 | O39: =O38/(O38+P38+Q38) -> 0.3333333333 | P39: =P38/(O38+P38+Q38) -> 0.3333333333 | Q39: =Q38/(O38+P38+Q38) -> 0.3333333333 | S39: =S38/(S38+T38+U38) -> 0.3333333333 | T39: =T38/(S38+T38+U38) -> 0.3333333333 | U39: =U38/(S38+T38+U38) -> 0.3333333333
H41: NORTH LEG | L41: EAST LEG | P41: SOUTH LEG | T41: WEST LEG
G42: RIGHT | H42: THRU | I42: LEFT | K42: RIGHT | L42: THRU | M42: LEFT | O42: RIGHT | P42: THRU | Q42: LEFT | S42: RIGHT | T42: THRU | U42: LEFT
B43: A.M. DESIGN HR. TURNS
B44: =E15 -> 2014 | D44: EST. TURNS | G44: =Calcs!D41 -> 20 | H44: =Calcs!E41 -> 600 | I44: =Calcs!F41 -> 20 | K44: =Calcs!G41 -> 20 | L44: =Calcs!H41 -> 600 | M44: =Calcs!I41 -> 20 | O44: =Calcs!J41 -> 20 | P44: =Calcs!K41 -> 600 | Q44: =Calcs!L41 -> 20 | S44: =Calcs!M41 -> 20 | T44: =Calcs!N41 -> 600 | U44: =Calcs!O41 -> 20
D45: EST. % TURNS
B46: =E16 -> 2020 | D46: EST. TURNS | G46: =Calcs!D47 -> 41.853125 | H46: =Calcs!E47 -> 597.29375 | I46: =Calcs!F47 -> 41.853125 | K46: =Calcs!G47 -> 41.853125 | L46: =Calcs!H47 -> 597.29375 | M46: =Calcs!I47 -> 41.853125 | O46: =Calcs!J47 -> 41.853125 | P46: =Calcs!K47 -> 597.29375 | Q46: =Calcs!L47 -> 41.853125 | S46: =Calcs!M47 -> 41.853125 | T46: =Calcs!N47 -> 597.29375 | U46: =Calcs!O47 -> 41.853125
D47: EST. % TURNS
B48: =E17 -> 2030 | D48: EST. TURNS | G48: =Calcs!D53 -> 51.68880208 | H48: =Calcs!E53 -> 645.6223958 | I48: =Calcs!F53 -> 51.68880208 | K48: =Calcs!G53 -> 51.68880208 | L48: =Calcs!H53 -> 645.6223958 | M48: =Calcs!I53 -> 51.68880208 | O48: =Calcs!J53 -> 51.68880208 | P48: =Calcs!K53 -> 645.6223958 | Q48: =Calcs!L53 -> 51.68880208 | S48: =Calcs!M53 -> 51.68880208 | T48: =Calcs!N53 -> 645.6223958 | U48: =Calcs!O53 -> 51.68880208
D49: EST. % TURNS
B50: =E18 -> 2040 | D50: EST. TURNS | G50: =Calcs!D59 -> 67.80729167 | H50: =Calcs!E59 -> 695.3854167 | I50: =Calcs!F59 -> 67.80729167 | K50: =Calcs!G59 -> 67.80729167 | L50: =Calcs!H59 -> 695.3854167 | M50: =Calcs!I59 -> 67.80729167 | O50: =Calcs!J59 -> 67.80729167 | P50: =Calcs!K59 -> 695.3854167 | Q50: =Calcs!L59 -> 67.80729167 | S50: =Calcs!M59 -> 67.80729167 | T50: =Calcs!N59 -> 695.3854167 | U50: =Calcs!O59 -> 67.80729167
B52: MID-DAY DESIGN HR. TURNS
B53: =B44 -> 2014 | D53: EST. TURNS | G53: =Calcs!R41 -> 25 | H53: =Calcs!S41 -> 700 | I53: =Calcs!T41 -> 25 | K53: =Calcs!U41 -> 25 | L53: =Calcs!V41 -> 700 | M53: =Calcs!W41 -> 25 | O53: =Calcs!X41 -> 25 | P53: =Calcs!Y41 -> 700 | Q53: =Calcs!Z41 -> 25 | S53: =Calcs!AA41 -> 25 | T53: =Calcs!AB41 -> 700 | U53: =Calcs!AC41 -> 25
D54: EST. % TURNS
B55: =B46 -> 2020 | D55: EST. TURNS | G55: =Calcs!R47 -> 50.28666667 | H55: =Calcs!S47 -> 693.4266667 | I55: =Calcs!T47 -> 50.28666667 | K55: =Calcs!U47 -> 50.28666667 | L55: =Calcs!V47 -> 693.4266667 | M55: =Calcs!W47 -> 50.28666667 | O55: =Calcs!X47 -> 50.28666667 | P55: =Calcs!Y47 -> 693.4266667 | Q55: =Calcs!Z47 -> 50.28666667 | S55: =Calcs!AA47 -> 50.28666667 | T55: =Calcs!AB47 -> 693.4266667 | U55: =Calcs!AC47 -> 50.28666667
D56: EST. % TURNS
B57: =B48 -> 2030 | D57: EST. TURNS | G57: =Calcs!R53 -> 62.33333333 | H57: =Calcs!S53 -> 755.3333333 | I57: =Calcs!T53 -> 62.33333333 | K57: =Calcs!U53 -> 62.33333333 | L57: =Calcs!V53 -> 755.3333333 | M57: =Calcs!W53 -> 62.33333333 | O57: =Calcs!X53 -> 62.33333333 | P57: =Calcs!Y53 -> 755.3333333 | Q57: =Calcs!Z53 -> 62.33333333 | S57: =Calcs!AA53 -> 62.33333333 | T57: =Calcs!AB53 -> 755.3333333 | U57: =Calcs!AC53 -> 62.33333333
D58: EST. % TURNS
B59: =B50 -> 2040 | D59: EST. TURNS | G59: =Calcs!R59 -> 80.66666667 | H59: =Calcs!S59 -> 806.6666667 | I59: =Calcs!T59 -> 80.66666667 | K59: =Calcs!U59 -> 80.66666667 | L59: =Calcs!V59 -> 806.6666667 | M59: =Calcs!W59 -> 80.66666667 | O59: =Calcs!X59 -> 80.66666667 | P59: =Calcs!Y59 -> 806.6666667 | Q59: =Calcs!Z59 -> 80.66666667 | S59: =Calcs!AA59 -> 80.66666667 | T59: =Calcs!AB59 -> 806.6666667 | U59: =Calcs!AC59 -> 80.66666667
B61: P.M. DESIGN HR. TURNS
B62: =E15 -> 2014 | D62: EST. TURNS | G62: =Calcs!AF41 -> 30 | H62: =Calcs!AG41 -> 800 | I62: =Calcs!AH41 -> 30 | K62: =Calcs!AI41 -> 30 | L62: =Calcs!AJ41 -> 800 | M62: =Calcs!AK41 -> 30 | O62: =Calcs!AL41 -> 30 | P62: =Calcs!AM41 -> 800 | Q62: =Calcs!AN41 -> 30 | S62: =Calcs!AO41 -> 30 | T62: =Calcs!AP41 -> 800 | U62: =Calcs!AQ41 -> 30
D63: EST. % TURNS
B64: =E16 -> 2020 | D64: EST. TURNS | G64: =Calcs!AF47 -> 58.77364341 | H64: =Calcs!AG43 -> 793.9348837 | I64: =Calcs!AH47 -> 58.77364341 | K64: =Calcs!AI47 -> 58.77364341 | L64: =Calcs!AJ47 -> 790.4527132 | M64: =Calcs!AK47 -> 58.77364341 | O64: =Calcs!AL47 -> 58.77364341 | P64: =Calcs!AM47 -> 790.4527132 | Q64: =Calcs!AN47 -> 58.77364341 | S64: =Calcs!AO47 -> 58.77364341 | T64: =Calcs!AP47 -> 790.4527132 | U64: =Calcs!AQ47 -> 58.77364341
D65: EST. % TURNS
B66: =E17 -> 2030 | D66: EST. TURNS | G66: =Calcs!AF53 -> 72.91182171 | H66: =Calcs!AG53 -> 864.1763566 | I66: =Calcs!AH53 -> 72.91182171 | K66: =Calcs!AI53 -> 72.91182171 | L66: =Calcs!AJ53 -> 864.1763566 | M66: =Calcs!AK53 -> 72.91182171 | O66: =Calcs!AL53 -> 72.91182171 | P66: =Calcs!AM53 -> 864.1763566 | Q66: =Calcs!AN53 -> 72.91182171 | S66: =Calcs!AO53 -> 72.91182171 | T66: =Calcs!AP53 -> 864.1763566 | U66: =Calcs!AQ53 -> 72.91182171
D67: EST. % TURNS
B68: =E18 -> 2040 | D68: EST. TURNS | G68: =Calcs!AF59 -> 94.44186047 | H68: =Calcs!AG59 -> 927.1162791 | I68: =Calcs!AH59 -> 94.44186047 | K68: =Calcs!AI59 -> 94.44186047 | L68: =Calcs!AJ59 -> 927.1162791 | M68: =Calcs!AK59 -> 94.44186047 | O68: =Calcs!AL59 -> 94.44186047 | P68: =Calcs!AM59 -> 927.1162791 | Q68: =Calcs!AN59 -> 94.44186047 | S68: =Calcs!AO59 -> 94.44186047 | T68: =Calcs!AP59 -> 927.1162791 | U68: =Calcs!AQ59 -> 94.44186047
B70: LINK VOLUME CHECK | H70: NORTH LEG | L70: EAST LEG | P70: SOUTH LEG | T70: WEST LEG
B71: DESIGN HOUR A.M.: | G71: FROM | H71: TO | I71: LINK | K71: FROM | L71: TO | M71: LINK | O71: FROM | P71: TO | Q71: LINK | S71: FROM | T71: TO | U71: LINK
B72: CONTROL LINK VOLUMES | G72: =Calcs!D11 -> 640 | H72: =Calcs!E11 -> 640 | I72: =Calcs!F11 -> 1280 | K72: =Calcs!G11 -> 640 | L72: =Calcs!H11 -> 640 | M72: =Calcs!I11 -> 1280 | O72: =Calcs!J11 -> 640 | P72: =Calcs!K11 -> 640 | Q72: =Calcs!L11 -> 1280 | S72: =Calcs!M11 -> 640 | T72: =Calcs!N11 -> 640 | U72: =Calcs!O11 -> 1280
B73: =E15 -> 2014 | D73: TURN SUMMARY | G73: =G44+H44+I44 -> 640 | H73: =K44+P44+U44 -> 640 | I73: =SUM(G73:H73) -> 1280 | K73: =K44+L44+M44 -> 640 | L73: =I44+O44+T44 -> 640 | M73: =SUM(K73:L73) -> 1280 | O73: =O44+P44+Q44 -> 640 | P73: =H44+M44+S44 -> 640 | Q73: =SUM(O73:P73) -> 1280 | S73: =S44+T44+U44 -> 640 | T73: =G44+L44+Q44 -> 640 | U73: =SUM(S73:T73) -> 1280
B74: CONTROL LINK VOLUMES | G74: =Calcs!D17 -> 679 | H74: =Calcs!E17 -> 681 | I74: =Calcs!F17 -> 1360 | K74: =Calcs!G17 -> 679 | L74: =Calcs!H17 -> 681 | M74: =Calcs!I17 -> 1360 | O74: =Calcs!J17 -> 679 | P74: =Calcs!K17 -> 681 | Q74: =Calcs!L17 -> 1360 | S74: =Calcs!M17 -> 679 | T74: =Calcs!N17 -> 681 | U74: =Calcs!O17 -> 1360
B75: =E16 -> 2020 | D75: TURN SUMMARY | G75: =G46+H46+I46 -> 681 | H75: =K46+P46+U46 -> 681 | I75: =SUM(G75:H75) -> 1362 | K75: =K46+L46+M46 -> 681 | L75: =I46+O46+T46 -> 681 | M75: =SUM(K75:L75) -> 1362 | O75: =O46+P46+Q46 -> 681 | P75: =H46+M46+S46 -> 681 | Q75: =SUM(O75:P75) -> 1362 | S75: =S46+T46+U46 -> 681 | T75: =G46+L46+Q46 -> 681 | U75: =SUM(S75:T75) -> 1362
B76: CONTROL LINK VOLUMES | G76: =Calcs!D23 -> 751 | H76: =Calcs!E23 -> 749 | I76: =Calcs!F23 -> 1500 | K76: =Calcs!G23 -> 751 | L76: =Calcs!H23 -> 749 | M76: =Calcs!I23 -> 1500 | O76: =Calcs!J23 -> 751 | P76: =Calcs!K23 -> 749 | Q76: =Calcs!L23 -> 1500 | S76: =Calcs!M23 -> 751 | T76: =Calcs!N23 -> 749 | U76: =Calcs!O23 -> 1500
B77: =E17 -> 2030 | D77: TURN SUMMARY | G77: =G48+H48+I48 -> 749 | H77: =K48+P48+U48 -> 749 | I77: =SUM(G77:H77) -> 1498 | K77: =K48+L48+M48 -> 749 | L77: =I48+O48+T48 -> 749 | M77: =SUM(K77:L77) -> 1498 | O77: =O48+P48+Q48 -> 749 | P77: =H48+M48+S48 -> 749 | Q77: =SUM(O77:P77) -> 1498 | S77: =S48+T48+U48 -> 749 | T77: =G48+L48+Q48 -> 749 | U77: =SUM(S77:T77) -> 1498
B78: CONTROL LINK VOLUMES | G78: =Calcs!D29 -> 829 | H78: =Calcs!E29 -> 831 | I78: =Calcs!F29 -> 1660 | K78: =Calcs!G29 -> 829 | L78: =Calcs!H29 -> 831 | M78: =Calcs!I29 -> 1660 | O78: =Calcs!J29 -> 829 | P78: =Calcs!K29 -> 831 | Q78: =Calcs!L29 -> 1660 | S78: =Calcs!M29 -> 829 | T78: =Calcs!N29 -> 831 | U78: =Calcs!O29 -> 1660
B79: =E18 -> 2040 | D79: TURN SUMMARY | G79: =G50+H50+I50 -> 831 | H79: =K50+P50+U50 -> 831 | I79: =SUM(G79:H79) -> 1662 | K79: =K50+L50+M50 -> 831 | L79: =I50+O50+T50 -> 831 | M79: =SUM(K79:L79) -> 1662 | O79: =O50+P50+Q50 -> 831 | P79: =H50+M50+S50 -> 831 | Q79: =SUM(O79:P79) -> 1662 | S79: =S50+T50+U50 -> 831 | T79: =G50+L50+Q50 -> 831 | U79: =SUM(S79:T79) -> 1662
B81: DESIGN HOUR MID-DAY: | G81: FROM | H81: TO | I81: LINK | K81: FROM | L81: TO | M81: LINK | O81: FROM | P81: TO | Q81: LINK | S81: FROM | T81: TO | U81: LINK
B82: CONTROL LINK VOLUMES | G82: =Calcs!R11 -> 750 | H82: =Calcs!S11 -> 750 | I82: =Calcs!T11 -> 1500 | K82: =Calcs!U11 -> 750 | L82: =Calcs!V11 -> 750 | M82: =Calcs!W11 -> 1500 | O82: =Calcs!X11 -> 750 | P82: =Calcs!Y11 -> 750 | Q82: =Calcs!Z11 -> 1500 | S82: =Calcs!AA11 -> 750 | T82: =Calcs!AB11 -> 750 | U82: =Calcs!AC11 -> 1500
B83: =E7 -> 0 | D83: TURN SUMMARY | G83: =G53+H53+I53 -> 750 | H83: =K53+P53+U53 -> 750 | I83: =SUM(G83:H83) -> 1500 | K83: =K53+L53+M53 -> 750 | L83: =G53+Q53+T53 -> 750 | M83: =SUM(K83:L83) -> 1500 | O83: =O53+P53+Q53 -> 750 | P83: =H53+M53+S53 -> 750 | Q83: =SUM(O83:P83) -> 1500 | S83: =S53+T53+U53 -> 750 | T83: =G53+L53+Q53 -> 750 | U83: =SUM(S83:T83) -> 1500
B84: CONTROL LINK VOLUMES | G84: =Calcs!R17 -> 796 | H84: =Calcs!S17 -> 794 | I84: =Calcs!T17 -> 1590 | K84: =Calcs!U17 -> 796 | L84: =Calcs!V17 -> 794 | M84: =Calcs!W17 -> 1590 | O84: =Calcs!X17 -> 796 | P84: =Calcs!Y17 -> 794 | Q84: =Calcs!Z17 -> 1590 | S84: =Calcs!AA17 -> 796 | T84: =Calcs!AB17 -> 794 | U84: =Calcs!AC17 -> 1590
B85: =E8 -> 0 | D85: TURN SUMMARY | G85: =G55+H55+I55 -> 794 | H85: =K55+P55+U55 -> 794 | I85: =SUM(G85:H85) -> 1588 | K85: =K55+L55+M55 -> 794 | L85: =G55+Q55+T55 -> 794 | M85: =SUM(K85:L85) -> 1588 | O85: =O55+P55+Q55 -> 794 | P85: =H55+M55+S55 -> 794 | Q85: =SUM(O85:P85) -> 1588 | S85: =S55+T55+U55 -> 794 | T85: =G55+L55+Q55 -> 794 | U85: =SUM(S85:T85) -> 1588
B86: CONTROL LINK VOLUMES | G86: =Calcs!R23 -> 880 | H86: =Calcs!S23 -> 880 | I86: =Calcs!T23 -> 1760 | K86: =Calcs!U23 -> 880 | L86: =Calcs!V23 -> 880 | M86: =Calcs!W23 -> 1760 | O86: =Calcs!X23 -> 880 | P86: =Calcs!Y23 -> 880 | Q86: =Calcs!Z23 -> 1760 | S86: =Calcs!AA23 -> 880 | T86: =Calcs!AB23 -> 880 | U86: =Calcs!AC23 -> 1760
B87: =E9 -> 0 | D87: TURN SUMMARY | G87: =G57+H57+I57 -> 880 | H87: =K57+P57+U57 -> 880 | I87: =SUM(G87:H87) -> 1760 | K87: =K57+L57+M57 -> 880 | L87: =G57+Q57+T57 -> 880 | M87: =SUM(K87:L87) -> 1760 | O87: =O57+P57+Q57 -> 880 | P87: =H57+M57+S57 -> 880 | Q87: =SUM(O87:P87) -> 1760 | S87: =S57+T57+U57 -> 880 | T87: =G57+L57+Q57 -> 880 | U87: =SUM(S87:T87) -> 1760
B88: CONTROL LINK VOLUMES | G88: =Calcs!R29 -> 972 | H88: =Calcs!S29 -> 968 | I88: =Calcs!T29 -> 1940 | K88: =Calcs!U29 -> 972 | L88: =Calcs!V29 -> 968 | M88: =Calcs!W29 -> 1940 | O88: =Calcs!X29 -> 972 | P88: =Calcs!Y29 -> 968 | Q88: =Calcs!Z29 -> 1940 | S88: =Calcs!AA29 -> 972 | T88: =Calcs!AB29 -> 968 | U88: =Calcs!AC29 -> 1940
B89: =E10 -> 0 | D89: TURN SUMMARY | G89: =G59+H59+I59 -> 968 | H89: =K59+P59+U59 -> 968 | I89: =SUM(G89:H89) -> 1936 | K89: =K59+L59+M59 -> 968 | L89: =G59+Q59+T59 -> 968 | M89: =SUM(K89:L89) -> 1936 | O89: =O59+P59+Q59 -> 968 | P89: =H59+M59+S59 -> 968 | Q89: =SUM(O89:P89) -> 1936 | S89: =S59+T59+U59 -> 968 | T89: =G59+L59+Q59 -> 968 | U89: =SUM(S89:T89) -> 1936
B91: DESIGN HOUR P.M.: | G91: FROM | H91: TO | I91: LINK | K91: FROM | L91: TO | M91: LINK | O91: FROM | P91: TO | Q91: LINK | S91: FROM | T91: TO | U91: LINK
B92: CONTROL LINK VOLUMES | G92: =Calcs!AF11 -> 860 | H92: =Calcs!AG11 -> 860 | I92: =Calcs!AH11 -> 1720 | K92: =Calcs!AI11 -> 860 | L92: =Calcs!AJ11 -> 860 | M92: =Calcs!AK11 -> 1720 | O92: =Calcs!AL11 -> 860 | P92: =Calcs!AM11 -> 860 | Q92: =Calcs!AN11 -> 1720 | S92: =Calcs!AO11 -> 860 | T92: =Calcs!AP11 -> 860 | U92: =Calcs!AQ11 -> 1720
B93: =E15 -> 2014 | D93: TURN SUMMARY | G93: =G62+H62+I62 -> 860 | H93: =K62+P62+U62 -> 860 | I93: =SUM(G93:H93) -> 1720 | K93: =K62+L62+M62 -> 860 | L93: =I62+O62+T62 -> 860 | M93: =SUM(K93:L93) -> 1720 | O93: =O62+P62+Q62 -> 860 | P93: =H62+M62+S62 -> 860 | Q93: =SUM(O93:P93) -> 1720 | S93: =S62+T62+U62 -> 860 | T93: =G62+L62+Q62 -> 860 | U93: =SUM(S93:T93) -> 1720
B94: CONTROL LINK VOLUMES | G94: =Calcs!AF17 -> 912 | H94: =Calcs!AG17 -> 908 | I94: =Calcs!AH17 -> 1820 | K94: =Calcs!AI17 -> 912 | L94: =Calcs!AJ17 -> 908 | M94: =Calcs!AK17 -> 1820 | O94: =Calcs!AL17 -> 912 | P94: =Calcs!AM17 -> 908 | Q94: =Calcs!AN17 -> 1820 | S94: =Calcs!AO17 -> 912 | T94: =Calcs!AP17 -> 908 | U94: =Calcs!AQ17 -> 1820
B95: =E16 -> 2020 | D95: TURN SUMMARY | G95: =G64+H64+I64 -> 911.4821705 | H95: =K64+P64+U64 -> 908 | I95: =SUM(G95:H95) -> 1819.482171 | K95: =K64+L64+M64 -> 908 | L95: =I64+O64+T64 -> 908 | M95: =SUM(K95:L95) -> 1816 | O95: =O64+P64+Q64 -> 908 | P95: =H64+M64+S64 -> 911.4821705 | Q95: =SUM(O95:P95) -> 1819.482171 | S95: =S64+T64+U64 -> 908 | T95: =G64+L64+Q64 -> 908 | U95: =SUM(S95:T95) -> 1816
B96: CONTROL LINK VOLUMES | G96: =Calcs!AF23 -> 1010 | H96: =Calcs!AG23 -> 1010 | I96: =Calcs!AH23 -> 2020 | K96: =Calcs!AI23 -> 1010 | L96: =Calcs!AJ23 -> 1010 | M96: =Calcs!AK23 -> 2020 | O96: =Calcs!AL23 -> 1010 | P96: =Calcs!AM23 -> 1010 | Q96: =Calcs!AN23 -> 2020 | S96: =Calcs!AO23 -> 1010 | T96: =Calcs!AP23 -> 1010 | U96: =Calcs!AQ23 -> 2020
B97: =E17 -> 2030 | D97: TURN SUMMARY | G97: =G66+H66+I66 -> 1010 | H97: =K66+P66+U66 -> 1010 | I97: =SUM(G97:H97) -> 2020 | K97: =K66+L66+M66 -> 1010 | L97: =I66+O66+T66 -> 1010 | M97: =SUM(K97:L97) -> 2020 | O97: =O66+P66+Q66 -> 1010 | P97: =H66+M66+S66 -> 1010 | Q97: =SUM(O97:P97) -> 2020 | S97: =S66+T66+U66 -> 1010 | T97: =G66+L66+Q66 -> 1010 | U97: =SUM(S97:T97) -> 2020
B98: CONTROL LINK VOLUMES | G98: =Calcs!AF29 -> 1114 | H98: =Calcs!AG29 -> 1116 | I98: =Calcs!AH29 -> 2230 | K98: =Calcs!AI29 -> 1114 | L98: =Calcs!AJ29 -> 1116 | M98: =Calcs!AK29 -> 2230 | O98: =Calcs!AL29 -> 1114 | P98: =Calcs!AM29 -> 1116 | Q98: =Calcs!AN29 -> 2230 | S98: =Calcs!AO29 -> 1114 | T98: =Calcs!AP29 -> 1116 | U98: =Calcs!AQ29 -> 2230
B99: =E18 -> 2040 | D99: TURN SUMMARY | G99: =G68+H68+I68 -> 1116 | H99: =K68+P68+U68 -> 1116 | I99: =SUM(G99:H99) -> 2232 | K99: =K68+L68+M68 -> 1116 | L99: =I68+O68+T68 -> 1116 | M99: =SUM(K99:L99) -> 2232 | O99: =O68+P68+Q68 -> 1116 | P99: =H68+M68+S68 -> 1116 | Q99: =SUM(O99:P99) -> 2232 | S99: =S68+T68+U68 -> 1116 | T99: =G68+L68+Q68 -> 1116 | U99: =SUM(S99:T99) -> 2232
B101: Note: Boxed number indicates manual adjustment.

Sheet Calcs
C3: 2-WAY | D3: NORTH LEG | E3: EAST LEG | F3: SOUTH LEG | G3: WEST LEG | Q3: 2-WAY | R3: NORTH LEG | S3: EAST LEG | T3: SOUTH LEG | U3: WEST LEG | AE3: 2-WAY | AF3: NORTH LEG | AG3: EAST LEG | AH3: SOUTH LEG | AI3: WEST LEG
B4: =Input!D43 -> 2014 | C4: AM DESIGN HOUR VOLUMES | D4: =ROUND(Input!F43*Input!C88,-1) -> 1280 | E4: =ROUND(Input!H43*Input!F88,-1) -> 1280 | F4: =ROUND(Input!J43*Input!I88,-1) -> 1280 | G4: =ROUND(Input!L43*Input!L88,-1) -> 1280 | P4: =Input!D43 -> 2014 | Q4: MIDDAY DESIGN HOUR VOLUMES | R4: =ROUND(Input!F43*Input!D88,-1) -> 1500 | S4: =ROUND(Input!H43*Input!G88,-1) -> 1500 | T4: =ROUND(Input!J43*Input!J88,-1) -> 1500 | U4: =ROUND(Input!L43*Input!M88,-1) -> 1500 | AD4: =Input!D43 -> 2014 | AE4: PM DESIGN HOUR VOLUMES | AF4: =ROUND(Input!F43*Input!E88,-1) -> 1720 | AG4: =ROUND(Input!H43*Input!H88,-1) -> 1720 | AH4: =ROUND(Input!J43*Input!K88,-1) -> 1720 | AI4: =ROUND(Input!L43*Input!N88,-1) -> 1720
B5: =Input!D44 -> 2020 | C5: AM DESIGN HOUR VOLUMES | D5: =ROUND(Input!F44*Input!C89,-1) -> 1360 | E5: =ROUND(Input!H44*Input!F89,-1) -> 1360 | F5: =ROUND(Input!J44*Input!I89,-1) -> 1360 | G5: =ROUND(Input!L44*Input!L89,-1) -> 1360 | P5: =Input!D44 -> 2020 | Q5: MIDDAY DESIGN HOUR VOLUMES | R5: =ROUND(Input!F44*Input!D89,-1) -> 1590 | S5: =ROUND(Input!H44*Input!G89,-1) -> 1590 | T5: =ROUND(Input!J44*Input!J89,-1) -> 1590 | U5: =ROUND(Input!L44*Input!M89,-1) -> 1590 | AD5: =Input!D44 -> 2020 | AE5: PM DESIGN HOUR VOLUMES | AF5: =ROUND(Input!F44*Input!E89,-1) -> 1820 | AG5: =ROUND(Input!H44*Input!H89,-1) -> 1820 | AH5: =ROUND(Input!J44*Input!K89,-1) -> 1820 | AI5: =ROUND(Input!L44*Input!N89,-1) -> 1820
B6: =Input!D45 -> 2030 | C6: AM DESIGN HOUR VOLUMES | D6: =ROUND(Input!F45*Input!C90,-1) -> 1500 | E6: =ROUND(Input!H45*Input!F90,-1) -> 1500 | F6: =ROUND(Input!J45*Input!I90,-1) -> 1500 | G6: =ROUND(Input!L45*Input!L90,-1) -> 1500 | P6: =Input!D45 -> 2030 | Q6: MIDDAY DESIGN HOUR VOLUMES | R6: =ROUND(Input!F45*Input!D90,-1) -> 1760 | S6: =ROUND(Input!H45*Input!G90,-1) -> 1760 | T6: =ROUND(Input!J45*Input!J90,-1) -> 1760 | U6: =ROUND(Input!L45*Input!M90,-1) -> 1760 | AD6: =Input!D45 -> 2030 | AE6: PM DESIGN HOUR VOLUMES | AF6: =ROUND(Input!F45*Input!E90,-1) -> 2020 | AG6: =ROUND(Input!H45*Input!H90,-1) -> 2020 | AH6: =ROUND(Input!J45*Input!K90,-1) -> 2020 | AI6: =ROUND(Input!L45*Input!N90,-1) -> 2020
B7: =Input!D46 -> 2040 | C7: AM DESIGN HOUR VOLUMES | D7: =ROUND(Input!F46*Input!C91,-1) -> 1660 | E7: =ROUND(Input!H46*Input!F91,-1) -> 1660 | F7: =ROUND(Input!J46*Input!I91,-1) -> 1660 | G7: =ROUND(Input!L46*Input!L91,-1) -> 1660 | P7: =Input!D46 -> 2040 | Q7: MIDDAY DESIGN HOUR VOLUMES | R7: =ROUND(Input!F46*Input!D91,-1) -> 1940 | S7: =ROUND(Input!H46*Input!G91,-1) -> 1940 | T7: =ROUND(Input!J46*Input!J91,-1) -> 1940 | U7: =ROUND(Input!L46*Input!M91,-1) -> 1940 | AD7: =Input!D46 -> 2040 | AE7: PM DESIGN HOUR VOLUMES | AF7: =ROUND(Input!F46*Input!E91,-1) -> 2230 | AG7: =ROUND(Input!H46*Input!H91,-1) -> 2230 | AH7: =ROUND(Input!J46*Input!K91,-1) -> 2230 | AI7: =ROUND(Input!L46*Input!N91,-1) -> 2230
D9: NORTH LEG | G9: EAST LEG | J9: SOUTH LEG | M9: WEST LEG | R9: NORTH LEG | U9: EAST LEG | X9: SOUTH LEG | AA9: WEST LEG | AF9: NORTH LEG | AI9: EAST LEG | AL9: SOUTH LEG | AO9: WEST LEG
B10: DESIGN HOUR A.M.: | D10: FROM | E10: TO | F10: LINK | G10: FROM | H10: TO | I10: LINK | J10: FROM | K10: TO | L10: LINK | M10: FROM | N10: TO | O10: LINK | P10: DESIGN HOUR MID-DAY: | R10: FROM | S10: TO | T10: LINK | U10: FROM | V10: TO | W10: LINK | X10: FROM | Y10: TO | Z10: LINK | AA10: FROM | AB10: TO | AC10: LINK | AD10: DESIGN HOUR P.M.: | AF10: FROM | AG10: TO | AH10: LINK | AI10: FROM | AJ10: TO | AK10: LINK | AL10: FROM | AM10: TO | AN10: LINK | AO10: FROM | AP10: TO | AQ10: LINK
B11: CONTROL LINK VOLUMES | D11: =ROUND(Input!$F$43*Input!C$88*Input!C$93,0) -> 640 | E11: =D4-D11 -> 640 | F11: =SUM(D11:E11) -> 1280 | G11: =ROUND(Input!$H$43*Input!F$88*Input!F$93,0) -> 640 | H11: =E4-G11 -> 640 | I11: =SUM(G11:H11) -> 1280 | J11: =ROUND(Input!$J$43*Input!I$88*Input!I$93,0) -> 640 | K11: =F4-J11 -> 640 | L11: =SUM(J11:K11) -> 1280 | M11: =ROUND(Input!$L$43*Input!L$88*Input!L$93,0) -> 640 | N11: =G4-M11 -> 640 | O11: =SUM(M11:N11) -> 1280 | P11: CONTROL LINK VOLUMES | R11: =ROUND(Input!$F$43*Input!D88*Input!D93,0) -> 750 | S11: =R4-R11 -> 750 | T11: =SUM(R11:S11) -> 1500 | U11: =ROUND(Input!$H$43*Input!G88*Input!G93,0) -> 750 | V11: =S4-U11 -> 750 | W11: =SUM(U11:V11) -> 1500 | X11: =ROUND(Input!$J$43*Input!J88*Input!J93,0) -> 750 | Y11: =T4-X11 -> 750 | Z11: =SUM(X11:Y11) -> 1500 | AA11: =ROUND(Input!$L$43*Input!M$88*Input!M$93,0) -> 750 | AB11: =U4-AA11 -> 750 | AC11: =SUM(AA11:AB11) -> 1500 | AD11: CONTROL LINK VOLUMES | AF11: =ROUND(Input!$F$43*Input!E$88*Input!E$93,0) -> 860 | AG11: =AF4-AF11 -> 860 | AH11: =SUM(AF11:AG11) -> 1720 | AI11: =ROUND(Input!$H$43*Input!H$88*Input!H$93,0) -> 860 | AJ11: =AG4-AI11 -> 860 | AK11: =SUM(AI11:AJ11) -> 1720 | AL11: =ROUND(Input!$J$43*Input!K$88*Input!K$93,0) -> 860 | AM11: =AH4-AL11 -> 860 | AN11: =SUM(AL11:AM11) -> 1720 | AO11: =ROUND(Input!$L$43*Input!N$88*Input!N$93,0) -> 860 | AP11: =AI4-AO11 -> 860 | AQ11: =SUM(AO11:AP11) -> 1720
B12: =Input!$D$43 -> 2014 | C12: VOLUME #1 | D12: =D37+E37+F37 -> 640 | E12: =G37+K37+O37 -> 640 | F12: =SUM(D12:E12) -> 1280 | G12: =G37+H37+I37 -> 640 | H12: =F37+J37+N37 -> 640 | I12: 1280 | J12: =J37+K37+L37 -> 640 | K12: =E37+I37+M37 -> 640 | L12: 1280 | M12: =M37+N37+O37 -> 640 | N12: =D37+H37+L37 -> 640 | O12: 1280 | P12: =Input!$D$43 -> 2014 | Q12: VOLUME #1 | R12: =R37+S37+T37 -> 750 | S12: =U37+Y37+AC37 -> 750 | T12: =SUM(R12:S12) -> 1500 | U12: =U37+V37+W37 -> 750 | V12: =T37+X37+AB37 -> 750 | W12: 1500 | X12: =X37+Y37+Z37 -> 750 | Y12: =S37+W37+AA37 -> 750 | Z12: 1500 | AA12: =AA37+AB37+AC37 -> 750 | AB12: =R37+V37+Z37 -> 750 | AC12: =SUM(AA12:AB12) -> 1500 | AD12: =Input!$D$43 -> 2014 | AE12: VOLUME #1 | AF12: =AF37+AG37+AH37 -> 860 | AG12: =AI37+AM37+AQ37 -> 860 | AH12: 1720 | AI12: =AI37+AJ37+AK37 -> 860 | AJ12: =AH37+AL37+AP37 -> 860 | AK12: 1720 | AL12: =AL37+AM37+AN37 -> 860 | AM12: =AG37+AK37+AO37 -> 860 | AN12: 1720 | AO12: =AO37+AP37+AQ37 -> 860 | AP12: =AF37+AJ37+AN37 -> 860 | AQ12: 1720
B13: =Input!$D$43 -> 2014 | C13: VOLUME #2 | D13: =D38+E38+F38 -> 640 | E13: =G38+K38+O38 -> 640 | F13: =SUM(D13:E13) -> 1280 | G13: =G38+H38+I38 -> 640 | H13: =F38+J38+N38 -> 640 | I13: 1280 | J13: =J38+K38+L38 -> 640 | K13: =E38+I38+M38 -> 640 | L13: 1280 | M13: =M38+N38+O38 -> 640 | N13: =D38+H38+L38 -> 640 | O13: 1280 | P13: =Input!$D$43 -> 2014 | Q13: VOLUME #2 | R13: =R38+S38+T38 -> 750 | S13: =U38+Y38+AC38 -> 750 | T13: 1500 | U13: =U38+V38+W38 -> 750 | V13: =T38+X38+AB38 -> 750 | W13: 1500 | X13: =X38+Y38+Z38 -> 750 | Y13: =S38+W38+AA38 -> 750 | Z13: 1500 | AA13: =AA38+AB38+AC38 -> 750 | AB13: =R38+V38+Z38 -> 750 | AC13: 1500 | AD13: =Input!$D$43 -> 2014 | AE13: VOLUME #2 | AF13: =AF38+AG38+AH38 -> 860 | AG13: =AI38+AM38+AQ38 -> 860 | AH13: 1720 | AI13: =AI38+AJ38+AK38 -> 860 | AJ13: =AH38+AL38+AP38 -> 860 | AK13: 1720 | AL13: =AL38+AM38+AN38 -> 860 | AM13: =AG38+AK38+AO38 -> 860 | AN13: 1720 | AO13: =AO38+AP38+AQ38 -> 860 | AP13: =AF38+AJ38+AN38 -> 860 | AQ13: 1720
B14: =Input!$D$43 -> 2014 | C14: VOLUME #3 | D14: =D39+E39+F39 -> 640 | E14: =G39+K39+O39 -> 640 | F14: 1280 | G14: =G39+H39+I39 -> 640 | H14: =F39+J39+N39 -> 640 | I14: 1280 | J14: =J39+K39+L39 -> 640 | K14: =E39+I39+M39 -> 640 | L14: 1280 | M14: =M39+N39+O39 -> 640 | N14: =D39+H39+L39 -> 640 | O14: 1280 | P14: =Input!$D$43 -> 2014 | Q14: VOLUME #3 | R14: =R39+S39+T39 -> 750 | S14: =U39+Y39+AC39 -> 750 | T14: 1500 | U14: =U39+V39+W39 -> 750 | V14: =T39+X39+AB39 -> 750 | W14: 1500 | X14: =X39+Y39+Z39 -> 750 | Y14: =S39+W39+AA39 -> 750 | Z14: 1500 | AA14: =AA39+AB39+AC39 -> 750 | AB14: =R39+V39+Z39 -> 750 | AC14: 1500 | AD14: =Input!$D$43 -> 2014 | AE14: VOLUME #3 | AF14: =AF39+AG39+AH39 -> 860 | AG14: =AI39+AM39+AQ39 -> 860 | AH14: 1720 | AI14: =AI39+AJ39+AK39 -> 860 | AJ14: =AH39+AL39+AP39 -> 860 | AK14: 1720 | AL14: =AL39+AM39+AN39 -> 860 | AM14: =AG39+AK39+AO39 -> 860 | AN14: 1720 | AO14: =AO39+AP39+AQ39 -> 860 | AP14: =AF39+AJ39+AN39 -> 860 | AQ14: 1720
B15: =Input!$D$43 -> 2014 | C15: VOLUME #4 | D15: =D40+E40+F40 -> 640 | E15: =G40+K40+O40 -> 640 | F15: 1280 | G15: =G40+H40+I40 -> 640 | H15: =F40+J40+N40 -> 640 | I15: 1280 | J15: =J40+K40+L40 -> 640 | K15: =E40+I40+M40 -> 640 | L15: 1280 | M15: =M40+N40+O40 -> 640 | N15: =D40+H40+L40 -> 640 | O15: 1280 | P15: =Input!$D$43 -> 2014 | Q15: VOLUME #4 | R15: =R40+S40+T40 -> 750 | S15: =U40+Y40+AC40 -> 750 | T15: 1500 | U15: =U40+V40+W40 -> 750 | V15: =T40+X40+AB40 -> 750 | W15: 1500 | X15: =X40+Y40+Z40 -> 750 | Y15: =S40+W40+AA40 -> 750 | Z15: 1500 | AA15: =AA40+AB40+AC40 -> 750 | AB15: =R40+V40+Z40 -> 750 | AC15: 1500 | AD15: =Input!$D$43 -> 2014 | AE15: VOLUME #4 | AF15: =AF40+AG40+AH40 -> 860 | AG15: =AI40+AM40+AQ40 -> 860 | AH15: 1720 | AI15: =AI40+AJ40+AK40 -> 860 | AJ15: =AH40+AL40+AP40 -> 860 | AK15: 1720 | AL15: =AL40+AM40+AN40 -> 860 | AM15: =AG40+AK40+AO40 -> 860 | AN15: 1720 | AO15: =AO40+AP40+AQ40 -> 860 | AP15: =AF40+AJ40+AN40 -> 860 | AQ15: 1720
B16: =Input!$D$43 -> 2014 | C16: VOLUME #5 | D16: =D41+E41+F41 -> 640 | E16: =G41+K41+O41 -> 640 | F16: 1280 | G16: =G41+H41+I41 -> 640 | H16: =F41+J41+N41 -> 640 | I16: 1280 | J16: =J41+K41+L41 -> 640 | K16: =E41+I41+M41 -> 640 | L16: 1280 | M16: =M41+N41+O41 -> 640 | N16: =D41+H41+L41 -> 640 | O16: 1280 | P16: =Input!$D$43 -> 2014 | Q16: VOLUME #5 | R16: =R41+S41+T41 -> 750 | S16: =U41+Y41+AC41 -> 750 | T16: 1500 | U16: =U41+V41+W41 -> 750 | V16: =T41+X41+AB41 -> 750 | W16: 1500 | X16: =X41+Y41+Z41 -> 750 | Y16: =S41+W41+AA41 -> 750 | Z16: 1500 | AA16: =AA41+AB41+AC41 -> 750 | AB16: =R41+V41+Z41 -> 750 | AC16: 1500 | AD16: =Input!$D$43 -> 2014 | AE16: VOLUME #5 | AF16: =AF41+AG41+AH41 -> 860 | AG16: =AI41+AM41+AQ41 -> 860 | AH16: 1720 | AI16: =AI41+AJ41+AK41 -> 860 | AJ16: =AH41+AL41+AP41 -> 860 | AK16: 1720 | AL16: =AL41+AM41+AN41 -> 860 | AM16: =AG41+AK41+AO41 -> 860 | AN16: 1720 | AO16: =AO41+AP41+AQ41 -> 860 | AP16: =AF41+AJ41+AN41 -> 860 | AQ16: 1720
B17: CONTROL LINK VOLUMES | D17: =ROUND(Input!$F$44*Input!C$89*Input!C$94,0) -> 679 | E17: =D5-D17 -> 681 | F17: 1360 | G17: =ROUND(Input!$H$44*Input!F$89*Input!F$94,0) -> 679 | H17: =E5-G17 -> 681 | I17: 1360 | J17: =ROUND(Input!$J$44*Input!I$89*Input!I$94,0) -> 679 | K17: =F5-J17 -> 681 | L17: 1360 | M17: =ROUND(Input!$L$44*Input!L$89*Input!L$94,0) -> 679 | N17: =G5-M17 -> 681 | O17: 1360 | P17: CONTROL LINK VOLUMES | R17: =ROUND(Input!$F$44*Input!D89*Input!D94,0) -> 796 | S17: =R5-R17 -> 794 | T17: 1590 | U17: =ROUND(Input!$H$44*Input!G89*Input!G94,0) -> 796 | V17: =S5-U17 -> 794 | W17: 1590 | X17: =ROUND(Input!$J$44*Input!J89*Input!J94,0) -> 796 | Y17: =T5-X17 -> 794 | Z17: 1590 | AA17: =ROUND(Input!$L$44*Input!M$89*Input!M$94,0) -> 796 | AB17: =U5-AA17 -> 794 | AC17: 1590 | AD17: CONTROL LINK VOLUMES | AF17: =ROUND(Input!$F$44*Input!E$89*Input!E$94,0) -> 912 | AG17: =AF5-AF17 -> 908 | AH17: 1820 | AI17: =ROUND(Input!$H$44*Input!H$89*Input!H$94,0) -> 912 | AJ17: =AG5-AI17 -> 908 | AK17: 1820 | AL17: =ROUND(Input!$J$44*Input!K$89*Input!K$94,0) -> 912 | AM17: =AH5-AL17 -> 908 | AN17: 1820 | AO17: =ROUND(Input!$L$44*Input!N$89*Input!N$94,0) -> 912 | AP17: =AI5-AO17 -> 908 | AQ17: 1820
B18: =Input!$D$44 -> 2020 | C18: VOLUME #1 | D18: =D43+E43+F43 -> 679 | E18: =G43+K43+O43 -> 679 | F18: 1358 | G18: =G43+H43+I43 -> 679 | H18: =F43+J43+N43 -> 679 | I18: 1358 | J18: =J43+K43+L43 -> 679 | K18: =E43+I43+M43 -> 679 | L18: 1358 | M18: =M43+N43+O43 -> 679 | N18: =D43+H43+L43 -> 679 | O18: 1358 | P18: =Input!$D$44 -> 2020 | Q18: VOLUME #1 | R18: =R43+S43+T43 -> 796 | S18: =U43+Y43+AC43 -> 796 | T18: 1592 | U18: =U43+V43+W43 -> 796 | V18: =T43+X43+AB43 -> 796 | W18: 1592 | X18: =X43+Y43+Z43 -> 796 | Y18: =S43+W43+AA43 -> 796 | Z18: 1592 | AA18: =AA43+AB43+AC43 -> 796 | AB18: =R43+V43+Z43 -> 796 | AC18: 1592 | AD18: =Input!$D$44 -> 2020 | AE18: VOLUME #1 | AF18: =AF43+AG43+AH43 -> 912 | AG18: =AI43+AM43+AQ43 -> 912 | AH18: 1824 | AI18: =AI43+AJ43+AK43 -> 912 | AJ18: =AH43+AL43+AP43 -> 912 | AK18: 1824 | AL18: =AL43+AM43+AN43 -> 912 | AM18: =AG43+AK43+AO43 -> 912 | AN18: 1824 | AO18: =AO43+AP43+AQ43 -> 912 | AP18: =AF43+AJ43+AN43 -> 912 | AQ18: 1824
B19: =Input!$D$44 -> 2020 | C19: VOLUME #2 | D19: =D44+E44+F44 -> 681 | E19: =G44+K44+O44 -> 681 | F19: 1362 | G19: =G44+H44+I44 -> 681 | H19: =F44+J44+N44 -> 681 | I19: 1362 | J19: =J44+K44+L44 -> 681 | K19: =E44+I44+M44 -> 681 | L19: 1362 | M19: =M44+N44+O44 -> 681 | N19: =D44+H44+L44 -> 681 | O19: 1362 | P19: =Input!$D$44 -> 2020 | Q19: VOLUME #2 | R19: =R44+S44+T44 -> 794 | S19: =U44+Y44+AC44 -> 794 | T19: 1588 | U19: =U44+V44+W44 -> 794 | V19: =T44+X44+AB44 -> 794 | W19: 1588 | X19: =X44+Y44+Z44 -> 794 | Y19: =S44+W44+AA44 -> 794 | Z19: 1588 | AA19: =AA44+AB44+AC44 -> 794 | AB19: =R44+V44+Z44 -> 794 | AC19: 1588 | AD19: =Input!$D$44 -> 2020 | AE19: VOLUME #2 | AF19: =AF44+AG44+AH44 -> 908 | AG19: =AI44+AM44+AQ44 -> 908 | AH19: 1816 | AI19: =AI44+AJ44+AK44 -> 908 | AJ19: =AH44+AL44+AP44 -> 908 | AK19: 1816 | AL19: =AL44+AM44+AN44 -> 908 | AM19: =AG44+AK44+AO44 -> 908 | AN19: 1816 | AO19: =AO44+AP44+AQ44 -> 908 | AP19: =AF44+AJ44+AN44 -> 908 | AQ19: 1816
B20: =Input!$D$44 -> 2020 | C20: VOLUME #3 | D20: =D45+E45+F45 -> 681 | E20: =G45+K45+O45 -> 681 | F20: 1362 | G20: =G45+H45+I45 -> 681 | H20: =F45+J45+N45 -> 681 | I20: 1362 | J20: =J45+K45+L45 -> 681 | K20: =E45+I45+M45 -> 681 | L20: 1362 | M20: =M45+N45+O45 -> 681 | N20: =D45+H45+L45 -> 681 | O20: 1362 | P20: =Input!$D$44 -> 2020 | Q20: VOLUME #3 | R20: =R45+S45+T45 -> 794 | S20: =U45+Y45+AC45 -> 794 | T20: 1588 | U20: =U45+V45+W45 -> 794 | V20: =T45+X45+AB45 -> 794 | W20: 1588 | X20: =X45+Y45+Z45 -> 794 | Y20: =S45+W45+AA45 -> 794 | Z20: 1588 | AA20: =AA45+AB45+AC45 -> 794 | AB20: =R45+V45+Z45 -> 794 | AC20: 1588 | AD20: =Input!$D$44 -> 2020 | AE20: VOLUME #3 | AF20: =AF45+AG45+AH45 -> 908 | AG20: =AI45+AM45+AQ45 -> 908 | AH20: 1816 | AI20: =AI45+AJ45+AK45 -> 908 | AJ20: =AH45+AL45+AP45 -> 908 | AK20: 1816 | AL20: =AL45+AM45+AN45 -> 908 | AM20: =AG45+AK45+AO45 -> 908 | AN20: 1816 | AO20: =AO45+AP45+AQ45 -> 908 | AP20: =AF45+AJ45+AN45 -> 908 | AQ20: 1816
B21: =Input!$D$44 -> 2020 | C21: VOLUME #4 | D21: =D46+E46+F46 -> 681 | E21: =G46+K46+O46 -> 681 | F21: 1362 | G21: =G46+H46+I46 -> 681 | H21: =F46+J46+N46 -> 681 | I21: 1362 | J21: =J46+K46+L46 -> 681 | K21: =E46+I46+M46 -> 681 | L21: 1362 | M21: =M46+N46+O46 -> 681 | N21: =D46+H46+L46 -> 681 | O21: 1362 | P21: =Input!$D$44 -> 2020 | Q21: VOLUME #4 | R21: =R46+S46+T46 -> 794 | S21: =U46+Y46+AC46 -> 794 | T21: 1588 | U21: =U46+V46+W46 -> 794 | V21: =T46+X46+AB46 -> 794 | W21: 1588 | X21: =X46+Y46+Z46 -> 794 | Y21: =S46+W46+AA46 -> 794 | Z21: 1588 | AA21: =AA46+AB46+AC46 -> 794 | AB21: =R46+V46+Z46 -> 794 | AC21: 1588 | AD21: =Input!$D$44 -> 2020 | AE21: VOLUME #4 | AF21: =AF46+AG46+AH46 -> 908 | AG21: =AI46+AM46+AQ46 -> 908 | AH21: 1816 | AI21: =AI46+AJ46+AK46 -> 908 | AJ21: =AH46+AL46+AP46 -> 908 | AK21: 1816 | AL21: =AL46+AM46+AN46 -> 908 | AM21: =AG46+AK46+AO46 -> 908 | AN21: 1816 | AO21: =AO46+AP46+AQ46 -> 908 | AP21: =AF46+AJ46+AN46 -> 908 | AQ21: 1816
B22: =Input!$D$44 -> 2020 | C22: VOLUME #5 | D22: =D47+E47+F47 -> 681 | E22: =G47+K47+O47 -> 681 | F22: 1362 | G22: =G47+H47+I47 -> 681 | H22: =F47+J47+N47 -> 681 | I22: 1362 | J22: =J47+K47+L47 -> 681 | K22: =E47+I47+M47 -> 681 | L22: 1362 | M22: =M47+N47+O47 -> 681 | N22: =D47+H47+L47 -> 681 | O22: 1362 | P22: =Input!$D$44 -> 2020 | Q22: VOLUME #5 | R22: =R47+S47+T47 -> 794 | S22: =U47+Y47+AC47 -> 794 | T22: 1588 | U22: =U47+V47+W47 -> 794 | V22: =T47+X47+AB47 -> 794 | W22: 1588 | X22: =X47+Y47+Z47 -> 794 | Y22: =S47+W47+AA47 -> 794 | Z22: 1588 | AA22: =AA47+AB47+AC47 -> 794 | AB22: =R47+V47+Z47 -> 794 | AC22: 1588 | AD22: =Input!$D$44 -> 2020 | AE22: VOLUME #5 | AF22: =AF47+AG47+AH47 -> 908 | AG22: =AI47+AM47+AQ47 -> 908 | AH22: 1816 | AI22: =AI47+AJ47+AK47 -> 908 | AJ22: =AH47+AL47+AP47 -> 908 | AK22: 1816 | AL22: =AL47+AM47+AN47 -> 908 | AM22: =AG47+AK47+AO47 -> 908 | AN22: 1816 | AO22: =AO47+AP47+AQ47 -> 908 | AP22: =AF47+AJ47+AN47 -> 908 | AQ22: 1816
B23: CONTROL LINK VOLUMES | D23: =ROUND(Input!$F$45*Input!C$90*Input!C$95,0) -> 751 | E23: =D6-D23 -> 749 | F23: 1500 | G23: =ROUND(Input!$H$45*Input!F$90*Input!F$95,0) -> 751 | H23: =E6-G23 -> 749 | I23: 1500 | J23: =ROUND(Input!$J$45*Input!I$90*Input!I$95,0) -> 751 | K23: =F6-J23 -> 749 | L23: 1500 | M23: =ROUND(Input!$L$45*Input!L$90*Input!L$95,0) -> 751 | N23: =G6-M23 -> 749 | O23: 1500 | P23: CONTROL LINK VOLUMES | R23: =ROUND(Input!$F$45*Input!D90*Input!D95,0) -> 880 | S23: =R6-R23 -> 880 | T23: 1760 | U23: =ROUND(Input!$H$45*Input!G90*Input!G95,0) -> 880 | V23: =S6-U23 -> 880 | W23: 1760 | X23: =ROUND(Input!$J$45*Input!J90*Input!J95,0) -> 880 | Y23: =T6-X23 -> 880 | Z23: 1760 | AA23: =ROUND(Input!$L$45*Input!M$90*Input!M$95,0) -> 880 | AB23: =U6-AA23 -> 880 | AC23: 1760 | AD23: CONTROL LINK VOLUMES | AF23: =ROUND(Input!$F$45*Input!E$90*Input!E$95,0) -> 1010 | AG23: =AF6-AF23 -> 1010 | AH23: 2020 | AI23: =ROUND(Input!$H$45*Input!H$90*Input!H$95,0) -> 1010 | AJ23: =AG6-AI23 -> 1010 | AK23: 2020 | AL23: =ROUND(Input!$J$45*Input!K$90*Input!K$95,0) -> 1010 | AM23: =AH6-AL23 -> 1010 | AN23: 2020 | AO23: =ROUND(Input!$L$45*Input!N$90*Input!N$95,0) -> 1010 | AP23: =AI6-AO23 -> 1010 | AQ23: 2020
B24: =Input!$D$45 -> 2030 | C24: VOLUME #1 | D24: =D49+E49+F49 -> 751 | E24: =G49+K49+O49 -> 751 | F24: 1502 | G24: =G49+H49+I49 -> 751 | H24: =F49+J49+N49 -> 751 | I24: 1502 | J24: =J49+K49+L49 -> 751 | K24: =E49+I49+M49 -> 751 | L24: 1502 | M24: =M49+N49+O49 -> 751 | N24: =D49+H49+L49 -> 751 | O24: 1502 | P24: =Input!$D$45 -> 2030 | Q24: VOLUME #1 | R24: =R49+S49+T49 -> 880 | S24: =U49+Y49+AC49 -> 880 | T24: 1760 | U24: =U49+V49+W49 -> 880 | V24: =T49+X49+AB49 -> 880 | W24: 1760 | X24: =X49+Y49+Z49 -> 880 | Y24: =S49+W49+AA49 -> 880 | Z24: 1760 | AA24: =AA49+AB49+AC49 -> 880 | AB24: =R49+V49+Z49 -> 880 | AC24: 1760 | AD24: =Input!$D$45 -> 2030 | AE24: VOLUME #1 | AF24: =AF49+AG49+AH49 -> 1010 | AG24: =AI49+AM49+AQ49 -> 1010 | AH24: 2020 | AI24: =AI49+AJ49+AK49 -> 1010 | AJ24: =AH49+AL49+AP49 -> 1010 | AK24: 2020 | AL24: =AL49+AM49+AN49 -> 1010 | AM24: =AG49+AK49+AO49 -> 1010 | AN24: 2020 | AO24: =AO49+AP49+AQ49 -> 1010 | AP24: =AF49+AJ49+AN49 -> 1010 | AQ24: 2020
B25: =Input!$D$45 -> 2030 | C25: VOLUME #2 | D25: =D50+E50+F50 -> 749 | E25: =G50+K50+O50 -> 749 | F25: 1498 | G25: =G50+H50+I50 -> 749 | H25: =F50+J50+N50 -> 749 | I25: 1498 | J25: =J50+K50+L50 -> 749 | K25: =E50+I50+M50 -> 749 | L25: 1498 | M25: =M50+N50+O50 -> 749 | N25: =D50+H50+L50 -> 749 | O25: 1498 | P25: =Input!$D$45 -> 2030 | Q25: VOLUME #2 | R25: =R50+S50+T50 -> 880 | S25: =U50+Y50+AC50 -> 880 | T25: 1760 | U25: =U50+V50+W50 -> 880 | V25: =T50+X50+AB50 -> 880 | W25: 1760 | X25: =X50+Y50+Z50 -> 880 | Y25: =S50+W50+AA50 -> 880 | Z25: 1760 | AA25: =AA50+AB50+AC50 -> 880 | AB25: =R50+V50+Z50 -> 880 | AC25: 1760 | AD25: =Input!$D$45 -> 2030 | AE25: VOLUME #2 | AF25: =AF50+AG50+AH50 -> 1010 | AG25: =AI50+AM50+AQ50 -> 1010 | AH25: 2020 | AI25: =AI50+AJ50+AK50 -> 1010 | AJ25: =AH50+AL50+AP50 -> 1010 | AK25: 2020 | AL25: =AL50+AM50+AN50 -> 1010 | AM25: =AG50+AK50+AO50 -> 1010 | AN25: 2020 | AO25: =AO50+AP50+AQ50 -> 1010 | AP25: =AF50+AJ50+AN50 -> 1010 | AQ25: 2020
B26: =Input!$D$45 -> 2030 | C26: VOLUME #3 | D26: =D51+E51+F51 -> 749 | E26: =G51+K51+O51 -> 749 | F26: 1498 | G26: =G51+H51+I51 -> 749 | H26: =F51+J51+N51 -> 749 | I26: 1498 | J26: =J51+K51+L51 -> 749 | K26: =E51+I51+M51 -> 749 | L26: 1498 | M26: =M51+N51+O51 -> 749 | N26: =D51+H51+L51 -> 749 | O26: 1498 | P26: =Input!$D$45 -> 2030 | Q26: VOLUME #3 | R26: =R51+S51+T51 -> 880 | S26: =U51+Y51+AC51 -> 880 | T26: 1760 | U26: =U51+V51+W51 -> 880 | V26: =T51+X51+AB51 -> 880 | W26: 1760 | X26: =X51+Y51+Z51 -> 880 | Y26: =S51+W51+AA51 -> 880 | Z26: 1760 | AA26: =AA51+AB51+AC51 -> 880 | AB26: =R51+V51+Z51 -> 880 | AC26: 1760 | AD26: =Input!$D$45 -> 2030 | AE26: VOLUME #3 | AF26: =AF51+AG51+AH51 -> 1010 | AG26: =AI51+AM51+AQ51 -> 1010 | AH26: 2020 | AI26: =AI51+AJ51+AK51 -> 1010 | AJ26: =AH51+AL51+AP51 -> 1010 | AK26: 2020 | AL26: =AL51+AM51+AN51 -> 1010 | AM26: =AG51+AK51+AO51 -> 1010 | AN26: 2020 | AO26: =AO51+AP51+AQ51 -> 1010 | AP26: =AF51+AJ51+AN51 -> 1010 | AQ26: 2020
B27: =Input!$D$45 -> 2030 | C27: VOLUME #4 | D27: =D52+E52+F52 -> 749 | E27: =G52+K52+O52 -> 749 | F27: 1498 | G27: =G52+H52+I52 -> 749 | H27: =F52+J52+N52 -> 749 | I27: 1498 | J27: =J52+K52+L52 -> 749 | K27: =E52+I52+M52 -> 749 | L27: 1498 | M27: =M52+N52+O52 -> 749 | N27: =D52+H52+L52 -> 749 | O27: 1498 | P27: =Input!$D$45 -> 2030 | Q27: VOLUME #4 | R27: =R52+S52+T52 -> 880 | S27: =U52+Y52+AC52 -> 880 | T27: 1760 | U27: =U52+V52+W52 -> 880 | V27: =T52+X52+AB52 -> 880 | W27: 1760 | X27: =X52+Y52+Z52 -> 880 | Y27: =S52+W52+AA52 -> 880 | Z27: 1760 | AA27: =AA52+AB52+AC52 -> 880 | AB27: =R52+V52+Z52 -> 880 | AC27: 1760 | AD27: =Input!$D$45 -> 2030 | AE27: VOLUME #4 | AF27: =AF52+AG52+AH52 -> 1010 | AG27: =AI52+AM52+AQ52 -> 1010 | AH27: 2020 | AI27: =AI52+AJ52+AK52 -> 1010 | AJ27: =AH52+AL52+AP52 -> 1010 | AK27: 2020 | AL27: =AL52+AM52+AN52 -> 1010 | AM27: =AG52+AK52+AO52 -> 1010 | AN27: 2020 | AO27: =AO52+AP52+AQ52 -> 1010 | AP27: =AF52+AJ52+AN52 -> 1010 | AQ27: 2020
B28: =Input!$D$45 -> 2030 | C28: VOLUME #5 | D28: =D53+E53+F53 -> 749 | E28: =G53+K53+O53 -> 749 | F28: 1498 | G28: =G53+H53+I53 -> 749 | H28: =F53+J53+N53 -> 749 | I28: 1498 | J28: =J53+K53+L53 -> 749 | K28: =E53+I53+M53 -> 749 | L28: 1498 | M28: =M53+N53+O53 -> 749 | N28: =D53+H53+L53 -> 749 | O28: 1498 | P28: =Input!$D$45 -> 2030 | Q28: VOLUME #5 | R28: =R53+S53+T53 -> 880 | S28: =U53+Y53+AC53 -> 880 | T28: 1760 | U28: =U53+V53+W53 -> 880 | V28: =T53+X53+AB53 -> 880 | W28: 1760 | X28: =X53+Y53+Z53 -> 880 | Y28: =S53+W53+AA53 -> 880 | Z28: 1760 | AA28: =AA53+AB53+AC53 -> 880 | AB28: =R53+V53+Z53 -> 880 | AC28: 1760 | AD28: =Input!$D$45 -> 2030 | AE28: VOLUME #5 | AF28: =AF53+AG53+AH53 -> 1010 | AG28: =AI53+AM53+AQ53 -> 1010 | AH28: 2020 | AI28: =AI53+AJ53+AK53 -> 1010 | AJ28: =AH53+AL53+AP53 -> 1010 | AK28: 2020 | AL28: =AL53+AM53+AN53 -> 1010 | AM28: =AG53+AK53+AO53 -> 1010 | AN28: 2020 | AO28: =AO53+AP53+AQ53 -> 1010 | AP28: =AF53+AJ53+AN53 -> 1010 | AQ28: 2020
B29: CONTROL LINK VOLUMES | D29: =ROUND(Input!$F$46*Input!C$91*Input!C$96,0) -> 829 | E29: =D7-D29 -> 831 | F29: 1660 | G29: =ROUND(Input!$H$46*Input!F$91*Input!F$96,0) -> 829 | H29: =E7-G29 -> 831 | I29: 1660 | J29: =ROUND(Input!$J$46*Input!I$91*Input!I$96,0) -> 829 | K29: =F7-J29 -> 831 | L29: 1660 | M29: =ROUND(Input!$L$46*Input!L$91*Input!L$96,0) -> 829 | N29: =G7-M29 -> 831 | O29: 1660 | P29: CONTROL LINK VOLUMES | R29: =ROUND(Input!$F$46*Input!D91*Input!D96,0) -> 972 | S29: =R7-R29 -> 968 | T29: 1940 | U29: =ROUND(Input!$H$46*Input!G91*Input!G96,0) -> 972 | V29: =S7-U29 -> 968 | W29: 1940 | X29: =ROUND(Input!$J$46*Input!J91*Input!J96,0) -> 972 | Y29: =T7-X29 -> 968 | Z29: 1940 | AA29: =ROUND(Input!$L$46*Input!M$91*Input!M$96,0) -> 972 | AB29: =U7-AA29 -> 968 | AC29: 1940 | AD29: CONTROL LINK VOLUMES | AF29: =ROUND(Input!$F$46*Input!E$91*Input!E$96,0) -> 1114 | AG29: =AF7-AF29 -> 1116 | AH29: 2230 | AI29: =ROUND(Input!$H$46*Input!H$91*Input!H$96,0) -> 1114 | AJ29: =AG7-AI29 -> 1116 | AK29: 2230 | AL29: =ROUND(Input!$J$46*Input!K$91*Input!K$96,0) -> 1114 | AM29: =AH7-AL29 -> 1116 | AN29: 2230 | AO29: =ROUND(Input!$L$46*Input!N$91*Input!N$96,0) -> 1114 | AP29: =AI7-AO29 -> 1116 | AQ29: 2230
B30: =Input!$D$46 -> 2040 | C30: VOLUME #1 | D30: =D55+E55+F55 -> 829 | E30: =G55+K55+O55 -> 829 | F30: 1658 | G30: =G55+H55+I55 -> 829 | H30: =F55+J55+N55 -> 829 | I30: 1658 | J30: =J55+K55+L55 -> 829 | K30: =E55+I55+M55 -> 829 | L30: 1658 | M30: =M55+N55+O55 -> 829 | N30: =D55+H55+L55 -> 829 | O30: 1658 | P30: =Input!$D$46 -> 2040 | Q30: VOLUME #1 | R30: =R55+S55+T55 -> 972 | S30: =U55+Y55+AC55 -> 972 | T30: 1944 | U30: =U55+V55+W55 -> 972 | V30: =T55+X55+AB55 -> 972 | W30: 1944 | X30: =X55+Y55+Z55 -> 972 | Y30: =S55+W55+AA55 -> 972 | Z30: 1944 | AA30: =AA55+AB55+AC55 -> 972 | AB30: =R55+V55+Z55 -> 972 | AC30: 1944 | AD30: =Input!$D$46 -> 2040 | AE30: VOLUME #1 | AF30: =AF55+AG55+AH55 -> 1114 | AG30: =AI55+AM55+AQ55 -> 1114 | AH30: 2228 | AI30: =AI55+AJ55+AK55 -> 1114 | AJ30: =AH55+AL55+AP55 -> 1114 | AK30: 2228 | AL30: =AL55+AM55+AN55 -> 1114 | AM30: =AG55+AK55+AO55 -> 1114 | AN30: 2228 | AO30: =AO55+AP55+AQ55 -> 1114 | AP30: =AF55+AJ55+AN55 -> 1114 | AQ30: 2228
B31: =Input!$D$46 -> 2040 | C31: VOLUME #2 | D31: =D56+E56+F56 -> 831 | E31: =G56+K56+O56 -> 831 | F31: 1662 | G31: =G56+H56+I56 -> 831 | H31: =F56+J56+N56 -> 831 | I31: 1662 | J31: =J56+K56+L56 -> 831 | K31: =E56+I56+M56 -> 831 | L31: 1662 | M31: =M56+N56+O56 -> 831 | N31: =D56+H56+L56 -> 831 | O31: 1662 | P31: =Input!$D$46 -> 2040 | Q31: VOLUME #2 | R31: =R56+S56+T56 -> 968 | S31: =U56+Y56+AC56 -> 968 | T31: 1936 | U31: =U56+V56+W56 -> 968 | V31: =T56+X56+AB56 -> 968 | W31: 1936 | X31: =X56+Y56+Z56 -> 968 | Y31: =S56+W56+AA56 -> 968 | Z31: 1936 | AA31: =AA56+AB56+AC56 -> 968 | AB31: =R56+V56+Z56 -> 968 | AC31: 1936 | AD31: =Input!$D$46 -> 2040 | AE31: VOLUME #2 | AF31: =AF56+AG56+AH56 -> 1116 | AG31: =AI56+AM56+AQ56 -> 1116 | AH31: 2232 | AI31: =AI56+AJ56+AK56 -> 1116 | AJ31: =AH56+AL56+AP56 -> 1116 | AK31: 2232 | AL31: =AL56+AM56+AN56 -> 1116 | AM31: =AG56+AK56+AO56 -> 1116 | AN31: 2232 | AO31: =AO56+AP56+AQ56 -> 1116 | AP31: =AF56+AJ56+AN56 -> 1116 | AQ31: 2232
B32: =Input!$D$46 -> 2040 | C32: VOLUME #3 | D32: =D57+E57+F57 -> 831 | E32: =G57+K57+O57 -> 831 | F32: 1662 | G32: =G57+H57+I57 -> 831 | H32: =F57+J57+N57 -> 831 | I32: 1662 | J32: =J57+K57+L57 -> 831 | K32: =E57+I57+M57 -> 831 | L32: 1662 | M32: =M57+N57+O57 -> 831 | N32: =D57+H57+L57 -> 831 | O32: 1662 | P32: =Input!$D$46 -> 2040 | Q32: VOLUME #3 | R32: =R57+S57+T57 -> 968 | S32: =U57+Y57+AC57 -> 968 | T32: 1936 | U32: =U57+V57+W57 -> 968 | V32: =T57+X57+AB57 -> 968 | W32: 1936 | X32: =X57+Y57+Z57 -> 968 | Y32: =S57+W57+AA57 -> 968 | Z32: 1936 | AA32: =AA57+AB57+AC57 -> 968 | AB32: =R57+V57+Z57 -> 968 | AC32: 1936 | AD32: =Input!$D$46 -> 2040 | AE32: VOLUME #3 | AF32: =AF57+AG57+AH57 -> 1116 | AG32: =AI57+AM57+AQ57 -> 1116 | AH32: 2232 | AI32: =AI57+AJ57+AK57 -> 1116 | AJ32: =AH57+AL57+AP57 -> 1116 | AK32: 2232 | AL32: =AL57+AM57+AN57 -> 1116 | AM32: =AG57+AK57+AO57 -> 1116 | AN32: 2232 | AO32: =AO57+AP57+AQ57 -> 1116 | AP32: =AF57+AJ57+AN57 -> 1116 | AQ32: 2232
B33: =Input!$D$46 -> 2040 | C33: VOLUME #4 | D33: =D58+E58+F58 -> 831 | E33: =G58+K58+O58 -> 831 | F33: 1662 | G33: =G58+H58+I58 -> 831 | H33: =F58+J58+N58 -> 831 | I33: 1662 | J33: =J58+K58+L58 -> 831 | K33: =E58+I58+M58 -> 831 | L33: 1662 | M33: =M58+N58+O58 -> 831 | N33: =D58+H58+L58 -> 831 | O33: 1662 | P33: =Input!$D$46 -> 2040 | Q33: VOLUME #4 | R33: =R58+S58+T58 -> 968 | S33: =U58+Y58+AC58 -> 968 | T33: 1936 | U33: =U58+V58+W58 -> 968 | V33: =T58+X58+AB58 -> 968 | W33: 1936 | X33: =X58+Y58+Z58 -> 968 | Y33: =S58+W58+AA58 -> 968 | Z33: 1936 | AA33: =AA58+AB58+AC58 -> 968 | AB33: =R58+V58+Z58 -> 968 | AC33: 1936 | AD33: =Input!$D$46 -> 2040 | AE33: VOLUME #4 | AF33: =AF58+AG58+AH58 -> 1116 | AG33: =AI58+AM58+AQ58 -> 1116 | AH33: 2232 | AI33: =AI58+AJ58+AK58 -> 1116 | AJ33: =AH58+AL58+AP58 -> 1116 | AK33: 2232 | AL33: =AL58+AM58+AN58 -> 1116 | AM33: =AG58+AK58+AO58 -> 1116 | AN33: 2232 | AO33: =AO58+AP58+AQ58 -> 1116 | AP33: =AF58+AJ58+AN58 -> 1116 | AQ33: 2232
B34: =Input!$D$46 -> 2040 | C34: VOLUME #5 | D34: =D59+E59+F59 -> 831 | E34: =G59+K59+O59 -> 831 | F34: 1662 | G34: =G59+H59+I59 -> 831 | H34: =F59+J59+N59 -> 831 | I34: 1662 | J34: =J59+K59+L59 -> 831 | K34: =E59+I59+M59 -> 831 | L34: 1662 | M34: =M59+N59+O59 -> 831 | N34: =D59+H59+L59 -> 831 | O34: 1662 | P34: =Input!$D$46 -> 2040 | Q34: VOLUME #5 | R34: =R59+S59+T59 -> 968 | S34: =U59+Y59+AC59 -> 968 | T34: 1936 | U34: =U59+V59+W59 -> 968 | V34: =T59+X59+AB59 -> 968 | W34: 1936 | X34: =X59+Y59+Z59 -> 968 | Y34: =S59+W59+AA59 -> 968 | Z34: 1936 | AA34: =AA59+AB59+AC59 -> 968 | AB34: =R59+V59+Z59 -> 968 | AC34: 1936 | AD34: =Input!$D$46 -> 2040 | AE34: VOLUME #5 | AF34: =AF59+AG59+AH59 -> 1116 | AG34: =AI59+AM59+AQ59 -> 1116 | AH34: 2232 | AI34: =AI59+AJ59+AK59 -> 1116 | AJ34: =AH59+AL59+AP59 -> 1116 | AK34: 2232 | AL34: =AL59+AM59+AN59 -> 1116 | AM34: =AG59+AK59+AO59 -> 1116 | AN34: 2232 | AO34: =AO59+AP59+AQ59 -> 1116 | AP34: =AF59+AJ59+AN59 -> 1116 | AQ34: 2232
D35: NORTH LEG | G35: EAST LEG | J35: SOUTH LEG | M35: WEST LEG | R35: NORTH LEG | U35: EAST LEG | X35: SOUTH LEG | AA35: WEST LEG | AF35: NORTH LEG | AI35: EAST LEG | AL35: SOUTH LEG | AO35: WEST LEG
D36: RIGHT | E36: THRU | F36: LEFT | G36: RIGHT | H36: THRU | I36: LEFT | J36: RIGHT | K36: THRU | L36: LEFT | M36: RIGHT | N36: THRU | O36: LEFT | R36: RIGHT | S36: THRU | T36: LEFT | U36: RIGHT | V36: THRU | W36: LEFT | X36: RIGHT | Y36: THRU | Z36: LEFT | AA36: RIGHT | AB36: THRU | AC36: LEFT | AF36: RIGHT | AG36: THRU | AH36: LEFT | AI36: RIGHT | AJ36: THRU | AK36: LEFT | AL36: RIGHT | AM36: THRU | AN36: LEFT | AO36: RIGHT | AP36: THRU | AQ36: LEFT
B37: =Input!$D$43 -> 2014 | C37: A.M. TURNS 1 | D37: =D11*Input!C70 -> 20 | E37: =D11*Input!D70 -> 600 | F37: =D11*Input!E70 -> 20 | G37: =G11*Input!F70 -> 20 | H37: =G11*Input!G70 -> 600 | I37: =G11*Input!H70 -> 20 | J37: =J11*Input!I70 -> 20 | K37: =J11*Input!J70 -> 600 | L37: =J11*Input!K70 -> 20 | M37: =M11*Input!L70 -> 20 | N37: =M11*Input!M70 -> 600 | O37: =M11*Input!N70 -> 20 | P37: =Input!$D$43 -> 2014 | Q37: MIIDAY TURNS 1 | R37: =R11*Input!C75 -> 25 | S37: =R11*Input!D75 -> 700 | T37: =R11*Input!E75 -> 25 | U37: =U11*Input!F75 -> 25 | V37: =U11*Input!G75 -> 700 | W37: =U11*Input!H75 -> 25 | X37: =X11*Input!I75 -> 25 | Y37: =X11*Input!J75 -> 700 | Z37: =X11*Input!K75 -> 25 | AA37: =AA11*Input!L75 -> 25 | AB37: =AA11*Input!M75 -> 700 | AC37: =AA11*Input!N75 -> 25 | AD37: =Input!$D$43 -> 2014 | AE37: P.M. TURNS 1 | AF37: =AF11*Input!C80 -> 30 | AG37: =AF11*Input!D80 -> 800 | AH37: =AF11*Input!E80 -> 30 | AI37: =AI11*Input!F80 -> 30 | AJ37: =AI11*Input!G80 -> 800 | AK37: =AI11*Input!H80 -> 30 | AL37: =AL11*Input!I80 -> 30 | AM37: =AL11*Input!J80 -> 800 | AN37: =AL11*Input!K80 -> 30 | AO37: =AO11*Input!L80 -> 30 | AP37: =AO11*Input!M80 -> 800 | AQ37: =AO11*Input!N80 -> 30
B38: =Input!$D$43 -> 2014 | C38: A.M. TURNS 2 | D38: =D37*(N11/(D37+H37+L37)) -> 20 | E38: =E37*(K11/(M37+I37+E37)) -> 600 | F38: =F37*(H11/(N37+J37+F37)) -> 20 | G38: =G37*(E11/(G37+K37+O37)) -> 20 | H38: =H37*(N11/(D37+H37+L37)) -> 600 | I38: =I37*(K11/(E37+I37+M37)) -> 20 | J38: =J37*(H11/(F37+J37+N37)) -> 20 | K38: =K37*(E11/(G37+K37+O37)) -> 600 | L38: =L37*(N11/(D37+H37+L37)) -> 20 | M38: =M37*(K11/(E37+I37+M37)) -> 20 | N38: =N37*(H11/(F37+J37+N37)) -> 600 | O38: =O37*(E11/(G37+K37+O37)) -> 20 | P38: =Input!$D$43 -> 2014 | Q38: MIDDAY TURNS 2 | R38: =R37*(AB11/(R37+V37+Z37)) -> 25 | S38: =S37*(Y11/(AA37+W37+S37)) -> 700 | T38: =T37*(V11/(AB37+X37+T37)) -> 25 | U38: =U37*(S11/(U37+Y37+AC37)) -> 25 | V38: =V37*(AB11/(R37+V37+Z37)) -> 700 | W38: =W37*(Y11/(S37+W37+AA37)) -> 25 | X38: =X37*(V11/(T37+X37+AB37)) -> 25 | Y38: =Y37*(S11/(U37+Y37+AC37)) -> 700 | Z38: =Z37*(AB11/(R37+V37+Z37)) -> 25 | AA38: =AA37*(Y11/(S37+W37+AA37)) -> 25 | AB38: =AB37*(V11/(T37+X37+AB37)) -> 700 | AC38: =AC37*(S11/(U37+Y37+AC37)) -> 25 | AD38: =Input!$D$43 -> 2014 | AE38: P.M. TURNS 2 | AF38: =AF37*(AP11/(AF37+AJ37+AN37)) -> 30 | AG38: =AG37*(AM11/(AO37+AK37+AG37)) -> 800 | AH38: =AH37*(AJ11/(AP37+AL37+AH37)) -> 30 | AI38: =AI37*(AG11/(AI37+AM37+AQ37)) -> 30 | AJ38: =AJ37*(AP11/(AF37+AJ37+AN37)) -> 800 | AK38: =AK37*(AM11/(AG37+AK37+AO37)) -> 30 | AL38: =AL37*(AJ11/(AH37+AL37+AP37)) -> 30 | AM38: =AM37*(AG11/(AI37+AM37+AQ37)) -> 800 | AN38: =AN37*(AP11/(AF37+AJ37+AN37)) -> 30 | AO38: =AO37*(AM11/(AG37+AK37+AO37)) -> 30 | AP38: =AP37*(AJ11/(AH37+AL37+AP37)) -> 800 | AQ38: =AQ37*(AG11/(AI37+AM37+AQ37)) -> 30
B39: =Input!$D$43 -> 2014 | C39: A.M. TURNS 3 | D39: =D38*(D11/(D38+E38+F38))*(N11/((D38*(D11/(D38+E38+F38)))+(H38*(G11/(G38+H38+I38)))+(L38*(J11/(J38+K38+L38))))) -> 20 | E39: =E38*(D11/(D38+E38+F38))*(K11/((E38*(D11/(D38+E38+F38)))+(I38*(G11/(G38+H38+I38)))+(M38*(M11/(M38+N38+O38))))) -> 600 | F39: =F38*(D11/(D38+E38+F38))*(H11/((F38*(D11/(D38+E38+F38)))+(J38*(J11/(J38+K38+L38)))+(N38*(M11/(M38+N38+O38))))) -> 20 | G39: =G38*(G11/(G38+H38+I38))*(E11/((G38*(G11/(G38+H38+I38)))+(K38*(J11/(J38+K38+L38)))+(O38*(M11/(M38+N38+O38))))) -> 20 | H39: =H38*(G11/(G38+H38+I38))*(N11/((H38*(G11/(G38+H38+I38)))+(D38*(D11/(D38+E38+F38)))+(L38*(J11/(J38+K38+L38))))) -> 600 | I39: =I38*(G11/(G38+H38+I38))*(K11/((I38*(G11/(G38+H38+I38)))+(E38*(D11/(D38+E38+F38)))+(M38*(M11/(M38+N38+O38))))) -> 20 | J39: =J38*(J11/(J38+K38+L38))*(H11/((J38*(J11/(J38+K38+L38)))+(N38*(M11/(M38+N38+O38)))+(F38*(D11/(D38+E38+F38))))) -> 20 | K39: =K38*(J11/(J38+K38+L38))*(E11/((K38*(J11/(J38+K38+L38)))+(G38*(G11/(G38+H38+I38)))+(O38*(M11/(M38+N38+O38))))) -> 600 | L39: =L38*(J11/(J38+K38+L38))*(N11/((L38*(J11/(J38+K38+L38)))+(H38*(G11/(G38+H38+I38)))+(D38*(D11/(D38+E38+F38))))) -> 20 | M39: =M38*(M11/(M38+N38+O38))*(K11/((M38*(M11/(M38+N38+O38)))+(I38*(G11/(G38+H38+I38)))+(E38*(D11/(D38+E38+F38))))) -> 20 | N39: =N38*(M11/(M38+N38+O38))*(H11/((N38*(M11/(M38+N38+O38)))+(J38*(J11/(J38+K38+L38)))+(F38*(D11/(D38+E38+F38))))) -> 600 | O39: =O38*(M11/(M38+N38+O38))*(E11/((O38*(M11/(M38+N38+O38)))+(K38*(J11/(J38+K38+L38)))+(G38*(G11/(G38+H38+I38))))) -> 20 | P39: =Input!$D$43 -> 2014 | Q39: MIDDAY TURNS 3 | R39: =R38*(R11/(R38+S38+T38))*(AB11/((R38*(R11/(R38+S38+T38)))+(V38*(U11/(U38+V38+W38)))+(Z38*(X11/(X38+Y38+Z38))))) -> 25 | S39: =S38*(R11/(R38+S38+T38))*(Y11/((S38*(R11/(R38+S38+T38)))+(W38*(U11/(U38+V38+W38)))+(AA38*(AA11/(AA38+AB38+AC38))))) -> 700 | T39: =T38*(R11/(R38+S38+T38))*(V11/((T38*(R11/(R38+S38+T38)))+(X38*(X11/(X38+Y38+Z38)))+(AB38*(AA11/(AA38+AB38+AC38))))) -> 25 | U39: =U38*(U11/(U38+V38+W38))*(S11/((U38*(U11/(U38+V38+W38)))+(Y38*(X11/(X38+Y38+Z38)))+(AC38*(AA11/(AA38+AB38+AC38))))) -> 25 | V39: =V38*(U11/(U38+V38+W38))*(AB11/((V38*(U11/(U38+V38+W38)))+(R38*(R11/(R38+S38+T38)))+(Z38*(X11/(X38+Y38+Z38))))) -> 700 | W39: =W38*(U11/(U38+V38+W38))*(Y11/((W38*(U11/(U38+V38+W38)))+(S38*(R11/(R38+S38+T38)))+(AA38*(AA11/(AA38+AB38+AC38))))) -> 25 | X39: =X38*(X11/(X38+Y38+Z38))*(V11/((X38*(X11/(X38+Y38+Z38)))+(AB38*(AA11/(AA38+AB38+AC38)))+(T38*(R11/(R38+S38+T38))))) -> 25 | Y39: =Y38*(X11/(X38+Y38+Z38))*(S11/((Y38*(X11/(X38+Y38+Z38)))+(U38*(U11/(U38+V38+W38)))+(AC38*(AA11/(AA38+AB38+AC38))))) -> 700 | Z39: =Z38*(X11/(X38+Y38+Z38))*(AB11/((Z38*(X11/(X38+Y38+Z38)))+(V38*(U11/(U38+V38+W38)))+(R38*(R11/(R38+S38+T38))))) -> 25 | AA39: =AA38*(AA11/(AA38+AB38+AC38))*(Y11/((AA38*(AA11/(AA38+AB38+AC38)))+(W38*(U11/(U38+V38+W38)))+(S38*(R11/(R38+S38+T38))))) -> 25 | AB39: =AB38*(AA11/(AA38+AB38+AC38))*(V11/((AB38*(AA11/(AA38+AB38+AC38)))+(X38*(X11/(X38+Y38+Z38)))+(T38*(R11/(R38+S38+T38))))) -> 700 | AC39: =AC38*(AA11/(AA38+AB38+AC38))*(S11/((AC38*(AA11/(AA38+AB38+AC38)))+(Y38*(X11/(X38+Y38+Z38)))+(U38*(U11/(U38+V38+W38))))) -> 25 | AD39: =Input!$D$43 -> 2014 | AE39: P.M. TURNS 3 | AF39: =AF38*(AF11/(AF38+AG38+AH38))*(AP11/((AF38*(AF11/(AF38+AG38+AH38)))+(AJ38*(AI11/(AI38+AJ38+AK38)))+(AN38*(AL11/(AL38+AM38+AN38))))) -> 30 | AG39: =AG38*(AF11/(AF38+AG38+AH38))*(AM11/((AG38*(AF11/(AF38+AG38+AH38)))+(AK38*(AI11/(AI38+AJ38+AK38)))+(AO38*(AO11/(AO38+AP38+AQ38))))) -> 800 | AH39: =AH38*(AF11/(AF38+AG38+AH38))*(AJ11/((AH38*(AF11/(AF38+AG38+AH38)))+(AL38*(AL11/(AL38+AM38+AN38)))+(AP38*(AO11/(AO38+AP38+AQ38))))) -> 30 | AI39: =AI38*(AI11/(AI38+AJ38+AK38))*(AG11/((AI38*(AI11/(AI38+AJ38+AK38)))+(AM38*(AL11/(AL38+AM38+AN38)))+(AQ38*(AO11/(AO38+AP38+AQ38))))) -> 30 | AJ39: =AJ38*(AI11/(AI38+AJ38+AK38))*(AP11/((AJ38*(AI11/(AI38+AJ38+AK38)))+(AF38*(AF11/(AF38+AG38+AH38)))+(AN38*(AL11/(AL38+AM38+AN38))))) -> 800 | AK39: =AK38*(AI11/(AI38+AJ38+AK38))*(AM11/((AK38*(AI11/(AI38+AJ38+AK38)))+(AG38*(AF11/(AF38+AG38+AH38)))+(AO38*(AO11/(AO38+AP38+AQ38))))) -> 30 | AL39: =AL38*(AL11/(AL38+AM38+AN38))*(AJ11/((AL38*(AL11/(AL38+AM38+AN38)))+(AP38*(AO11/(AO38+AP38+AQ38)))+(AH38*(AF11/(AF38+AG38+AH38))))) -> 30 | AM39: =AM38*(AL11/(AL38+AM38+AN38))*(AG11/((AM38*(AL11/(AL38+AM38+AN38)))+(AI38*(AI11/(AI38+AJ38+AK38)))+(AQ38*(AO11/(AO38+AP38+AQ38))))) -> 800 | AN39: =AN38*(AL11/(AL38+AM38+AN38))*(AP11/((AN38*(AL11/(AL38+AM38+AN38)))+(AJ38*(AI11/(AI38+AJ38+AK38)))+(AF38*(AF11/(AF38+AG38+AH38))))) -> 30 | AO39: =AO38*(AO11/(AO38+AP38+AQ38))*(AM11/((AO38*(AO11/(AO38+AP38+AQ38)))+(AK38*(AI11/(AI38+AJ38+AK38)))+(AG38*(AF11/(AF38+AG38+AH38))))) -> 30 | AP39: =AP38*(AO11/(AO38+AP38+AQ38))*(AJ11/((AP38*(AO11/(AO38+AP38+AQ38)))+(AL38*(AL11/(AL38+AM38+AN38)))+(AH38*(AF11/(AF38+AG38+AH38))))) -> 800 | AQ39: =AQ38*(AO11/(AO38+AP38+AQ38))*(AG11/((AQ38*(AO11/(AO38+AP38+AQ38)))+(AM38*(AL11/(AL38+AM38+AN38)))+(AI38*(AI11/(AI38+AJ38+AK38))))) -> 30
B40: =Input!$D$43 -> 2014 | C40: A.M. TURNS 4 | D40: =D39*(D11/(D39+E39+F39))*(N11/((D39*(D11/(D39+E39+F39)))+(H39*(G11/(G39+H39+I39)))+(L39*(J11/(J39+K39+L39))))) -> 20 | E40: =E39*(D11/(D39+E39+F39))*(K11/((E39*(D11/(D39+E39+F39)))+(I39*(G11/(G39+H39+I39)))+(M39*(M11/(M39+N39+O39))))) -> 600 | F40: =F39*(D11/(D39+E39+F39))*(H11/((F39*(D11/(D39+E39+F39)))+(J39*(J11/(J39+K39+L39)))+(N39*(M11/(M39+N39+O39))))) -> 20 | G40: =G39*(G11/(G39+H39+I39))*(E11/((G39*(G11/(G39+H39+I39)))+(K39*(J11/(J39+K39+L39)))+(O39*(M11/(M39+N39+O39))))) -> 20 | H40: =H39*(G11/(G39+H39+I39))*(N11/((H39*(G11/(G39+H39+I39)))+(D39*(D11/(D39+E39+F39)))+(L39*(J11/(J39+K39+L39))))) -> 600 | I40: =I39*(G11/(G39+H39+I39))*(K11/((I39*(G11/(G39+H39+I39)))+(E39*(D11/(D39+E39+F39)))+(M39*(M11/(M39+N39+O39))))) -> 20 | J40: =J39*(J11/(J39+K39+L39))*(H11/((J39*(J11/(J39+K39+L39)))+(N39*(M11/(M39+N39+O39)))+(F39*(D11/(D39+E39+F39))))) -> 20 | K40: =K39*(J11/(J39+K39+L39))*(E11/((K39*(J11/(J39+K39+L39)))+(G39*(G11/(G39+H39+I39)))+(O39*(M11/(M39+N39+O39))))) -> 600 | L40: =L39*(J11/(J39+K39+L39))*(N11/((L39*(J11/(J39+K39+L39)))+(H39*(G11/(G39+H39+I39)))+(D39*(D11/(D39+E39+F39))))) -> 20 | M40: =M39*(M11/(M39+N39+O39))*(K11/((M39*(M11/(M39+N39+O39)))+(I39*(G11/(G39+H39+I39)))+(E39*(D11/(D39+E39+F39))))) -> 20 | N40: =N39*(M11/(M39+N39+O39))*(H11/((N39*(M11/(M39+N39+O39)))+(J39*(J11/(J39+K39+L39)))+(F39*(D11/(D39+E39+F39))))) -> 600 | O40: =O39*(M11/(M39+N39+O39))*(E11/((O39*(M11/(M39+N39+O39)))+(K39*(J11/(J39+K39+L39)))+(G39*(G11/(G39+H39+I39))))) -> 20 | P40: =Input!$D$43 -> 2014 | Q40: MIDDAY TURNS 4 | R40: =R39*(R11/(R39+S39+T39))*(AB11/((R39*(R11/(R39+S39+T39)))+(V39*(U11/(U39+V39+W39)))+(Z39*(X11/(X39+Y39+Z39))))) -> 25 | S40: =S39*(R11/(R39+S39+T39))*(Y11/((S39*(R11/(R39+S39+T39)))+(W39*(U11/(U39+V39+W39)))+(AA39*(AA11/(AA39+AB39+AC39))))) -> 700 | T40: =T39*(R11/(R39+S39+T39))*(V11/((T39*(R11/(R39+S39+T39)))+(X39*(X11/(X39+Y39+Z39)))+(AB39*(AA11/(AA39+AB39+AC39))))) -> 25 | U40: =U39*(U11/(U39+V39+W39))*(S11/((U39*(U11/(U39+V39+W39)))+(Y39*(X11/(X39+Y39+Z39)))+(AC39*(AA11/(AA39+AB39+AC39))))) -> 25 | V40: =V39*(U11/(U39+V39+W39))*(AB11/((V39*(U11/(U39+V39+W39)))+(R39*(R11/(R39+S39+T39)))+(Z39*(X11/(X39+Y39+Z39))))) -> 700 | W40: =W39*(U11/(U39+V39+W39))*(Y11/((W39*(U11/(U39+V39+W39)))+(S39*(R11/(R39+S39+T39)))+(AA39*(AA11/(AA39+AB39+AC39))))) -> 25 | X40: =X39*(X11/(X39+Y39+Z39))*(V11/((X39*(X11/(X39+Y39+Z39)))+(AB39*(AA11/(AA39+AB39+AC39)))+(T39*(R11/(R39+S39+T39))))) -> 25 | Y40: =Y39*(X11/(X39+Y39+Z39))*(S11/((Y39*(X11/(X39+Y39+Z39)))+(U39*(U11/(U39+V39+W39)))+(AC39*(AA11/(AA39+AB39+AC39))))) -> 700 | Z40: =Z39*(X11/(X39+Y39+Z39))*(AB11/((Z39*(X11/(X39+Y39+Z39)))+(V39*(U11/(U39+V39+W39)))+(R39*(R11/(R39+S39+T39))))) -> 25 | AA40: =AA39*(AA11/(AA39+AB39+AC39))*(Y11/((AA39*(AA11/(AA39+AB39+AC39)))+(W39*(U11/(U39+V39+W39)))+(S39*(R11/(R39+S39+T39))))) -> 25 | AB40: =AB39*(AA11/(AA39+AB39+AC39))*(V11/((AB39*(AA11/(AA39+AB39+AC39)))+(X39*(X11/(X39+Y39+Z39)))+(T39*(R11/(R39+S39+T39))))) -> 700 | AC40: =AC39*(AA11/(AA39+AB39+AC39))*(S11/((AC39*(AA11/(AA39+AB39+AC39)))+(Y39*(X11/(X39+Y39+Z39)))+(U39*(U11/(U39+V39+W39))))) -> 25 | AD40: =Input!$D$43 -> 2014 | AE40: P.M. TURNS 4 | AF40: =AF39*(AF11/(AF39+AG39+AH39))*(AP11/((AF39*(AF11/(AF39+AG39+AH39)))+(AJ39*(AI11/(AI39+AJ39+AK39)))+(AN39*(AL11/(AL39+AM39+AN39))))) -> 30 | AG40: =AG39*(AF11/(AF39+AG39+AH39))*(AM11/((AG39*(AF11/(AF39+AG39+AH39)))+(AK39*(AI11/(AI39+AJ39+AK39)))+(AO39*(AO11/(AO39+AP39+AQ39))))) -> 800 | AH40: =AH39*(AF11/(AF39+AG39+AH39))*(AJ11/((AH39*(AF11/(AF39+AG39+AH39)))+(AL39*(AL11/(AL39+AM39+AN39)))+(AP39*(AO11/(AO39+AP39+AQ39))))) -> 30 | AI40: =AI39*(AI11/(AI39+AJ39+AK39))*(AG11/((AI39*(AI11/(AI39+AJ39+AK39)))+(AM39*(AL11/(AL39+AM39+AN39)))+(AQ39*(AO11/(AO39+AP39+AQ39))))) -> 30 | AJ40: =AJ39*(AI11/(AI39+AJ39+AK39))*(AP11/((AJ39*(AI11/(AI39+AJ39+AK39)))+(AF39*(AF11/(AF39+AG39+AH39)))+(AN39*(AL11/(AL39+AM39+AN39))))) -> 800 | AK40: =AK39*(AI11/(AI39+AJ39+AK39))*(AM11/((AK39*(AI11/(AI39+AJ39+AK39)))+(AG39*(AF11/(AF39+AG39+AH39)))+(AO39*(AO11/(AO39+AP39+AQ39))))) -> 30 | AL40: =AL39*(AL11/(AL39+AM39+AN39))*(AJ11/((AL39*(AL11/(AL39+AM39+AN39)))+(AP39*(AO11/(AO39+AP39+AQ39)))+(AH39*(AF11/(AF39+AG39+AH39))))) -> 30 | AM40: =AM39*(AL11/(AL39+AM39+AN39))*(AG11/((AM39*(AL11/(AL39+AM39+AN39)))+(AI39*(AI11/(AI39+AJ39+AK39)))+(AQ39*(AO11/(AO39+AP39+AQ39))))) -> 800 | AN40: =AN39*(AL11/(AL39+AM39+AN39))*(AP11/((AN39*(AL11/(AL39+AM39+AN39)))+(AJ39*(AI11/(AI39+AJ39+AK39)))+(AF39*(AF11/(AF39+AG39+AH39))))) -> 30 | AO40: =AO39*(AO11/(AO39+AP39+AQ39))*(AM11/((AO39*(AO11/(AO39+AP39+AQ39)))+(AK39*(AI11/(AI39+AJ39+AK39)))+(AG39*(AF11/(AF39+AG39+AH39))))) -> 30 | AP40: =AP39*(AO11/(AO39+AP39+AQ39))*(AJ11/((AP39*(AO11/(AO39+AP39+AQ39)))+(AL39*(AL11/(AL39+AM39+AN39)))+(AH39*(AF11/(AF39+AG39+AH39))))) -> 800 | AQ40: =AQ39*(AO11/(AO39+AP39+AQ39))*(AG11/((AQ39*(AO11/(AO39+AP39+AQ39)))+(AM39*(AL11/(AL39+AM39+AN39)))+(AI39*(AI11/(AI39+AJ39+AK39))))) -> 30
B41: =Input!$D$43 -> 2014 | C41: A.M. TURNS 5 | D41: =D40*(D11/(D40+E40+F40))*(N11/((D40*(D11/(D40+E40+F40)))+(H40*(G11/(G40+H40+I40)))+(L40*(J11/(J40+K40+L40))))) -> 20 | E41: =E40*(D11/(D40+E40+F40))*(K11/((E40*(D11/(D40+E40+F40)))+(I40*(G11/(G40+H40+I40)))+(M40*(M11/(M40+N40+O40))))) -> 600 | F41: =F40*(D11/(D40+E40+F40))*(H11/((F40*(D11/(D40+E40+F40)))+(J40*(J11/(J40+K40+L40)))+(N40*(M11/(M40+N40+O40))))) -> 20 | G41: =G40*(G11/(G40+H40+I40))*(E11/((G40*(G11/(G40+H40+I40)))+(K40*(J11/(J40+K40+L40)))+(O40*(M11/(M40+N40+O40))))) -> 20 | H41: =H40*(G11/(G40+H40+I40))*(N11/((H40*(G11/(G40+H40+I40)))+(D40*(D11/(D40+E40+F40)))+(L40*(J11/(J40+K40+L40))))) -> 600 | I41: =I40*(G11/(G40+H40+I40))*(K11/((I40*(G11/(G40+H40+I40)))+(E40*(D11/(D40+E40+F40)))+(M40*(M11/(M40+N40+O40))))) -> 20 | J41: =J40*(J11/(J40+K40+L40))*(H11/((J40*(J11/(J40+K40+L40)))+(N40*(M11/(M40+N40+O40)))+(F40*(D11/(D40+E40+F40))))) -> 20 | K41: =K40*(J11/(J40+K40+L40))*(E11/((K40*(J11/(J40+K40+L40)))+(G40*(G11/(G40+H40+I40)))+(O40*(M11/(M40+N40+O40))))) -> 600 | L41: =L40*(J11/(J40+K40+L40))*(N11/((L40*(J11/(J40+K40+L40)))+(H40*(G11/(G40+H40+I40)))+(D40*(D11/(D40+E40+F40))))) -> 20 | M41: =M40*(M11/(M40+N40+O40))*(K11/((M40*(M11/(M40+N40+O40)))+(I40*(G11/(G40+H40+I40)))+(E40*(D11/(D40+E40+F40))))) -> 20 | N41: =N40*(M11/(M40+N40+O40))*(H11/((N40*(M11/(M40+N40+O40)))+(J40*(J11/(J40+K40+L40)))+(F40*(D11/(D40+E40+F40))))) -> 600 | O41: =O40*(M11/(M40+N40+O40))*(E11/((O40*(M11/(M40+N40+O40)))+(K40*(J11/(J40+K40+L40)))+(G40*(G11/(G40+H40+I40))))) -> 20 | P41: =Input!$D$43 -> 2014 | Q41: MIDDAY TURNS 5 | R41: =R40*(R11/(R40+S40+T40))*(AB11/((R40*(R11/(R40+S40+T40)))+(V40*(U11/(U40+V40+W40)))+(Z40*(X11/(X40+Y40+Z40))))) -> 25 | S41: =S40*(R11/(R40+S40+T40))*(Y11/((S40*(R11/(R40+S40+T40)))+(W40*(U11/(U40+V40+W40)))+(AA40*(AA11/(AA40+AB40+AC40))))) -> 700 | T41: =T40*(R11/(R40+S40+T40))*(V11/((T40*(R11/(R40+S40+T40)))+(X40*(X11/(X40+Y40+Z40)))+(AB40*(AA11/(AA40+AB40+AC40))))) -> 25 | U41: =U40*(U11/(U40+V40+W40))*(S11/((U40*(U11/(U40+V40+W40)))+(Y40*(X11/(X40+Y40+Z40)))+(AC40*(AA11/(AA40+AB40+AC40))))) -> 25 | V41: =V40*(U11/(U40+V40+W40))*(AB11/((V40*(U11/(U40+V40+W40)))+(R40*(R11/(R40+S40+T40)))+(Z40*(X11/(X40+Y40+Z40))))) -> 700 | W41: =W40*(U11/(U40+V40+W40))*(Y11/((W40*(U11/(U40+V40+W40)))+(S40*(R11/(R40+S40+T40)))+(AA40*(AA11/(AA40+AB40+AC40))))) -> 25 | X41: =X40*(X11/(X40+Y40+Z40))*(V11/((X40*(X11/(X40+Y40+Z40)))+(AB40*(AA11/(AA40+AB40+AC40)))+(T40*(R11/(R40+S40+T40))))) -> 25 | Y41: =Y40*(X11/(X40+Y40+Z40))*(S11/((Y40*(X11/(X40+Y40+Z40)))+(U40*(U11/(U40+V40+W40)))+(AC40*(AA11/(AA40+AB40+AC40))))) -> 700 | Z41: =Z40*(X11/(X40+Y40+Z40))*(AB11/((Z40*(X11/(X40+Y40+Z40)))+(V40*(U11/(U40+V40+W40)))+(R40*(R11/(R40+S40+T40))))) -> 25 | AA41: =AA40*(AA11/(AA40+AB40+AC40))*(Y11/((AA40*(AA11/(AA40+AB40+AC40)))+(W40*(U11/(U40+V40+W40)))+(S40*(R11/(R40+S40+T40))))) -> 25 | AB41: =AB40*(AA11/(AA40+AB40+AC40))*(V11/((AB40*(AA11/(AA40+AB40+AC40)))+(X40*(X11/(X40+Y40+Z40)))+(T40*(R11/(R40+S40+T40))))) -> 700 | AC41: =AC40*(AA11/(AA40+AB40+AC40))*(S11/((AC40*(AA11/(AA40+AB40+AC40)))+(Y40*(X11/(X40+Y40+Z40)))+(U40*(U11/(U40+V40+W40))))) -> 25 | AD41: =Input!$D$43 -> 2014 | AE41: P.M. TURNS 5 | AF41: =AF40*(AF11/(AF40+AG40+AH40))*(AP11/((AF40*(AF11/(AF40+AG40+AH40)))+(AJ40*(AI11/(AI40+AJ40+AK40)))+(AN40*(AL11/(AL40+AM40+AN40))))) -> 30 | AG41: =AG40*(AF11/(AF40+AG40+AH40))*(AM11/((AG40*(AF11/(AF40+AG40+AH40)))+(AK40*(AI11/(AI40+AJ40+AK40)))+(AO40*(AO11/(AO40+AP40+AQ40))))) -> 800 | AH41: =AH40*(AF11/(AF40+AG40+AH40))*(AJ11/((AH40*(AF11/(AF40+AG40+AH40)))+(AL40*(AL11/(AL40+AM40+AN40)))+(AP40*(AO11/(AO40+AP40+AQ40))))) -> 30 | AI41: =AI40*(AI11/(AI40+AJ40+AK40))*(AG11/((AI40*(AI11/(AI40+AJ40+AK40)))+(AM40*(AL11/(AL40+AM40+AN40)))+(AQ40*(AO11/(AO40+AP40+AQ40))))) -> 30 | AJ41: =AJ40*(AI11/(AI40+AJ40+AK40))*(AP11/((AJ40*(AI11/(AI40+AJ40+AK40)))+(AF40*(AF11/(AF40+AG40+AH40)))+(AN40*(AL11/(AL40+AM40+AN40))))) -> 800 | AK41: =AK40*(AI11/(AI40+AJ40+AK40))*(AM11/((AK40*(AI11/(AI40+AJ40+AK40)))+(AG40*(AF11/(AF40+AG40+AH40)))+(AO40*(AO11/(AO40+AP40+AQ40))))) -> 30 | AL41: =AL40*(AL11/(AL40+AM40+AN40))*(AJ11/((AL40*(AL11/(AL40+AM40+AN40)))+(AP40*(AO11/(AO40+AP40+AQ40)))+(AH40*(AF11/(AF40+AG40+AH40))))) -> 30 | AM41: =AM40*(AL11/(AL40+AM40+AN40))*(AG11/((AM40*(AL11/(AL40+AM40+AN40)))+(AI40*(AI11/(AI40+AJ40+AK40)))+(AQ40*(AO11/(AO40+AP40+AQ40))))) -> 800 | AN41: =AN40*(AL11/(AL40+AM40+AN40))*(AP11/((AN40*(AL11/(AL40+AM40+AN40)))+(AJ40*(AI11/(AI40+AJ40+AK40)))+(AF40*(AF11/(AF40+AG40+AH40))))) -> 30 | AO41: =AO40*(AO11/(AO40+AP40+AQ40))*(AM11/((AO40*(AO11/(AO40+AP40+AQ40)))+(AK40*(AI11/(AI40+AJ40+AK40)))+(AG40*(AF11/(AF40+AG40+AH40))))) -> 30 | AP41: =AP40*(AO11/(AO40+AP40+AQ40))*(AJ11/((AP40*(AO11/(AO40+AP40+AQ40)))+(AL40*(AL11/(AL40+AM40+AN40)))+(AH40*(AF11/(AF40+AG40+AH40))))) -> 800 | AQ41: =AQ40*(AO11/(AO40+AP40+AQ40))*(AG11/((AQ40*(AO11/(AO40+AP40+AQ40)))+(AM40*(AL11/(AL40+AM40+AN40)))+(AI40*(AI11/(AI40+AJ40+AK40))))) -> 30
B43: =Input!$D$44 -> 2020 | C43: A.M. TURNS 1 | D43: =D17*Input!C71 -> 41.73020833 | E43: =D17*Input!D71 -> 595.5395833 | F43: =D17*Input!E71 -> 41.73020833 | G43: =G17*Input!F71 -> 41.73020833 | H43: =G17*Input!G71 -> 595.5395833 | I43: =G17*Input!H71 -> 41.73020833 | J43: =J17*Input!I71 -> 41.73020833 | K43: =J17*Input!J71 -> 595.5395833 | L43: =J17*Input!K71 -> 41.73020833 | M43: =M17*Input!L71 -> 41.73020833 | N43: =M17*Input!M71 -> 595.5395833 | O43: =M17*Input!N71 -> 41.73020833 | P43: =Input!$D$44 -> 2020 | Q43: MIDDAY TURNS 1 | R43: =R17*Input!C76 -> 50.41333333 | S43: =R17*Input!D76 -> 695.1733333 | T43: =R17*Input!E76 -> 50.41333333 | U43: =U17*Input!F76 -> 50.41333333 | V43: =U17*Input!G76 -> 695.1733333 | W43: =U17*Input!H76 -> 50.41333333 | X43: =X17*Input!I76 -> 50.41333333 | Y43: =X17*Input!J76 -> 695.1733333 | Z43: =X17*Input!K76 -> 50.41333333 | AA43: =AA17*Input!L76 -> 50.41333333 | AB43: =AA17*Input!M76 -> 695.1733333 | AC43: =AA17*Input!N76 -> 50.41333333 | AD43: =Input!$D$44 -> 2020 | AE43: P.M. TURNS 1 | AF43: =AF17*Input!C81 -> 59.03255814 | AG43: =AF17*Input!D81 -> 793.9348837 | AH43: =AF17*Input!E81 -> 59.03255814 | AI43: =AI17*Input!F81 -> 59.03255814 | AJ43: =AI17*Input!G81 -> 793.9348837 | AK43: =AI17*Input!H81 -> 59.03255814 | AL43: =AL17*Input!I81 -> 59.03255814 | AM43: =AL17*Input!J81 -> 793.9348837 | AN43: =AL17*Input!K81 -> 59.03255814 | AO43: =AO17*Input!L81 -> 59.03255814 | AP43: =AO17*Input!M81 -> 793.9348837 | AQ43: =AO17*Input!N81 -> 59.03255814
B44: =Input!$D$44 -> 2020 | C44: A.M. TURNS 2 | D44: =D43*(N17/(D43+H43+L43)) -> 41.853125 | E44: =E43*(K17/(M43+I43+E43)) -> 597.29375 | F44: =F43*(H17/(N43+J43+F43)) -> 41.853125 | G44: =G43*(E17/(G43+K43+O43)) -> 41.853125 | H44: =H43*(N17/(D43+H43+L43)) -> 597.29375 | I44: =I43*(K17/(E43+I43+M43)) -> 41.853125 | J44: =J43*(H17/(F43+J43+N43)) -> 41.853125 | K44: =K43*(E17/(G43+K43+O43)) -> 597.29375 | L44: =L43*(N17/(D43+H43+L43)) -> 41.853125 | M44: =M43*(K17/(E43+I43+M43)) -> 41.853125 | N44: =N43*(H17/(F43+J43+N43)) -> 597.29375 | O44: =O43*(E17/(G43+K43+O43)) -> 41.853125 | P44: =Input!$D$44 -> 2020 | Q44: MIDDAY TURNS 2 | R44: =R43*(AB17/(R43+V43+Z43)) -> 50.28666667 | S44: =S43*(Y17/(AA43+W43+S43)) -> 693.4266667 | T44: =T43*(V17/(AB43+X43+T43)) -> 50.28666667 | U44: =U43*(S17/(U43+Y43+AC43)) -> 50.28666667 | V44: =V43*(AB17/(R43+V43+Z43)) -> 693.4266667 | W44: =W43*(Y17/(S43+W43+AA43)) -> 50.28666667 | X44: =X43*(V17/(T43+X43+AB43)) -> 50.28666667 | Y44: =Y43*(S17/(U43+Y43+AC43)) -> 693.4266667 | Z44: =Z43*(AB17/(R43+V43+Z43)) -> 50.28666667 | AA44: =AA43*(Y17/(S43+W43+AA43)) -> 50.28666667 | AB44: =AB43*(V17/(T43+X43+AB43)) -> 693.4266667 | AC44: =AC43*(S17/(U43+Y43+AC43)) -> 50.28666667 | AD44: =Input!$D$44 -> 2020 | AE44: P.M. TURNS 2 | AF44: =AF43*(AP17/(AF43+AJ43+AN43)) -> 58.77364341 | AG44: =AG43*(AM17/(AO43+AK43+AG43)) -> 790.4527132 | AH44: =AH43*(AJ17/(AP43+AL43+AH43)) -> 58.77364341 | AI44: =AI43*(AG17/(AI43+AM43+AQ43)) -> 58.77364341 | AJ44: =AJ43*(AP17/(AF43+AJ43+AN43)) -> 790.4527132 | AK44: =AK43*(AM17/(AG43+AK43+AO43)) -> 58.77364341 | AL44: =AL43*(AJ17/(AH43+AL43+AP43)) -> 58.77364341 | AM44: =AM43*(AG17/(AI43+AM43+AQ43)) -> 790.4527132 | AN44: =AN43*(AP17/(AF43+AJ43+AN43)) -> 58.77364341 | AO44: =AO43*(AM17/(AG43+AK43+AO43)) -> 58.77364341 | AP44: =AP43*(AJ17/(AH43+AL43+AP43)) -> 790.4527132 | AQ44: =AQ43*(AG17/(AI43+AM43+AQ43)) -> 58.77364341
B45: =Input!$D$44 -> 2020 | C45: A.M. TURNS 3 | D45: =D44*($D17/(D44+E44+F44))*($N17/((D44*($D17/(D44+E44+F44)))+(H44*($G17/(G44+H44+I44)))+(L44*($J17/(J44+K44+L44))))) -> 41.853125 | E45: =E44*($D17/(D44+E44+F44))*($K17/((E44*($D17/(D44+E44+F44)))+(I44*($G17/(G44+H44+I44)))+(M44*($M17/(M44+N44+O44))))) -> 597.29375 | F45: =F44*($D17/(D44+E44+F44))*($H17/((F44*($D17/(D44+E44+F44)))+(J44*($J17/(J44+K44+L44)))+(N44*($M17/(M44+N44+O44))))) -> 41.853125 | G45: =G44*($G17/(G44+H44+I44))*($E17/((G44*($G17/(G44+H44+I44)))+(K44*($J17/(J44+K44+L44)))+(O44*($M17/(M44+N44+O44))))) -> 41.853125 | H45: =H44*($G17/(G44+H44+I44))*($N17/((H44*($G17/(G44+H44+I44)))+(D44*($D17/(D44+E44+F44)))+(L44*($J17/(J44+K44+L44))))) -> 597.29375 | I45: =I44*($G17/(G44+H44+I44))*($K17/((I44*($G17/(G44+H44+I44)))+(E44*($D17/(D44+E44+F44)))+(M44*($M17/(M44+N44+O44))))) -> 41.853125 | J45: =J44*($J17/(J44+K44+L44))*($H17/((J44*($J17/(J44+K44+L44)))+(N44*($M17/(M44+N44+O44)))+(F44*($D17/(D44+E44+F44))))) -> 41.853125 | K45: =K44*($J17/(J44+K44+L44))*($E17/((K44*($J17/(J44+K44+L44)))+(G44*($G17/(G44+H44+I44)))+(O44*($M17/(M44+N44+O44))))) -> 597.29375 | L45: =L44*($J17/(J44+K44+L44))*($N17/((L44*($J17/(J44+K44+L44)))+(H44*($G17/(G44+H44+I44)))+(D44*($D17/(D44+E44+F44))))) -> 41.853125 | M45: =M44*($M17/(M44+N44+O44))*($K17/((M44*($M17/(M44+N44+O44)))+(I44*($G17/(G44+H44+I44)))+(E44*($D17/(D44+E44+F44))))) -> 41.853125 | N45: =N44*($M17/(M44+N44+O44))*($H17/((N44*($M17/(M44+N44+O44)))+(J44*($J17/(J44+K44+L44)))+(F44*($D17/(D44+E44+F44))))) -> 597.29375 | O45: =O44*($M17/(M44+N44+O44))*($E17/((O44*($M17/(M44+N44+O44)))+(K44*($J17/(J44+K44+L44)))+(G44*($G17/(G44+H44+I44))))) -> 41.853125 | P45: =Input!$D$44 -> 2020 | Q45: MIDDAY TURNS 3 | R45: =R44*(R17/(R44+S44+T44))*(AB17/((R44*(R17/(R44+S44+T44)))+(V44*(U17/(U44+V44+W44)))+(Z44*(X17/(X44+Y44+Z44))))) -> 50.28666667 | S45: =S44*(R17/(R44+S44+T44))*(Y17/((S44*(R17/(R44+S44+T44)))+(W44*(U17/(U44+V44+W44)))+(AA44*(AA17/(AA44+AB44+AC44))))) -> 693.4266667 | T45: =T44*(R17/(R44+S44+T44))*(V17/((T44*(R17/(R44+S44+T44)))+(X44*(X17/(X44+Y44+Z44)))+(AB44*(AA17/(AA44+AB44+AC44))))) -> 50.28666667 | U45: =U44*(U17/(U44+V44+W44))*(S17/((U44*(U17/(U44+V44+W44)))+(Y44*(X17/(X44+Y44+Z44)))+(AC44*(AA17/(AA44+AB44+AC44))))) -> 50.28666667 | V45: =V44*(U17/(U44+V44+W44))*(AB17/((V44*(U17/(U44+V44+W44)))+(R44*(R17/(R44+S44+T44)))+(Z44*(X17/(X44+Y44+Z44))))) -> 693.4266667 | W45: =W44*(U17/(U44+V44+W44))*(Y17/((W44*(U17/(U44+V44+W44)))+(S44*(R17/(R44+S44+T44)))+(AA44*(AA17/(AA44+AB44+AC44))))) -> 50.28666667 | X45: =X44*(X17/(X44+Y44+Z44))*(V17/((X44*(X17/(X44+Y44+Z44)))+(AB44*(AA17/(AA44+AB44+AC44)))+(T44*(R17/(R44+S44+T44))))) -> 50.28666667 | Y45: =Y44*(X17/(X44+Y44+Z44))*(S17/((Y44*(X17/(X44+Y44+Z44)))+(U44*(U17/(U44+V44+W44)))+(AC44*(AA17/(AA44+AB44+AC44))))) -> 693.4266667 | Z45: =Z44*(X17/(X44+Y44+Z44))*(AB17/((Z44*(X17/(X44+Y44+Z44)))+(V44*(U17/(U44+V44+W44)))+(R44*(R17/(R44+S44+T44))))) -> 50.28666667 | AA45: =AA44*(AA17/(AA44+AB44+AC44))*(Y17/((AA44*(AA17/(AA44+AB44+AC44)))+(W44*(U17/(U44+V44+W44)))+(S44*(R17/(R44+S44+T44))))) -> 50.28666667 | AB45: =AB44*(AA17/(AA44+AB44+AC44))*(V17/((AB44*(AA17/(AA44+AB44+AC44)))+(X44*(X17/(X44+Y44+Z44)))+(T44*(R17/(R44+S44+T44))))) -> 693.4266667 | AC45: =AC44*(AA17/(AA44+AB44+AC44))*(S17/((AC44*(AA17/(AA44+AB44+AC44)))+(Y44*(X17/(X44+Y44+Z44)))+(U44*(U17/(U44+V44+W44))))) -> 50.28666667 | AD45: =Input!$D$44 -> 2020 | AE45: P.M. TURNS 3 | AF45: =AF44*(AF17/(AF44+AG44+AH44))*(AP17/((AF44*(AF17/(AF44+AG44+AH44)))+(AJ44*(AI17/(AI44+AJ44+AK44)))+(AN44*(AL17/(AL44+AM44+AN44))))) -> 58.77364341 | AG45: =AG44*(AF17/(AF44+AG44+AH44))*(AM17/((AG44*(AF17/(AF44+AG44+AH44)))+(AK44*(AI17/(AI44+AJ44+AK44)))+(AO44*(AO17/(AO44+AP44+AQ44))))) -> 790.4527132 | AH45: =AH44*(AF17/(AF44+AG44+AH44))*(AJ17/((AH44*(AF17/(AF44+AG44+AH44)))+(AL44*(AL17/(AL44+AM44+AN44)))+(AP44*(AO17/(AO44+AP44+AQ44))))) -> 58.77364341 | AI45: =AI44*(AI17/(AI44+AJ44+AK44))*(AG17/((AI44*(AI17/(AI44+AJ44+AK44)))+(AM44*(AL17/(AL44+AM44+AN44)))+(AQ44*(AO17/(AO44+AP44+AQ44))))) -> 58.77364341 | AJ45: =AJ44*(AI17/(AI44+AJ44+AK44))*(AP17/((AJ44*(AI17/(AI44+AJ44+AK44)))+(AF44*(AF17/(AF44+AG44+AH44)))+(AN44*(AL17/(AL44+AM44+AN44))))) -> 790.4527132 | AK45: =AK44*(AI17/(AI44+AJ44+AK44))*(AM17/((AK44*(AI17/(AI44+AJ44+AK44)))+(AG44*(AF17/(AF44+AG44+AH44)))+(AO44*(AO17/(AO44+AP44+AQ44))))) -> 58.77364341 | AL45: =AL44*(AL17/(AL44+AM44+AN44))*(AJ17/((AL44*(AL17/(AL44+AM44+AN44)))+(AP44*(AO17/(AO44+AP44+AQ44)))+(AH44*(AF17/(AF44+AG44+AH44))))) -> 58.77364341 | AM45: =AM44*(AL17/(AL44+AM44+AN44))*(AG17/((AM44*(AL17/(AL44+AM44+AN44)))+(AI44*(AI17/(AI44+AJ44+AK44)))+(AQ44*(AO17/(AO44+AP44+AQ44))))) -> 790.4527132 | AN45: =AN44*(AL17/(AL44+AM44+AN44))*(AP17/((AN44*(AL17/(AL44+AM44+AN44)))+(AJ44*(AI17/(AI44+AJ44+AK44)))+(AF44*(AF17/(AF44+AG44+AH44))))) -> 58.77364341 | AO45: =AO44*(AO17/(AO44+AP44+AQ44))*(AM17/((AO44*(AO17/(AO44+AP44+AQ44)))+(AK44*(AI17/(AI44+AJ44+AK44)))+(AG44*(AF17/(AF44+AG44+AH44))))) -> 58.77364341 | AP45: =AP44*(AO17/(AO44+AP44+AQ44))*(AJ17/((AP44*(AO17/(AO44+AP44+AQ44)))+(AL44*(AL17/(AL44+AM44+AN44)))+(AH44*(AF17/(AF44+AG44+AH44))))) -> 790.4527132 | AQ45: =AQ44*(AO17/(AO44+AP44+AQ44))*(AG17/((AQ44*(AO17/(AO44+AP44+AQ44)))+(AM44*(AL17/(AL44+AM44+AN44)))+(AI44*(AI17/(AI44+AJ44+AK44))))) -> 58.77364341
B46: =Input!$D$44 -> 2020 | C46: A.M. TURNS 4 | D46: =D45*($D$17/(D45+E45+F45))*($N$17/((D45*($D$17/(D45+E45+F45)))+(H45*($G$17/(G45+H45+I45)))+(L45*($J$17/(J45+K45+L45))))) -> 41.853125 | E46: =E45*($D$17/(D45+E45+F45))*($K$17/((E45*($D$17/(D45+E45+F45)))+(I45*($G$17/(G45+H45+I45)))+(M45*($M$17/(M45+N45+O45))))) -> 597.29375 | F46: =F45*($D$17/(D45+E45+F45))*($H$17/((F45*($D$17/(D45+E45+F45)))+(J45*($J$17/(J45+K45+L45)))+(N45*($M$17/(M45+N45+O45))))) -> 41.853125 | G46: =G45*($G$17/(G45+H45+I45))*($E$17/((G45*($G$17/(G45+H45+I45)))+(K45*($J$17/(J45+K45+L45)))+(O45*($M$17/(M45+N45+O45))))) -> 41.853125 | H46: =H45*($G$17/(G45+H45+I45))*($N$17/((H45*($G$17/(G45+H45+I45)))+(D45*($D$17/(D45+E45+F45)))+(L45*($J$17/(J45+K45+L45))))) -> 597.29375 | I46: =I45*($G$17/(G45+H45+I45))*($K$17/((I45*($G$17/(G45+H45+I45)))+(E45*($D$17/(D45+E45+F45)))+(M45*($M$17/(M45+N45+O45))))) -> 41.853125 | J46: =J45*($J$17/(J45+K45+L45))*($H$17/((J45*($J$17/(J45+K45+L45)))+(N45*($M$17/(M45+N45+O45)))+(F45*($D$17/(D45+E45+F45))))) -> 41.853125 | K46: =K45*($J$17/(J45+K45+L45))*($E$17/((K45*($J$17/(J45+K45+L45)))+(G45*($G$17/(G45+H45+I45)))+(O45*($M$17/(M45+N45+O45))))) -> 597.29375 | L46: =L45*($J$17/(J45+K45+L45))*($N$17/((L45*($J$17/(J45+K45+L45)))+(H45*($G$17/(G45+H45+I45)))+(D45*($D$17/(D45+E45+F45))))) -> 41.853125 | M46: =M45*($M$17/(M45+N45+O45))*($K$17/((M45*($M$17/(M45+N45+O45)))+(I45*($G$17/(G45+H45+I45)))+(E45*($D$17/(D45+E45+F45))))) -> 41.853125 | N46: =N45*($M$17/(M45+N45+O45))*($H$17/((N45*($M$17/(M45+N45+O45)))+(J45*($J$17/(J45+K45+L45)))+(F45*($D$17/(D45+E45+F45))))) -> 597.29375 | O46: =O45*($M$17/(M45+N45+O45))*($E$17/((O45*($M$17/(M45+N45+O45)))+(K45*($J$17/(J45+K45+L45)))+(G45*($G$17/(G45+H45+I45))))) -> 41.853125 | P46: =Input!$D$44 -> 2020 | Q46: MIDDAY TURNS 4 | R46: =R45*(R17/(R45+S45+T45))*(AB17/((R45*(R17/(R45+S45+T45)))+(V45*(U17/(U45+V45+W45)))+(Z45*(X17/(X45+Y45+Z45))))) -> 50.28666667 | S46: =S45*(R17/(R45+S45+T45))*(Y17/((S45*(R17/(R45+S45+T45)))+(W45*(U17/(U45+V45+W45)))+(AA45*(AA17/(AA45+AB45+AC45))))) -> 693.4266667 | T46: =T45*(R17/(R45+S45+T45))*(V17/((T45*(R17/(R45+S45+T45)))+(X45*(X17/(X45+Y45+Z45)))+(AB45*(AA17/(AA45+AB45+AC45))))) -> 50.28666667 | U46: =U45*(U17/(U45+V45+W45))*(S17/((U45*(U17/(U45+V45+W45)))+(Y45*(X17/(X45+Y45+Z45)))+(AC45*(AA17/(AA45+AB45+AC45))))) -> 50.28666667 | V46: =V45*(U17/(U45+V45+W45))*(AB17/((V45*(U17/(U45+V45+W45)))+(R45*(R17/(R45+S45+T45)))+(Z45*(X17/(X45+Y45+Z45))))) -> 693.4266667 | W46: =W45*(U17/(U45+V45+W45))*(Y17/((W45*(U17/(U45+V45+W45)))+(S45*(R17/(R45+S45+T45)))+(AA45*(AA17/(AA45+AB45+AC45))))) -> 50.28666667 | X46: =X45*(X17/(X45+Y45+Z45))*(V17/((X45*(X17/(X45+Y45+Z45)))+(AB45*(AA17/(AA45+AB45+AC45)))+(T45*(R17/(R45+S45+T45))))) -> 50.28666667 | Y46: =Y45*(X17/(X45+Y45+Z45))*(S17/((Y45*(X17/(X45+Y45+Z45)))+(U45*(U17/(U45+V45+W45)))+(AC45*(AA17/(AA45+AB45+AC45))))) -> 693.4266667 | Z46: =Z45*(X17/(X45+Y45+Z45))*(AB17/((Z45*(X17/(X45+Y45+Z45)))+(V45*(U17/(U45+V45+W45)))+(R45*(R17/(R45+S45+T45))))) -> 50.28666667 | AA46: =AA45*(AA17/(AA45+AB45+AC45))*(Y17/((AA45*(AA17/(AA45+AB45+AC45)))+(W45*(U17/(U45+V45+W45)))+(S45*(R17/(R45+S45+T45))))) -> 50.28666667 | AB46: =AB45*(AA17/(AA45+AB45+AC45))*(V17/((AB45*(AA17/(AA45+AB45+AC45)))+(X45*(X17/(X45+Y45+Z45)))+(T45*(R17/(R45+S45+T45))))) -> 693.4266667 | AC46: =AC45*(AA17/(AA45+AB45+AC45))*(S17/((AC45*(AA17/(AA45+AB45+AC45)))+(Y45*(X17/(X45+Y45+Z45)))+(U45*(U17/(U45+V45+W45))))) -> 50.28666667 | AD46: =Input!$D$44 -> 2020 | AE46: P.M. TURNS 4 | AF46: =AF45*(AF17/(AF45+AG45+AH45))*(AP17/((AF45*(AF17/(AF45+AG45+AH45)))+(AJ45*(AI17/(AI45+AJ45+AK45)))+(AN45*(AL17/(AL45+AM45+AN45))))) -> 58.77364341 | AG46: =AG45*(AF17/(AF45+AG45+AH45))*(AM17/((AG45*(AF17/(AF45+AG45+AH45)))+(AK45*(AI17/(AI45+AJ45+AK45)))+(AO45*(AO17/(AO45+AP45+AQ45))))) -> 790.4527132 | AH46: =AH45*(AF17/(AF45+AG45+AH45))*(AJ17/((AH45*(AF17/(AF45+AG45+AH45)))+(AL45*(AL17/(AL45+AM45+AN45)))+(AP45*(AO17/(AO45+AP45+AQ45))))) -> 58.77364341 | AI46: =AI45*(AI17/(AI45+AJ45+AK45))*(AG17/((AI45*(AI17/(AI45+AJ45+AK45)))+(AM45*(AL17/(AL45+AM45+AN45)))+(AQ45*(AO17/(AO45+AP45+AQ45))))) -> 58.77364341 | AJ46: =AJ45*(AI17/(AI45+AJ45+AK45))*(AP17/((AJ45*(AI17/(AI45+AJ45+AK45)))+(AF45*(AF17/(AF45+AG45+AH45)))+(AN45*(AL17/(AL45+AM45+AN45))))) -> 790.4527132 | AK46: =AK45*(AI17/(AI45+AJ45+AK45))*(AM17/((AK45*(AI17/(AI45+AJ45+AK45)))+(AG45*(AF17/(AF45+AG45+AH45)))+(AO45*(AO17/(AO45+AP45+AQ45))))) -> 58.77364341 | AL46: =AL45*(AL17/(AL45+AM45+AN45))*(AJ17/((AL45*(AL17/(AL45+AM45+AN45)))+(AP45*(AO17/(AO45+AP45+AQ45)))+(AH45*(AF17/(AF45+AG45+AH45))))) -> 58.77364341 | AM46: =AM45*(AL17/(AL45+AM45+AN45))*(AG17/((AM45*(AL17/(AL45+AM45+AN45)))+(AI45*(AI17/(AI45+AJ45+AK45)))+(AQ45*(AO17/(AO45+AP45+AQ45))))) -> 790.4527132 | AN46: =AN45*(AL17/(AL45+AM45+AN45))*(AP17/((AN45*(AL17/(AL45+AM45+AN45)))+(AJ45*(AI17/(AI45+AJ45+AK45)))+(AF45*(AF17/(AF45+AG45+AH45))))) -> 58.77364341 | AO46: =AO45*(AO17/(AO45+AP45+AQ45))*(AM17/((AO45*(AO17/(AO45+AP45+AQ45)))+(AK45*(AI17/(AI45+AJ45+AK45)))+(AG45*(AF17/(AF45+AG45+AH45))))) -> 58.77364341 | AP46: =AP45*(AO17/(AO45+AP45+AQ45))*(AJ17/((AP45*(AO17/(AO45+AP45+AQ45)))+(AL45*(AL17/(AL45+AM45+AN45)))+(AH45*(AF17/(AF45+AG45+AH45))))) -> 790.4527132 | AQ46: =AQ45*(AO17/(AO45+AP45+AQ45))*(AG17/((AQ45*(AO17/(AO45+AP45+AQ45)))+(AM45*(AL17/(AL45+AM45+AN45)))+(AI45*(AI17/(AI45+AJ45+AK45))))) -> 58.77364341
B47: =Input!$D$44 -> 2020 | C47: A.M. TURNS 5 | D47: =D46*($D$17/(D46+E46+F46))*($N$17/((D46*($D$17/(D46+E46+F46)))+(H46*($G$17/(G46+H46+I46)))+(L46*($J$17/(J46+K46+L46))))) -> 41.853125 | E47: =E46*($D$17/(D46+E46+F46))*($K$17/((E46*($D$17/(D46+E46+F46)))+(I46*($G$17/(G46+H46+I46)))+(M46*($M$17/(M46+N46+O46))))) -> 597.29375 | F47: =F46*($D$17/(D46+E46+F46))*($H$17/((F46*($D$17/(D46+E46+F46)))+(J46*($J$17/(J46+K46+L46)))+(N46*($M$17/(M46+N46+O46))))) -> 41.853125 | G47: =G46*($G$17/(G46+H46+I46))*($E$17/((G46*($G$17/(G46+H46+I46)))+(K46*($J$17/(J46+K46+L46)))+(O46*($M$17/(M46+N46+O46))))) -> 41.853125 | H47: =H46*($G$17/(G46+H46+I46))*($N$17/((H46*($G$17/(G46+H46+I46)))+(D46*($D$17/(D46+E46+F46)))+(L46*($J$17/(J46+K46+L46))))) -> 597.29375 | I47: =I46*($G$17/(G46+H46+I46))*($K$17/((I46*($G$17/(G46+H46+I46)))+(E46*($D$17/(D46+E46+F46)))+(M46*($M$17/(M46+N46+O46))))) -> 41.853125 | J47: =J46*($J$17/(J46+K46+L46))*($H$17/((J46*($J$17/(J46+K46+L46)))+(N46*($M$17/(M46+N46+O46)))+(F46*($D$17/(D46+E46+F46))))) -> 41.853125 | K47: =K46*($J$17/(J46+K46+L46))*($E$17/((K46*($J$17/(J46+K46+L46)))+(G46*($G$17/(G46+H46+I46)))+(O46*($M$17/(M46+N46+O46))))) -> 597.29375 | L47: =L46*($J$17/(J46+K46+L46))*($N$17/((L46*($J$17/(J46+K46+L46)))+(H46*($G$17/(G46+H46+I46)))+(D46*($D$17/(D46+E46+F46))))) -> 41.853125 | M47: =M46*($M$17/(M46+N46+O46))*($K$17/((M46*($M$17/(M46+N46+O46)))+(I46*($G$17/(G46+H46+I46)))+(E46*($D$17/(D46+E46+F46))))) -> 41.853125 | N47: =N46*($M$17/(M46+N46+O46))*($H$17/((N46*($M$17/(M46+N46+O46)))+(J46*($J$17/(J46+K46+L46)))+(F46*($D$17/(D46+E46+F46))))) -> 597.29375 | O47: =O46*($M$17/(M46+N46+O46))*($E$17/((O46*($M$17/(M46+N46+O46)))+(K46*($J$17/(J46+K46+L46)))+(G46*($G$17/(G46+H46+I46))))) -> 41.853125 | P47: =Input!$D$44 -> 2020 | Q47: MIDDAY TURNS 5 | R47: =R46*(R17/(R46+S46+T46))*(AB17/((R46*(R17/(R46+S46+T46)))+(V46*(U17/(U46+V46+W46)))+(Z46*(X17/(X46+Y46+Z46))))) -> 50.28666667 | S47: =S46*(R17/(R46+S46+T46))*(Y17/((S46*(R17/(R46+S46+T46)))+(W46*(U17/(U46+V46+W46)))+(AA46*(AA17/(AA46+AB46+AC46))))) -> 693.4266667 | T47: =T46*(R17/(R46+S46+T46))*(V17/((T46*(R17/(R46+S46+T46)))+(X46*(X17/(X46+Y46+Z46)))+(AB46*(AA17/(AA46+AB46+AC46))))) -> 50.28666667 | U47: =U46*(U17/(U46+V46+W46))*(S17/((U46*(U17/(U46+V46+W46)))+(Y46*(X17/(X46+Y46+Z46)))+(AC46*(AA17/(AA46+AB46+AC46))))) -> 50.28666667 | V47: =V46*(U17/(U46+V46+W46))*(AB17/((V46*(U17/(U46+V46+W46)))+(R46*(R17/(R46+S46+T46)))+(Z46*(X17/(X46+Y46+Z46))))) -> 693.4266667 | W47: =W46*(U17/(U46+V46+W46))*(Y17/((W46*(U17/(U46+V46+W46)))+(S46*(R17/(R46+S46+T46)))+(AA46*(AA17/(AA46+AB46+AC46))))) -> 50.28666667 | X47: =X46*(X17/(X46+Y46+Z46))*(V17/((X46*(X17/(X46+Y46+Z46)))+(AB46*(AA17/(AA46+AB46+AC46)))+(T46*(R17/(R46+S46+T46))))) -> 50.28666667 | Y47: =Y46*(X17/(X46+Y46+Z46))*(S17/((Y46*(X17/(X46+Y46+Z46)))+(U46*(U17/(U46+V46+W46)))+(AC46*(AA17/(AA46+AB46+AC46))))) -> 693.4266667 | Z47: =Z46*(X17/(X46+Y46+Z46))*(AB17/((Z46*(X17/(X46+Y46+Z46)))+(V46*(U17/(U46+V46+W46)))+(R46*(R17/(R46+S46+T46))))) -> 50.28666667 | AA47: =AA46*(AA17/(AA46+AB46+AC46))*(Y17/((AA46*(AA17/(AA46+AB46+AC46)))+(W46*(U17/(U46+V46+W46)))+(S46*(R17/(R46+S46+T46))))) -> 50.28666667 | AB47: =AB46*(AA17/(AA46+AB46+AC46))*(V17/((AB46*(AA17/(AA46+AB46+AC46)))+(X46*(X17/(X46+Y46+Z46)))+(T46*(R17/(R46+S46+T46))))) -> 693.4266667 | AC47: =AC46*(AA17/(AA46+AB46+AC46))*(S17/((AC46*(AA17/(AA46+AB46+AC46)))+(Y46*(X17/(X46+Y46+Z46)))+(U46*(U17/(U46+V46+W46))))) -> 50.28666667 | AD47: =Input!$D$44 -> 2020 | AE47: P.M. TURNS 5 | AF47: =AF46*(AF17/(AF46+AG46+AH46))*(AP17/((AF46*(AF17/(AF46+AG46+AH46)))+(AJ46*(AI17/(AI46+AJ46+AK46)))+(AN46*(AL17/(AL46+AM46+AN46))))) -> 58.77364341 | AG47: =AG46*(AF17/(AF46+AG46+AH46))*(AM17/((AG46*(AF17/(AF46+AG46+AH46)))+(AK46*(AI17/(AI46+AJ46+AK46)))+(AO46*(AO17/(AO46+AP46+AQ46))))) -> 790.4527132 | AH47: =AH46*(AF17/(AF46+AG46+AH46))*(AJ17/((AH46*(AF17/(AF46+AG46+AH46)))+(AL46*(AL17/(AL46+AM46+AN46)))+(AP46*(AO17/(AO46+AP46+AQ46))))) -> 58.77364341 | AI47: =AI46*(AI17/(AI46+AJ46+AK46))*(AG17/((AI46*(AI17/(AI46+AJ46+AK46)))+(AM46*(AL17/(AL46+AM46+AN46)))+(AQ46*(AO17/(AO46+AP46+AQ46))))) -> 58.77364341 | AJ47: =AJ46*(AI17/(AI46+AJ46+AK46))*(AP17/((AJ46*(AI17/(AI46+AJ46+AK46)))+(AF46*(AF17/(AF46+AG46+AH46)))+(AN46*(AL17/(AL46+AM46+AN46))))) -> 790.4527132 | AK47: =AK46*(AI17/(AI46+AJ46+AK46))*(AM17/((AK46*(AI17/(AI46+AJ46+AK46)))+(AG46*(AF17/(AF46+AG46+AH46)))+(AO46*(AO17/(AO46+AP46+AQ46))))) -> 58.77364341 | AL47: =AL46*(AL17/(AL46+AM46+AN46))*(AJ17/((AL46*(AL17/(AL46+AM46+AN46)))+(AP46*(AO17/(AO46+AP46+AQ46)))+(AH46*(AF17/(AF46+AG46+AH46))))) -> 58.77364341 | AM47: =AM46*(AL17/(AL46+AM46+AN46))*(AG17/((AM46*(AL17/(AL46+AM46+AN46)))+(AI46*(AI17/(AI46+AJ46+AK46)))+(AQ46*(AO17/(AO46+AP46+AQ46))))) -> 790.4527132 | AN47: =AN46*(AL17/(AL46+AM46+AN46))*(AP17/((AN46*(AL17/(AL46+AM46+AN46)))+(AJ46*(AI17/(AI46+AJ46+AK46)))+(AF46*(AF17/(AF46+AG46+AH46))))) -> 58.77364341 | AO47: =AO46*(AO17/(AO46+AP46+AQ46))*(AM17/((AO46*(AO17/(AO46+AP46+AQ46)))+(AK46*(AI17/(AI46+AJ46+AK46)))+(AG46*(AF17/(AF46+AG46+AH46))))) -> 58.77364341 | AP47: =AP46*(AO17/(AO46+AP46+AQ46))*(AJ17/((AP46*(AO17/(AO46+AP46+AQ46)))+(AL46*(AL17/(AL46+AM46+AN46)))+(AH46*(AF17/(AF46+AG46+AH46))))) -> 790.4527132 | AQ47: =AQ46*(AO17/(AO46+AP46+AQ46))*(AG17/((AQ46*(AO17/(AO46+AP46+AQ46)))+(AM46*(AL17/(AL46+AM46+AN46)))+(AI46*(AI17/(AI46+AJ46+AK46))))) -> 58.77364341
B49: =Input!$D$45 -> 2030 | C49: A.M. TURNS 1 | D49: =D23*Input!C72 -> 51.82682292 | E49: =D23*Input!D72 -> 647.3463542 | F49: =D23*Input!E72 -> 51.82682292 | G49: =G23*Input!F72 -> 51.82682292 | H49: =G23*Input!G72 -> 647.3463542 | I49: =G23*Input!H72 -> 51.82682292 | J49: =J23*Input!I72 -> 51.82682292 | K49: =J23*Input!J72 -> 647.3463542 | L49: =J23*Input!K72 -> 51.82682292 | M49: =M23*Input!L72 -> 51.82682292 | N49: =M23*Input!M72 -> 647.3463542 | O49: =M23*Input!N72 -> 51.82682292 | P49: =Input!$D$45 -> 2030 | Q49: MIDDAY TURNS 1 | R49: =R23*Input!C77 -> 62.33333333 | S49: =R23*Input!D77 -> 755.3333333 | T49: =R23*Input!E77 -> 62.33333333 | U49: =U23*Input!F77 -> 62.33333333 | V49: =U23*Input!G77 -> 755.3333333 | W49: =U23*Input!H77 -> 62.33333333 | X49: =X23*Input!I77 -> 62.33333333 | Y49: =X23*Input!J77 -> 755.3333333 | Z49: =X23*Input!K77 -> 62.33333333 | AA49: =AA23*Input!L77 -> 62.33333333 | AB49: =AA23*Input!M77 -> 755.3333333 | AC49: =AA23*Input!N77 -> 62.33333333 | AD49: =Input!$D$45 -> 2030 | AE49: P.M. TURNS 1 | AF49: =AF23*Input!C82 -> 72.91182171 | AG49: =AF23*Input!D82 -> 864.1763566 | AH49: =AF23*Input!E82 -> 72.91182171 | AI49: =AI23*Input!F82 -> 72.91182171 | AJ49: =AI23*Input!G82 -> 864.1763566 | AK49: =AI23*Input!H82 -> 72.91182171 | AL49: =AL23*Input!I82 -> 72.91182171 | AM49: =AL23*Input!J82 -> 864.1763566 | AN49: =AL23*Input!K82 -> 72.91182171 | AO49: =AO23*Input!L82 -> 72.91182171 | AP49: =AO23*Input!M82 -> 864.1763566 | AQ49: =AO23*Input!N82 -> 72.91182171
B50: =Input!$D$45 -> 2030 | C50: A.M. TURNS 2 | D50: =D49*(N23/(D49+H49+L49)) -> 51.68880208 | E50: =E49*(K23/(M49+I49+E49)) -> 645.6223958 | F50: =F49*(H23/(N49+J49+F49)) -> 51.68880208 | G50: =G49*(E23/(G49+K49+O49)) -> 51.68880208 | H50: =H49*(N23/(D49+H49+L49)) -> 645.6223958 | I50: =I49*(K23/(E49+I49+M49)) -> 51.68880208 | J50: =J49*(H23/(F49+J49+N49)) -> 51.68880208 | K50: =K49*(E23/(G49+K49+O49)) -> 645.6223958 | L50: =L49*(N23/(D49+H49+L49)) -> 51.68880208 | M50: =M49*(K23/(E49+I49+M49)) -> 51.68880208 | N50: =N49*(H23/(F49+J49+N49)) -> 645.6223958 | O50: =O49*(E23/(G49+K49+O49)) -> 51.68880208 | P50: =Input!$D$45 -> 2030 | Q50: MIDDAY TURNS 2 | R50: =R49*(AB23/(R49+V49+Z49)) -> 62.33333333 | S50: =S49*(Y23/(AA49+W49+S49)) -> 755.3333333 | T50: =T49*(V23/(AB49+X49+T49)) -> 62.33333333 | U50: =U49*(S23/(U49+Y49+AC49)) -> 62.33333333 | V50: =V49*(AB23/(R49+V49+Z49)) -> 755.3333333 | W50: =W49*(Y23/(S49+W49+AA49)) -> 62.33333333 | X50: =X49*(V23/(T49+X49+AB49)) -> 62.33333333 | Y50: =Y49*(S23/(U49+Y49+AC49)) -> 755.3333333 | Z50: =Z49*(AB23/(R49+V49+Z49)) -> 62.33333333 | AA50: =AA49*(Y23/(S49+W49+AA49)) -> 62.33333333 | AB50: =AB49*(V23/(T49+X49+AB49)) -> 755.3333333 | AC50: =AC49*(S23/(U49+Y49+AC49)) -> 62.33333333 | AD50: =Input!$D$45 -> 2030 | AE50: P.M. TURNS 2 | AF50: =AF49*(AP23/(AF49+AJ49+AN49)) -> 72.91182171 | AG50: =AG49*(AM23/(AO49+AK49+AG49)) -> 864.1763566 | AH50: =AH49*(AJ23/(AP49+AL49+AH49)) -> 72.91182171 | AI50: =AI49*(AG23/(AI49+AM49+AQ49)) -> 72.91182171 | AJ50: =AJ49*(AP23/(AF49+AJ49+AN49)) -> 864.1763566 | AK50: =AK49*(AM23/(AG49+AK49+AO49)) -> 72.91182171 | AL50: =AL49*(AJ23/(AH49+AL49+AP49)) -> 72.91182171 | AM50: =AM49*(AG23/(AI49+AM49+AQ49)) -> 864.1763566 | AN50: =AN49*(AP23/(AF49+AJ49+AN49)) -> 72.91182171 | AO50: =AO49*(AM23/(AG49+AK49+AO49)) -> 72.91182171 | AP50: =AP49*(AJ23/(AH49+AL49+AP49)) -> 864.1763566 | AQ50: =AQ49*(AG23/(AI49+AM49+AQ49)) -> 72.91182171
B51: =Input!$D$45 -> 2030 | C51: A.M. TURNS 3 | D51: =D50*($D$23/(D50+E50+F50))*($N$23/((D50*($D$23/(D50+E50+F50)))+(H50*($G$23/(G50+H50+I50)))+(L50*($J$23/(J50+K50+L50))))) -> 51.68880208 | E51: =E50*($D$23/(D50+E50+F50))*($K$23/((E50*($D$23/(D50+E50+F50)))+(I50*($G$23/(G50+H50+I50)))+(M50*($M$23/(M50+N50+O50))))) -> 645.6223958 | F51: =F50*($D$23/(D50+E50+F50))*($H$23/((F50*($D$23/(D50+E50+F50)))+(J50*($J$23/(J50+K50+L50)))+(N50*($M$23/(M50+N50+O50))))) -> 51.68880208 | G51: =G50*($G$23/(G50+H50+I50))*($E$23/((G50*($G$23/(G50+H50+I50)))+(K50*($J$23/(J50+K50+L50)))+(O50*($M$23/(M50+N50+O50))))) -> 51.68880208 | H51: =H50*($G$23/(G50+H50+I50))*($N$23/((H50*($G$23/(G50+H50+I50)))+(D50*($D$23/(D50+E50+F50)))+(L50*($J$23/(J50+K50+L50))))) -> 645.6223958 | I51: =I50*($G$23/(G50+H50+I50))*($K$23/((I50*($G$23/(G50+H50+I50)))+(E50*($D$23/(D50+E50+F50)))+(M50*($M$23/(M50+N50+O50))))) -> 51.68880208 | J51: =J50*($J$23/(J50+K50+L50))*($H$23/((J50*($J$23/(J50+K50+L50)))+(N50*($M$23/(M50+N50+O50)))+(F50*($D$23/(D50+E50+F50))))) -> 51.68880208 | K51: =K50*($J$23/(J50+K50+L50))*($E$23/((K50*($J$23/(J50+K50+L50)))+(G50*($G$23/(G50+H50+I50)))+(O50*($M$23/(M50+N50+O50))))) -> 645.6223958 | L51: =L50*($J$23/(J50+K50+L50))*($N$23/((L50*($J$23/(J50+K50+L50)))+(H50*($G$23/(G50+H50+I50)))+(D50*($D$23/(D50+E50+F50))))) -> 51.68880208 | M51: =M50*($M$23/(M50+N50+O50))*($K$23/((M50*($M$23/(M50+N50+O50)))+(I50*($G$23/(G50+H50+I50)))+(E50*($D$23/(D50+E50+F50))))) -> 51.68880208 | N51: =N50*($M$23/(M50+N50+O50))*($H$23/((N50*($M$23/(M50+N50+O50)))+(J50*($J$23/(J50+K50+L50)))+(F50*($D$23/(D50+E50+F50))))) -> 645.6223958 | O51: =O50*($M$23/(M50+N50+O50))*($E$23/((O50*($M$23/(M50+N50+O50)))+(K50*($J$23/(J50+K50+L50)))+(G50*($G$23/(G50+H50+I50))))) -> 51.68880208 | P51: =Input!$D$45 -> 2030 | Q51: MIDDAY TURNS 3 | R51: =R50*(R23/(R50+S50+T50))*(AB23/((R50*(R23/(R50+S50+T50)))+(V50*(U23/(U50+V50+W50)))+(Z50*(X23/(X50+Y50+Z50))))) -> 62.33333333 | S51: =S50*(R23/(R50+S50+T50))*(Y23/((S50*(R23/(R50+S50+T50)))+(W50*(U23/(U50+V50+W50)))+(AA50*(AA23/(AA50+AB50+AC50))))) -> 755.3333333 | T51: =T50*(R23/(R50+S50+T50))*(V23/((T50*(R23/(R50+S50+T50)))+(X50*(X23/(X50+Y50+Z50)))+(AB50*(AA23/(AA50+AB50+AC50))))) -> 62.33333333 | U51: =U50*(U23/(U50+V50+W50))*(S23/((U50*(U23/(U50+V50+W50)))+(Y50*(X23/(X50+Y50+Z50)))+(AC50*(AA23/(AA50+AB50+AC50))))) -> 62.33333333 | V51: =V50*(U23/(U50+V50+W50))*(AB23/((V50*(U23/(U50+V50+W50)))+(R50*(R23/(R50+S50+T50)))+(Z50*(X23/(X50+Y50+Z50))))) -> 755.3333333 | W51: =W50*(U23/(U50+V50+W50))*(Y23/((W50*(U23/(U50+V50+W50)))+(S50*(R23/(R50+S50+T50)))+(AA50*(AA23/(AA50+AB50+AC50))))) -> 62.33333333 | X51: =X50*(X23/(X50+Y50+Z50))*(V23/((X50*(X23/(X50+Y50+Z50)))+(AB50*(AA23/(AA50+AB50+AC50)))+(T50*(R23/(R50+S50+T50))))) -> 62.33333333 | Y51: =Y50*(X23/(X50+Y50+Z50))*(S23/((Y50*(X23/(X50+Y50+Z50)))+(U50*(U23/(U50+V50+W50)))+(AC50*(AA23/(AA50+AB50+AC50))))) -> 755.3333333 | Z51: =Z50*(X23/(X50+Y50+Z50))*(AB23/((Z50*(X23/(X50+Y50+Z50)))+(V50*(U23/(U50+V50+W50)))+(R50*(R23/(R50+S50+T50))))) -> 62.33333333 | AA51: =AA50*(AA23/(AA50+AB50+AC50))*(Y23/((AA50*(AA23/(AA50+AB50+AC50)))+(W50*(U23/(U50+V50+W50)))+(S50*(R23/(R50+S50+T50))))) -> 62.33333333 | AB51: =AB50*(AA23/(AA50+AB50+AC50))*(V23/((AB50*(AA23/(AA50+AB50+AC50)))+(X50*(X23/(X50+Y50+Z50)))+(T50*(R23/(R50+S50+T50))))) -> 755.3333333 | AC51: =AC50*(AA23/(AA50+AB50+AC50))*(S23/((AC50*(AA23/(AA50+AB50+AC50)))+(Y50*(X23/(X50+Y50+Z50)))+(U50*(U23/(U50+V50+W50))))) -> 62.33333333 | AD51: =Input!$D$45 -> 2030 | AE51: P.M. TURNS 3 | AF51: =AF50*(AF23/(AF50+AG50+AH50))*(AP23/((AF50*(AF23/(AF50+AG50+AH50)))+(AJ50*(AI23/(AI50+AJ50+AK50)))+(AN50*(AL23/(AL50+AM50+AN50))))) -> 72.91182171 | AG51: =AG50*(AF23/(AF50+AG50+AH50))*(AM23/((AG50*(AF23/(AF50+AG50+AH50)))+(AK50*(AI23/(AI50+AJ50+AK50)))+(AO50*(AO23/(AO50+AP50+AQ50))))) -> 864.1763566 | AH51: =AH50*(AF23/(AF50+AG50+AH50))*(AJ23/((AH50*(AF23/(AF50+AG50+AH50)))+(AL50*(AL23/(AL50+AM50+AN50)))+(AP50*(AO23/(AO50+AP50+AQ50))))) -> 72.91182171 | AI51: =AI50*(AI23/(AI50+AJ50+AK50))*(AG23/((AI50*(AI23/(AI50+AJ50+AK50)))+(AM50*(AL23/(AL50+AM50+AN50)))+(AQ50*(AO23/(AO50+AP50+AQ50))))) -> 72.91182171 | AJ51: =AJ50*(AI23/(AI50+AJ50+AK50))*(AP23/((AJ50*(AI23/(AI50+AJ50+AK50)))+(AF50*(AF23/(AF50+AG50+AH50)))+(AN50*(AL23/(AL50+AM50+AN50))))) -> 864.1763566 | AK51: =AK50*(AI23/(AI50+AJ50+AK50))*(AM23/((AK50*(AI23/(AI50+AJ50+AK50)))+(AG50*(AF23/(AF50+AG50+AH50)))+(AO50*(AO23/(AO50+AP50+AQ50))))) -> 72.91182171 | AL51: =AL50*(AL23/(AL50+AM50+AN50))*(AJ23/((AL50*(AL23/(AL50+AM50+AN50)))+(AP50*(AO23/(AO50+AP50+AQ50)))+(AH50*(AF23/(AF50+AG50+AH50))))) -> 72.91182171 | AM51: =AM50*(AL23/(AL50+AM50+AN50))*(AG23/((AM50*(AL23/(AL50+AM50+AN50)))+(AI50*(AI23/(AI50+AJ50+AK50)))+(AQ50*(AO23/(AO50+AP50+AQ50))))) -> 864.1763566 | AN51: =AN50*(AL23/(AL50+AM50+AN50))*(AP23/((AN50*(AL23/(AL50+AM50+AN50)))+(AJ50*(AI23/(AI50+AJ50+AK50)))+(AF50*(AF23/(AF50+AG50+AH50))))) -> 72.91182171 | AO51: =AO50*(AO23/(AO50+AP50+AQ50))*(AM23/((AO50*(AO23/(AO50+AP50+AQ50)))+(AK50*(AI23/(AI50+AJ50+AK50)))+(AG50*(AF23/(AF50+AG50+AH50))))) -> 72.91182171 | AP51: =AP50*(AO23/(AO50+AP50+AQ50))*(AJ23/((AP50*(AO23/(AO50+AP50+AQ50)))+(AL50*(AL23/(AL50+AM50+AN50)))+(AH50*(AF23/(AF50+AG50+AH50))))) -> 864.1763566 | AQ51: =AQ50*(AO23/(AO50+AP50+AQ50))*(AG23/((AQ50*(AO23/(AO50+AP50+AQ50)))+(AM50*(AL23/(AL50+AM50+AN50)))+(AI50*(AI23/(AI50+AJ50+AK50))))) -> 72.91182171
B52: =Input!$D$45 -> 2030 | C52: A.M. TURNS 4 | D52: =D51*($D$23/(D51+E51+F51))*($N$23/((D51*($D$23/(D51+E51+F51)))+(H51*($G$23/(G51+H51+I51)))+(L51*($J$23/(J51+K51+L51))))) -> 51.68880208 | E52: =E51*($D$23/(D51+E51+F51))*($K$23/((E51*($D$23/(D51+E51+F51)))+(I51*($G$23/(G51+H51+I51)))+(M51*($M$23/(M51+N51+O51))))) -> 645.6223958 | F52: =F51*($D$23/(D51+E51+F51))*($H$23/((F51*($D$23/(D51+E51+F51)))+(J51*($J$23/(J51+K51+L51)))+(N51*($M$23/(M51+N51+O51))))) -> 51.68880208 | G52: =G51*($G$23/(G51+H51+I51))*($E$23/((G51*($G$23/(G51+H51+I51)))+(K51*($J$23/(J51+K51+L51)))+(O51*($M$23/(M51+N51+O51))))) -> 51.68880208 | H52: =H51*($G$23/(G51+H51+I51))*($N$23/((H51*($G$23/(G51+H51+I51)))+(D51*($D$23/(D51+E51+F51)))+(L51*($J$23/(J51+K51+L51))))) -> 645.6223958 | I52: =I51*($G$23/(G51+H51+I51))*($K$23/((I51*($G$23/(G51+H51+I51)))+(E51*($D$23/(D51+E51+F51)))+(M51*($M$23/(M51+N51+O51))))) -> 51.68880208 | J52: =J51*($J$23/(J51+K51+L51))*($H$23/((J51*($J$23/(J51+K51+L51)))+(N51*($M$23/(M51+N51+O51)))+(F51*($D$23/(D51+E51+F51))))) -> 51.68880208 | K52: =K51*($J$23/(J51+K51+L51))*($E$23/((K51*($J$23/(J51+K51+L51)))+(G51*($G$23/(G51+H51+I51)))+(O51*($M$23/(M51+N51+O51))))) -> 645.6223958 | L52: =L51*($J$23/(J51+K51+L51))*($N$23/((L51*($J$23/(J51+K51+L51)))+(H51*($G$23/(G51+H51+I51)))+(D51*($D$23/(D51+E51+F51))))) -> 51.68880208 | M52: =M51*($M$23/(M51+N51+O51))*($K$23/((M51*($M$23/(M51+N51+O51)))+(I51*($G$23/(G51+H51+I51)))+(E51*($D$23/(D51+E51+F51))))) -> 51.68880208 | N52: =N51*($M$23/(M51+N51+O51))*($H$23/((N51*($M$23/(M51+N51+O51)))+(J51*($J$23/(J51+K51+L51)))+(F51*($D$23/(D51+E51+F51))))) -> 645.6223958 | O52: =O51*($M$23/(M51+N51+O51))*($E$23/((O51*($M$23/(M51+N51+O51)))+(K51*($J$23/(J51+K51+L51)))+(G51*($G$23/(G51+H51+I51))))) -> 51.68880208 | P52: =Input!$D$45 -> 2030 | Q52: MIDDAY TURNS 4 | R52: =R51*(R23/(R51+S51+T51))*(AB23/((R51*(R23/(R51+S51+T51)))+(V51*(U23/(U51+V51+W51)))+(Z51*(X23/(X51+Y51+Z51))))) -> 62.33333333 | S52: =S51*(R23/(R51+S51+T51))*(Y23/((S51*(R23/(R51+S51+T51)))+(W51*(U23/(U51+V51+W51)))+(AA51*(AA23/(AA51+AB51+AC51))))) -> 755.3333333 | T52: =T51*(R23/(R51+S51+T51))*(V23/((T51*(R23/(R51+S51+T51)))+(X51*(X23/(X51+Y51+Z51)))+(AB51*(AA23/(AA51+AB51+AC51))))) -> 62.33333333 | U52: =U51*(U23/(U51+V51+W51))*(S23/((U51*(U23/(U51+V51+W51)))+(Y51*(X23/(X51+Y51+Z51)))+(AC51*(AA23/(AA51+AB51+AC51))))) -> 62.33333333 | V52: =V51*(U23/(U51+V51+W51))*(AB23/((V51*(U23/(U51+V51+W51)))+(R51*(R23/(R51+S51+T51)))+(Z51*(X23/(X51+Y51+Z51))))) -> 755.3333333 | W52: =W51*(U23/(U51+V51+W51))*(Y23/((W51*(U23/(U51+V51+W51)))+(S51*(R23/(R51+S51+T51)))+(AA51*(AA23/(AA51+AB51+AC51))))) -> 62.33333333 | X52: =X51*(X23/(X51+Y51+Z51))*(V23/((X51*(X23/(X51+Y51+Z51)))+(AB51*(AA23/(AA51+AB51+AC51)))+(T51*(R23/(R51+S51+T51))))) -> 62.33333333 | Y52: =Y51*(X23/(X51+Y51+Z51))*(S23/((Y51*(X23/(X51+Y51+Z51)))+(U51*(U23/(U51+V51+W51)))+(AC51*(AA23/(AA51+AB51+AC51))))) -> 755.3333333 | Z52: =Z51*(X23/(X51+Y51+Z51))*(AB23/((Z51*(X23/(X51+Y51+Z51)))+(V51*(U23/(U51+V51+W51)))+(R51*(R23/(R51+S51+T51))))) -> 62.33333333 | AA52: =AA51*(AA23/(AA51+AB51+AC51))*(Y23/((AA51*(AA23/(AA51+AB51+AC51)))+(W51*(U23/(U51+V51+W51)))+(S51*(R23/(R51+S51+T51))))) -> 62.33333333 | AB52: =AB51*(AA23/(AA51+AB51+AC51))*(V23/((AB51*(AA23/(AA51+AB51+AC51)))+(X51*(X23/(X51+Y51+Z51)))+(T51*(R23/(R51+S51+T51))))) -> 755.3333333 | AC52: =AC51*(AA23/(AA51+AB51+AC51))*(S23/((AC51*(AA23/(AA51+AB51+AC51)))+(Y51*(X23/(X51+Y51+Z51)))+(U51*(U23/(U51+V51+W51))))) -> 62.33333333 | AD52: =Input!$D$45 -> 2030 | AE52: P.M. TURNS 4 | AF52: =AF51*(AF23/(AF51+AG51+AH51))*(AP23/((AF51*(AF23/(AF51+AG51+AH51)))+(AJ51*(AI23/(AI51+AJ51+AK51)))+(AN51*(AL23/(AL51+AM51+AN51))))) -> 72.91182171 | AG52: =AG51*(AF23/(AF51+AG51+AH51))*(AM23/((AG51*(AF23/(AF51+AG51+AH51)))+(AK51*(AI23/(AI51+AJ51+AK51)))+(AO51*(AO23/(AO51+AP51+AQ51))))) -> 864.1763566 | AH52: =AH51*(AF23/(AF51+AG51+AH51))*(AJ23/((AH51*(AF23/(AF51+AG51+AH51)))+(AL51*(AL23/(AL51+AM51+AN51)))+(AP51*(AO23/(AO51+AP51+AQ51))))) -> 72.91182171 | AI52: =AI51*(AI23/(AI51+AJ51+AK51))*(AG23/((AI51*(AI23/(AI51+AJ51+AK51)))+(AM51*(AL23/(AL51+AM51+AN51)))+(AQ51*(AO23/(AO51+AP51+AQ51))))) -> 72.91182171 | AJ52: =AJ51*(AI23/(AI51+AJ51+AK51))*(AP23/((AJ51*(AI23/(AI51+AJ51+AK51)))+(AF51*(AF23/(AF51+AG51+AH51)))+(AN51*(AL23/(AL51+AM51+AN51))))) -> 864.1763566 | AK52: =AK51*(AI23/(AI51+AJ51+AK51))*(AM23/((AK51*(AI23/(AI51+AJ51+AK51)))+(AG51*(AF23/(AF51+AG51+AH51)))+(AO51*(AO23/(AO51+AP51+AQ51))))) -> 72.91182171 | AL52: =AL51*(AL23/(AL51+AM51+AN51))*(AJ23/((AL51*(AL23/(AL51+AM51+AN51)))+(AP51*(AO23/(AO51+AP51+AQ51)))+(AH51*(AF23/(AF51+AG51+AH51))))) -> 72.91182171 | AM52: =AM51*(AL23/(AL51+AM51+AN51))*(AG23/((AM51*(AL23/(AL51+AM51+AN51)))+(AI51*(AI23/(AI51+AJ51+AK51)))+(AQ51*(AO23/(AO51+AP51+AQ51))))) -> 864.1763566 | AN52: =AN51*(AL23/(AL51+AM51+AN51))*(AP23/((AN51*(AL23/(AL51+AM51+AN51)))+(AJ51*(AI23/(AI51+AJ51+AK51)))+(AF51*(AF23/(AF51+AG51+AH51))))) -> 72.91182171 | AO52: =AO51*(AO23/(AO51+AP51+AQ51))*(AM23/((AO51*(AO23/(AO51+AP51+AQ51)))+(AK51*(AI23/(AI51+AJ51+AK51)))+(AG51*(AF23/(AF51+AG51+AH51))))) -> 72.91182171 | AP52: =AP51*(AO23/(AO51+AP51+AQ51))*(AJ23/((AP51*(AO23/(AO51+AP51+AQ51)))+(AL51*(AL23/(AL51+AM51+AN51)))+(AH51*(AF23/(AF51+AG51+AH51))))) -> 864.1763566 | AQ52: =AQ51*(AO23/(AO51+AP51+AQ51))*(AG23/((AQ51*(AO23/(AO51+AP51+AQ51)))+(AM51*(AL23/(AL51+AM51+AN51)))+(AI51*(AI23/(AI51+AJ51+AK51))))) -> 72.91182171
B53: =Input!$D$45 -> 2030 | C53: A.M. TURNS 5 | D53: =D52*($D$23/(D52+E52+F52))*($N$23/((D52*($D$23/(D52+E52+F52)))+(H52*($G$23/(G52+H52+I52)))+(L52*($J$23/(J52+K52+L52))))) -> 51.68880208 | E53: =E52*($D$23/(D52+E52+F52))*($K$23/((E52*($D$23/(D52+E52+F52)))+(I52*($G$23/(G52+H52+I52)))+(M52*($M$23/(M52+N52+O52))))) -> 645.6223958 | F53: =F52*($D$23/(D52+E52+F52))*($H$23/((F52*($D$23/(D52+E52+F52)))+(J52*($J$23/(J52+K52+L52)))+(N52*($M$23/(M52+N52+O52))))) -> 51.68880208 | G53: =G52*($G$23/(G52+H52+I52))*($E$23/((G52*($G$23/(G52+H52+I52)))+(K52*($J$23/(J52+K52+L52)))+(O52*($M$23/(M52+N52+O52))))) -> 51.68880208 | H53: =H52*($G$23/(G52+H52+I52))*($N$23/((H52*($G$23/(G52+H52+I52)))+(D52*($D$23/(D52+E52+F52)))+(L52*($J$23/(J52+K52+L52))))) -> 645.6223958 | I53: =I52*($G$23/(G52+H52+I52))*($K$23/((I52*($G$23/(G52+H52+I52)))+(E52*($D$23/(D52+E52+F52)))+(M52*($M$23/(M52+N52+O52))))) -> 51.68880208 | J53: =J52*($J$23/(J52+K52+L52))*($H$23/((J52*($J$23/(J52+K52+L52)))+(N52*($M$23/(M52+N52+O52)))+(F52*($D$23/(D52+E52+F52))))) -> 51.68880208 | K53: =K52*($J$23/(J52+K52+L52))*($E$23/((K52*($J$23/(J52+K52+L52)))+(G52*($G$23/(G52+H52+I52)))+(O52*($M$23/(M52+N52+O52))))) -> 645.6223958 | L53: =L52*($J$23/(J52+K52+L52))*($N$23/((L52*($J$23/(J52+K52+L52)))+(H52*($G$23/(G52+H52+I52)))+(D52*($D$23/(D52+E52+F52))))) -> 51.68880208 | M53: =M52*($M$23/(M52+N52+O52))*($K$23/((M52*($M$23/(M52+N52+O52)))+(I52*($G$23/(G52+H52+I52)))+(E52*($D$23/(D52+E52+F52))))) -> 51.68880208 | N53: =N52*($M$23/(M52+N52+O52))*($H$23/((N52*($M$23/(M52+N52+O52)))+(J52*($J$23/(J52+K52+L52)))+(F52*($D$23/(D52+E52+F52))))) -> 645.6223958 | O53: =O52*($M$23/(M52+N52+O52))*($E$23/((O52*($M$23/(M52+N52+O52)))+(K52*($J$23/(J52+K52+L52)))+(G52*($G$23/(G52+H52+I52))))) -> 51.68880208 | P53: =Input!$D$45 -> 2030 | Q53: MIDDAY TURNS 5 | R53: =R52*(R23/(R52+S52+T52))*(AB23/((R52*(R23/(R52+S52+T52)))+(V52*(U23/(U52+V52+W52)))+(Z52*(X23/(X52+Y52+Z52))))) -> 62.33333333 | S53: =S52*(R23/(R52+S52+T52))*(Y23/((S52*(R23/(R52+S52+T52)))+(W52*(U23/(U52+V52+W52)))+(AA52*(AA23/(AA52+AB52+AC52))))) -> 755.3333333 | T53: =T52*(R23/(R52+S52+T52))*(V23/((T52*(R23/(R52+S52+T52)))+(X52*(X23/(X52+Y52+Z52)))+(AB52*(AA23/(AA52+AB52+AC52))))) -> 62.33333333 | U53: =U52*(U23/(U52+V52+W52))*(S23/((U52*(U23/(U52+V52+W52)))+(Y52*(X23/(X52+Y52+Z52)))+(AC52*(AA23/(AA52+AB52+AC52))))) -> 62.33333333 | V53: =V52*(U23/(U52+V52+W52))*(AB23/((V52*(U23/(U52+V52+W52)))+(R52*(R23/(R52+S52+T52)))+(Z52*(X23/(X52+Y52+Z52))))) -> 755.3333333 | W53: =W52*(U23/(U52+V52+W52))*(Y23/((W52*(U23/(U52+V52+W52)))+(S52*(R23/(R52+S52+T52)))+(AA52*(AA23/(AA52+AB52+AC52))))) -> 62.33333333 | X53: =X52*(X23/(X52+Y52+Z52))*(V23/((X52*(X23/(X52+Y52+Z52)))+(AB52*(AA23/(AA52+AB52+AC52)))+(T52*(R23/(R52+S52+T52))))) -> 62.33333333 | Y53: =Y52*(X23/(X52+Y52+Z52))*(S23/((Y52*(X23/(X52+Y52+Z52)))+(U52*(U23/(U52+V52+W52)))+(AC52*(AA23/(AA52+AB52+AC52))))) -> 755.3333333 | Z53: =Z52*(X23/(X52+Y52+Z52))*(AB23/((Z52*(X23/(X52+Y52+Z52)))+(V52*(U23/(U52+V52+W52)))+(R52*(R23/(R52+S52+T52))))) -> 62.33333333 | AA53: =AA52*(AA23/(AA52+AB52+AC52))*(Y23/((AA52*(AA23/(AA52+AB52+AC52)))+(W52*(U23/(U52+V52+W52)))+(S52*(R23/(R52+S52+T52))))) -> 62.33333333 | AB53: =AB52*(AA23/(AA52+AB52+AC52))*(V23/((AB52*(AA23/(AA52+AB52+AC52)))+(X52*(X23/(X52+Y52+Z52)))+(T52*(R23/(R52+S52+T52))))) -> 755.3333333 | AC53: =AC52*(AA23/(AA52+AB52+AC52))*(S23/((AC52*(AA23/(AA52+AB52+AC52)))+(Y52*(X23/(X52+Y52+Z52)))+(U52*(U23/(U52+V52+W52))))) -> 62.33333333 | AD53: =Input!$D$45 -> 2030 | AE53: P.M. TURNS 5 | AF53: =AF52*(AF23/(AF52+AG52+AH52))*(AP23/((AF52*(AF23/(AF52+AG52+AH52)))+(AJ52*(AI23/(AI52+AJ52+AK52)))+(AN52*(AL23/(AL52+AM52+AN52))))) -> 72.91182171 | AG53: =AG52*(AF23/(AF52+AG52+AH52))*(AM23/((AG52*(AF23/(AF52+AG52+AH52)))+(AK52*(AI23/(AI52+AJ52+AK52)))+(AO52*(AO23/(AO52+AP52+AQ52))))) -> 864.1763566 | AH53: =AH52*(AF23/(AF52+AG52+AH52))*(AJ23/((AH52*(AF23/(AF52+AG52+AH52)))+(AL52*(AL23/(AL52+AM52+AN52)))+(AP52*(AO23/(AO52+AP52+AQ52))))) -> 72.91182171 | AI53: =AI52*(AI23/(AI52+AJ52+AK52))*(AG23/((AI52*(AI23/(AI52+AJ52+AK52)))+(AM52*(AL23/(AL52+AM52+AN52)))+(AQ52*(AO23/(AO52+AP52+AQ52))))) -> 72.91182171 | AJ53: =AJ52*(AI23/(AI52+AJ52+AK52))*(AP23/((AJ52*(AI23/(AI52+AJ52+AK52)))+(AF52*(AF23/(AF52+AG52+AH52)))+(AN52*(AL23/(AL52+AM52+AN52))))) -> 864.1763566 | AK53: =AK52*(AI23/(AI52+AJ52+AK52))*(AM23/((AK52*(AI23/(AI52+AJ52+AK52)))+(AG52*(AF23/(AF52+AG52+AH52)))+(AO52*(AO23/(AO52+AP52+AQ52))))) -> 72.91182171 | AL53: =AL52*(AL23/(AL52+AM52+AN52))*(AJ23/((AL52*(AL23/(AL52+AM52+AN52)))+(AP52*(AO23/(AO52+AP52+AQ52)))+(AH52*(AF23/(AF52+AG52+AH52))))) -> 72.91182171 | AM53: =AM52*(AL23/(AL52+AM52+AN52))*(AG23/((AM52*(AL23/(AL52+AM52+AN52)))+(AI52*(AI23/(AI52+AJ52+AK52)))+(AQ52*(AO23/(AO52+AP52+AQ52))))) -> 864.1763566 | AN53: =AN52*(AL23/(AL52+AM52+AN52))*(AP23/((AN52*(AL23/(AL52+AM52+AN52)))+(AJ52*(AI23/(AI52+AJ52+AK52)))+(AF52*(AF23/(AF52+AG52+AH52))))) -> 72.91182171 | AO53: =AO52*(AO23/(AO52+AP52+AQ52))*(AM23/((AO52*(AO23/(AO52+AP52+AQ52)))+(AK52*(AI23/(AI52+AJ52+AK52)))+(AG52*(AF23/(AF52+AG52+AH52))))) -> 72.91182171 | AP53: =AP52*(AO23/(AO52+AP52+AQ52))*(AJ23/((AP52*(AO23/(AO52+AP52+AQ52)))+(AL52*(AL23/(AL52+AM52+AN52)))+(AH52*(AF23/(AF52+AG52+AH52))))) -> 864.1763566 | AQ53: =AQ52*(AO23/(AO52+AP52+AQ52))*(AG23/((AQ52*(AO23/(AO52+AP52+AQ52)))+(AM52*(AL23/(AL52+AM52+AN52)))+(AI52*(AI23/(AI52+AJ52+AK52))))) -> 72.91182171
B55: =Input!$D$46 -> 2040 | C55: A.M. TURNS 1 | D55: =D29*Input!C73 -> 67.64409722 | E55: =D29*Input!D73 -> 693.7118056 | F55: =D29*Input!E73 -> 67.64409722 | G55: =G29*Input!F73 -> 67.64409722 | H55: =G29*Input!G73 -> 693.7118056 | I55: =G29*Input!H73 -> 67.64409722 | J55: =J29*Input!I73 -> 67.64409722 | K55: =J29*Input!J73 -> 693.7118056 | L55: =J29*Input!K73 -> 67.64409722 | M55: =M29*Input!L73 -> 67.64409722 | N55: =M29*Input!M73 -> 693.7118056 | O55: =M29*Input!N73 -> 67.64409722 | P55: =Input!$D$46 -> 2040 | Q55: MIDDAY TURNS 1 | R55: =R29*Input!C78 -> 81 | S55: =R29*Input!D78 -> 810 | T55: =R29*Input!E78 -> 81 | U55: =U29*Input!F78 -> 81 | V55: =U29*Input!G78 -> 810 | W55: =U29*Input!H78 -> 81 | X55: =X29*Input!I78 -> 81 | Y55: =X29*Input!J78 -> 810 | Z55: =X29*Input!K78 -> 81 | AA55: =AA29*Input!L78 -> 81 | AB55: =AA29*Input!M78 -> 810 | AC55: =AA29*Input!N78 -> 81 | AD55: =Input!$D$46 -> 2040 | AE55: P.M. TURNS 1 | AF55: =AF29*Input!C83 -> 94.27260982 | AG55: =AF29*Input!D83 -> 925.4547804 | AH55: =AF29*Input!E83 -> 94.27260982 | AI55: =AI29*Input!F83 -> 94.27260982 | AJ55: =AI29*Input!G83 -> 925.4547804 | AK55: =AI29*Input!H83 -> 94.27260982 | AL55: =AL29*Input!I83 -> 94.27260982 | AM55: =AL29*Input!J83 -> 925.4547804 | AN55: =AL29*Input!K83 -> 94.27260982 | AO55: =AO29*Input!L83 -> 94.27260982 | AP55: =AO29*Input!M83 -> 925.4547804 | AQ55: =AO29*Input!N83 -> 94.27260982
B56: =Input!$D$46 -> 2040 | C56: A.M. TURNS 2 | D56: =D55*(N29/(D55+H55+L55)) -> 67.80729167 | E56: =E55*(K29/(M55+I55+E55)) -> 695.3854167 | F56: =F55*(H29/(N55+J55+F55)) -> 67.80729167 | G56: =G55*(E29/(G55+K55+O55)) -> 67.80729167 | H56: =H55*(N29/(D55+H55+L55)) -> 695.3854167 | I56: =I55*(K29/(E55+I55+M55)) -> 67.80729167 | J56: =J55*(H29/(F55+J55+N55)) -> 67.80729167 | K56: =K55*(E29/(G55+K55+O55)) -> 695.3854167 | L56: =L55*(N29/(D55+H55+L55)) -> 67.80729167 | M56: =M55*(K29/(E55+I55+M55)) -> 67.80729167 | N56: =N55*(H29/(F55+J55+N55)) -> 695.3854167 | O56: =O55*(E29/(G55+K55+O55)) -> 67.80729167 | P56: =Input!$D$46 -> 2040 | Q56: MIDDAY TURNS 2 | R56: =R55*(AB29/(R55+V55+Z55)) -> 80.66666667 | S56: =S55*(Y29/(AA55+W55+S55)) -> 806.6666667 | T56: =T55*(V29/(AB55+X55+T55)) -> 80.66666667 | U56: =U55*(S29/(U55+Y55+AC55)) -> 80.66666667 | V56: =V55*(AB29/(R55+V55+Z55)) -> 806.6666667 | W56: =W55*(Y29/(S55+W55+AA55)) -> 80.66666667 | X56: =X55*(V29/(T55+X55+AB55)) -> 80.66666667 | Y56: =Y55*(S29/(U55+Y55+AC55)) -> 806.6666667 | Z56: =Z55*(AB29/(R55+V55+Z55)) -> 80.66666667 | AA56: =AA55*(Y29/(S55+W55+AA55)) -> 80.66666667 | AB56: =AB55*(V29/(T55+X55+AB55)) -> 806.6666667 | AC56: =AC55*(S29/(U55+Y55+AC55)) -> 80.66666667 | AD56: =Input!$D$46 -> 2040 | AE56: P.M. TURNS 2 | AF56: =AF55*(AP29/(AF55+AJ55+AN55)) -> 94.44186047 | AG56: =AG55*(AM29/(AO55+AK55+AG55)) -> 927.1162791 | AH56: =AH55*(AJ29/(AP55+AL55+AH55)) -> 94.44186047 | AI56: =AI55*(AG29/(AI55+AM55+AQ55)) -> 94.44186047 | AJ56: =AJ55*(AP29/(AF55+AJ55+AN55)) -> 927.1162791 | AK56: =AK55*(AM29/(AG55+AK55+AO55)) -> 94.44186047 | AL56: =AL55*(AJ29/(AH55+AL55+AP55)) -> 94.44186047 | AM56: =AM55*(AG29/(AI55+AM55+AQ55)) -> 927.1162791 | AN56: =AN55*(AP29/(AF55+AJ55+AN55)) -> 94.44186047 | AO56: =AO55*(AM29/(AG55+AK55+AO55)) -> 94.44186047 | AP56: =AP55*(AJ29/(AH55+AL55+AP55)) -> 927.1162791 | AQ56: =AQ55*(AG29/(AI55+AM55+AQ55)) -> 94.44186047
B57: =Input!$D$46 -> 2040 | C57: A.M. TURNS 3 | D57: =D56*($D$29/(D56+E56+F56))*($N$29/((D56*($D$29/(D56+E56+F56)))+(H56*($G$29/(G56+H56+I56)))+(L56*($J$29/(J56+K56+L56))))) -> 67.80729167 | E57: =E56*($D$29/(D56+E56+F56))*($K$29/((E56*($D$29/(D56+E56+F56)))+(I56*($G$29/(G56+H56+I56)))+(M56*($M$29/(M56+N56+O56))))) -> 695.3854167 | F57: =F56*($D$29/(D56+E56+F56))*($H$29/((F56*($D$29/(D56+E56+F56)))+(J56*($J$29/(J56+K56+L56)))+(N56*($M$29/(M56+N56+O56))))) -> 67.80729167 | G57: =G56*($G$29/(G56+H56+I56))*($E$29/((G56*($G$29/(G56+H56+I56)))+(K56*($J$29/(J56+K56+L56)))+(O56*($M$29/(M56+N56+O56))))) -> 67.80729167 | H57: =H56*($G$29/(G56+H56+I56))*($N$29/((H56*($G$29/(G56+H56+I56)))+(D56*($D$29/(D56+E56+F56)))+(L56*($J$29/(J56+K56+L56))))) -> 695.3854167 | I57: =I56*($G$29/(G56+H56+I56))*($K$29/((I56*($G$29/(G56+H56+I56)))+(E56*($D$29/(D56+E56+F56)))+(M56*($M$29/(M56+N56+O56))))) -> 67.80729167 | J57: =J56*($J$29/(J56+K56+L56))*($H$29/((J56*($J$29/(J56+K56+L56)))+(N56*($M$29/(M56+N56+O56)))+(F56*($D$29/(D56+E56+F56))))) -> 67.80729167 | K57: =K56*($J$29/(J56+K56+L56))*($E$29/((K56*($J$29/(J56+K56+L56)))+(G56*($G$29/(G56+H56+I56)))+(O56*($M$29/(M56+N56+O56))))) -> 695.3854167 | L57: =L56*($J$29/(J56+K56+L56))*($N$29/((L56*($J$29/(J56+K56+L56)))+(H56*($G$29/(G56+H56+I56)))+(D56*($D$29/(D56+E56+F56))))) -> 67.80729167 | M57: =M56*($M$29/(M56+N56+O56))*($K$29/((M56*($M$29/(M56+N56+O56)))+(I56*($G$29/(G56+H56+I56)))+(E56*($D$29/(D56+E56+F56))))) -> 67.80729167 | N57: =N56*($M$29/(M56+N56+O56))*($H$29/((N56*($M$29/(M56+N56+O56)))+(J56*($J$29/(J56+K56+L56)))+(F56*($D$29/(D56+E56+F56))))) -> 695.3854167 | O57: =O56*($M$29/(M56+N56+O56))*($E$29/((O56*($M$29/(M56+N56+O56)))+(K56*($J$29/(J56+K56+L56)))+(G56*($G$29/(G56+H56+I56))))) -> 67.80729167 | P57: =Input!$D$46 -> 2040 | Q57: MIDDAY TURNS 3 | R57: =R56*(R29/(R56+S56+T56))*(AB29/((R56*(R29/(R56+S56+T56)))+(V56*(U29/(U56+V56+W56)))+(Z56*(X29/(X56+Y56+Z56))))) -> 80.66666667 | S57: =S56*(R29/(R56+S56+T56))*(Y29/((S56*(R29/(R56+S56+T56)))+(W56*(U29/(U56+V56+W56)))+(AA56*(AA29/(AA56+AB56+AC56))))) -> 806.6666667 | T57: =T56*(R29/(R56+S56+T56))*(V29/((T56*(R29/(R56+S56+T56)))+(X56*(X29/(X56+Y56+Z56)))+(AB56*(AA29/(AA56+AB56+AC56))))) -> 80.66666667 | U57: =U56*(U29/(U56+V56+W56))*(S29/((U56*(U29/(U56+V56+W56)))+(Y56*(X29/(X56+Y56+Z56)))+(AC56*(AA29/(AA56+AB56+AC56))))) -> 80.66666667 | V57: =V56*(U29/(U56+V56+W56))*(AB29/((V56*(U29/(U56+V56+W56)))+(R56*(R29/(R56+S56+T56)))+(Z56*(X29/(X56+Y56+Z56))))) -> 806.6666667 | W57: =W56*(U29/(U56+V56+W56))*(Y29/((W56*(U29/(U56+V56+W56)))+(S56*(R29/(R56+S56+T56)))+(AA56*(AA29/(AA56+AB56+AC56))))) -> 80.66666667 | X57: =X56*(X29/(X56+Y56+Z56))*(V29/((X56*(X29/(X56+Y56+Z56)))+(AB56*(AA29/(AA56+AB56+AC56)))+(T56*(R29/(R56+S56+T56))))) -> 80.66666667 | Y57: =Y56*(X29/(X56+Y56+Z56))*(S29/((Y56*(X29/(X56+Y56+Z56)))+(U56*(U29/(U56+V56+W56)))+(AC56*(AA29/(AA56+AB56+AC56))))) -> 806.6666667 | Z57: =Z56*(X29/(X56+Y56+Z56))*(AB29/((Z56*(X29/(X56+Y56+Z56)))+(V56*(U29/(U56+V56+W56)))+(R56*(R29/(R56+S56+T56))))) -> 80.66666667 | AA57: =AA56*(AA29/(AA56+AB56+AC56))*(Y29/((AA56*(AA29/(AA56+AB56+AC56)))+(W56*(U29/(U56+V56+W56)))+(S56*(R29/(R56+S56+T56))))) -> 80.66666667 | AB57: =AB56*(AA29/(AA56+AB56+AC56))*(V29/((AB56*(AA29/(AA56+AB56+AC56)))+(X56*(X29/(X56+Y56+Z56)))+(T56*(R29/(R56+S56+T56))))) -> 806.6666667 | AC57: =AC56*(AA29/(AA56+AB56+AC56))*(S29/((AC56*(AA29/(AA56+AB56+AC56)))+(Y56*(X29/(X56+Y56+Z56)))+(U56*(U29/(U56+V56+W56))))) -> 80.66666667 | AD57: =Input!$D$46 -> 2040 | AE57: P.M. TURNS 3 | AF57: =AF56*(AF29/(AF56+AG56+AH56))*(AP29/((AF56*(AF29/(AF56+AG56+AH56)))+(AJ56*(AI29/(AI56+AJ56+AK56)))+(AN56*(AL29/(AL56+AM56+AN56))))) -> 94.44186047 | AG57: =AG56*(AF29/(AF56+AG56+AH56))*(AM29/((AG56*(AF29/(AF56+AG56+AH56)))+(AK56*(AI29/(AI56+AJ56+AK56)))+(AO56*(AO29/(AO56+AP56+AQ56))))) -> 927.1162791 | AH57: =AH56*(AF29/(AF56+AG56+AH56))*(AJ29/((AH56*(AF29/(AF56+AG56+AH56)))+(AL56*(AL29/(AL56+AM56+AN56)))+(AP56*(AO29/(AO56+AP56+AQ56))))) -> 94.44186047 | AI57: =AI56*(AI29/(AI56+AJ56+AK56))*(AG29/((AI56*(AI29/(AI56+AJ56+AK56)))+(AM56*(AL29/(AL56+AM56+AN56)))+(AQ56*(AO29/(AO56+AP56+AQ56))))) -> 94.44186047 | AJ57: =AJ56*(AI29/(AI56+AJ56+AK56))*(AP29/((AJ56*(AI29/(AI56+AJ56+AK56)))+(AF56*(AF29/(AF56+AG56+AH56)))+(AN56*(AL29/(AL56+AM56+AN56))))) -> 927.1162791 | AK57: =AK56*(AI29/(AI56+AJ56+AK56))*(AM29/((AK56*(AI29/(AI56+AJ56+AK56)))+(AG56*(AF29/(AF56+AG56+AH56)))+(AO56*(AO29/(AO56+AP56+AQ56))))) -> 94.44186047 | AL57: =AL56*(AL29/(AL56+AM56+AN56))*(AJ29/((AL56*(AL29/(AL56+AM56+AN56)))+(AP56*(AO29/(AO56+AP56+AQ56)))+(AH56*(AF29/(AF56+AG56+AH56))))) -> 94.44186047 | AM57: =AM56*(AL29/(AL56+AM56+AN56))*(AG29/((AM56*(AL29/(AL56+AM56+AN56)))+(AI56*(AI29/(AI56+AJ56+AK56)))+(AQ56*(AO29/(AO56+AP56+AQ56))))) -> 927.1162791 | AN57: =AN56*(AL29/(AL56+AM56+AN56))*(AP29/((AN56*(AL29/(AL56+AM56+AN56)))+(AJ56*(AI29/(AI56+AJ56+AK56)))+(AF56*(AF29/(AF56+AG56+AH56))))) -> 94.44186047 | AO57: =AO56*(AO29/(AO56+AP56+AQ56))*(AM29/((AO56*(AO29/(AO56+AP56+AQ56)))+(AK56*(AI29/(AI56+AJ56+AK56)))+(AG56*(AF29/(AF56+AG56+AH56))))) -> 94.44186047 | AP57: =AP56*(AO29/(AO56+AP56+AQ56))*(AJ29/((AP56*(AO29/(AO56+AP56+AQ56)))+(AL56*(AL29/(AL56+AM56+AN56)))+(AH56*(AF29/(AF56+AG56+AH56))))) -> 927.1162791 | AQ57: =AQ56*(AO29/(AO56+AP56+AQ56))*(AG29/((AQ56*(AO29/(AO56+AP56+AQ56)))+(AM56*(AL29/(AL56+AM56+AN56)))+(AI56*(AI29/(AI56+AJ56+AK56))))) -> 94.44186047
B58: =Input!$D$46 -> 2040 | C58: A.M. TURNS 4 | D58: =D57*($D$29/(D57+E57+F57))*($N$29/((D57*($D$29/(D57+E57+F57)))+(H57*($G$29/(G57+H57+I57)))+(L57*($J$29/(J57+K57+L57))))) -> 67.80729167 | E58: =E57*($D$29/(D57+E57+F57))*($K$29/((E57*($D$29/(D57+E57+F57)))+(I57*($G$29/(G57+H57+I57)))+(M57*($M$29/(M57+N57+O57))))) -> 695.3854167 | F58: =F57*($D$29/(D57+E57+F57))*($H$29/((F57*($D$29/(D57+E57+F57)))+(J57*($J$29/(J57+K57+L57)))+(N57*($M$29/(M57+N57+O57))))) -> 67.80729167 | G58: =G57*($G$29/(G57+H57+I57))*($E$29/((G57*($G$29/(G57+H57+I57)))+(K57*($J$29/(J57+K57+L57)))+(O57*($M$29/(M57+N57+O57))))) -> 67.80729167 | H58: =H57*($G$29/(G57+H57+I57))*($N$29/((H57*($G$29/(G57+H57+I57)))+(D57*($D$29/(D57+E57+F57)))+(L57*($J$29/(J57+K57+L57))))) -> 695.3854167 | I58: =I57*($G$29/(G57+H57+I57))*($K$29/((I57*($G$29/(G57+H57+I57)))+(E57*($D$29/(D57+E57+F57)))+(M57*($M$29/(M57+N57+O57))))) -> 67.80729167 | J58: =J57*($J$29/(J57+K57+L57))*($H$29/((J57*($J$29/(J57+K57+L57)))+(N57*($M$29/(M57+N57+O57)))+(F57*($D$29/(D57+E57+F57))))) -> 67.80729167 | K58: =K57*($J$29/(J57+K57+L57))*($E$29/((K57*($J$29/(J57+K57+L57)))+(G57*($G$29/(G57+H57+I57)))+(O57*($M$29/(M57+N57+O57))))) -> 695.3854167 | L58: =L57*($J$29/(J57+K57+L57))*($N$29/((L57*($J$29/(J57+K57+L57)))+(H57*($G$29/(G57+H57+I57)))+(D57*($D$29/(D57+E57+F57))))) -> 67.80729167 | M58: =M57*($M$29/(M57+N57+O57))*($K$29/((M57*($M$29/(M57+N57+O57)))+(I57*($G$29/(G57+H57+I57)))+(E57*($D$29/(D57+E57+F57))))) -> 67.80729167 | N58: =N57*($M$29/(M57+N57+O57))*($H$29/((N57*($M$29/(M57+N57+O57)))+(J57*($J$29/(J57+K57+L57)))+(F57*($D$29/(D57+E57+F57))))) -> 695.3854167 | O58: =O57*($M$29/(M57+N57+O57))*($E$29/((O57*($M$29/(M57+N57+O57)))+(K57*($J$29/(J57+K57+L57)))+(G57*($G$29/(G57+H57+I57))))) -> 67.80729167 | P58: =Input!$D$46 -> 2040 | Q58: MIDDAY TURNS 4 | R58: =R57*(R29/(R57+S57+T57))*(AB29/((R57*(R29/(R57+S57+T57)))+(V57*(U29/(U57+V57+W57)))+(Z57*(X29/(X57+Y57+Z57))))) -> 80.66666667 | S58: =S57*(R29/(R57+S57+T57))*(Y29/((S57*(R29/(R57+S57+T57)))+(W57*(U29/(U57+V57+W57)))+(AA57*(AA29/(AA57+AB57+AC57))))) -> 806.6666667 | T58: =T57*(R29/(R57+S57+T57))*(V29/((T57*(R29/(R57+S57+T57)))+(X57*(X29/(X57+Y57+Z57)))+(AB57*(AA29/(AA57+AB57+AC57))))) -> 80.66666667 | U58: =U57*(U29/(U57+V57+W57))*(S29/((U57*(U29/(U57+V57+W57)))+(Y57*(X29/(X57+Y57+Z57)))+(AC57*(AA29/(AA57+AB57+AC57))))) -> 80.66666667 | V58: =V57*(U29/(U57+V57+W57))*(AB29/((V57*(U29/(U57+V57+W57)))+(R57*(R29/(R57+S57+T57)))+(Z57*(X29/(X57+Y57+Z57))))) -> 806.6666667 | W58: =W57*(U29/(U57+V57+W57))*(Y29/((W57*(U29/(U57+V57+W57)))+(S57*(R29/(R57+S57+T57)))+(AA57*(AA29/(AA57+AB57+AC57))))) -> 80.66666667 | X58: =X57*(X29/(X57+Y57+Z57))*(V29/((X57*(X29/(X57+Y57+Z57)))+(AB57*(AA29/(AA57+AB57+AC57)))+(T57*(R29/(R57+S57+T57))))) -> 80.66666667 | Y58: =Y57*(X29/(X57+Y57+Z57))*(S29/((Y57*(X29/(X57+Y57+Z57)))+(U57*(U29/(U57+V57+W57)))+(AC57*(AA29/(AA57+AB57+AC57))))) -> 806.6666667 | Z58: =Z57*(X29/(X57+Y57+Z57))*(AB29/((Z57*(X29/(X57+Y57+Z57)))+(V57*(U29/(U57+V57+W57)))+(R57*(R29/(R57+S57+T57))))) -> 80.66666667 | AA58: =AA57*(AA29/(AA57+AB57+AC57))*(Y29/((AA57*(AA29/(AA57+AB57+AC57)))+(W57*(U29/(U57+V57+W57)))+(S57*(R29/(R57+S57+T57))))) -> 80.66666667 | AB58: =AB57*(AA29/(AA57+AB57+AC57))*(V29/((AB57*(AA29/(AA57+AB57+AC57)))+(X57*(X29/(X57+Y57+Z57)))+(T57*(R29/(R57+S57+T57))))) -> 806.6666667 | AC58: =AC57*(AA29/(AA57+AB57+AC57))*(S29/((AC57*(AA29/(AA57+AB57+AC57)))+(Y57*(X29/(X57+Y57+Z57)))+(U57*(U29/(U57+V57+W57))))) -> 80.66666667 | AD58: =Input!$D$46 -> 2040 | AE58: P.M. TURNS 4 | AF58: =AF57*(AF29/(AF57+AG57+AH57))*(AP29/((AF57*(AF29/(AF57+AG57+AH57)))+(AJ57*(AI29/(AI57+AJ57+AK57)))+(AN57*(AL29/(AL57+AM57+AN57))))) -> 94.44186047 | AG58: =AG57*(AF29/(AF57+AG57+AH57))*(AM29/((AG57*(AF29/(AF57+AG57+AH57)))+(AK57*(AI29/(AI57+AJ57+AK57)))+(AO57*(AO29/(AO57+AP57+AQ57))))) -> 927.1162791 | AH58: =AH57*(AF29/(AF57+AG57+AH57))*(AJ29/((AH57*(AF29/(AF57+AG57+AH57)))+(AL57*(AL29/(AL57+AM57+AN57)))+(AP57*(AO29/(AO57+AP57+AQ57))))) -> 94.44186047 | AI58: =AI57*(AI29/(AI57+AJ57+AK57))*(AG29/((AI57*(AI29/(AI57+AJ57+AK57)))+(AM57*(AL29/(AL57+AM57+AN57)))+(AQ57*(AO29/(AO57+AP57+AQ57))))) -> 94.44186047 | AJ58: =AJ57*(AI29/(AI57+AJ57+AK57))*(AP29/((AJ57*(AI29/(AI57+AJ57+AK57)))+(AF57*(AF29/(AF57+AG57+AH57)))+(AN57*(AL29/(AL57+AM57+AN57))))) -> 927.1162791 | AK58: =AK57*(AI29/(AI57+AJ57+AK57))*(AM29/((AK57*(AI29/(AI57+AJ57+AK57)))+(AG57*(AF29/(AF57+AG57+AH57)))+(AO57*(AO29/(AO57+AP57+AQ57))))) -> 94.44186047 | AL58: =AL57*(AL29/(AL57+AM57+AN57))*(AJ29/((AL57*(AL29/(AL57+AM57+AN57)))+(AP57*(AO29/(AO57+AP57+AQ57)))+(AH57*(AF29/(AF57+AG57+AH57))))) -> 94.44186047 | AM58: =AM57*(AL29/(AL57+AM57+AN57))*(AG29/((AM57*(AL29/(AL57+AM57+AN57)))+(AI57*(AI29/(AI57+AJ57+AK57)))+(AQ57*(AO29/(AO57+AP57+AQ57))))) -> 927.1162791 | AN58: =AN57*(AL29/(AL57+AM57+AN57))*(AP29/((AN57*(AL29/(AL57+AM57+AN57)))+(AJ57*(AI29/(AI57+AJ57+AK57)))+(AF57*(AF29/(AF57+AG57+AH57))))) -> 94.44186047 | AO58: =AO57*(AO29/(AO57+AP57+AQ57))*(AM29/((AO57*(AO29/(AO57+AP57+AQ57)))+(AK57*(AI29/(AI57+AJ57+AK57)))+(AG57*(AF29/(AF57+AG57+AH57))))) -> 94.44186047 | AP58: =AP57*(AO29/(AO57+AP57+AQ57))*(AJ29/((AP57*(AO29/(AO57+AP57+AQ57)))+(AL57*(AL29/(AL57+AM57+AN57)))+(AH57*(AF29/(AF57+AG57+AH57))))) -> 927.1162791 | AQ58: =AQ57*(AO29/(AO57+AP57+AQ57))*(AG29/((AQ57*(AO29/(AO57+AP57+AQ57)))+(AM57*(AL29/(AL57+AM57+AN57)))+(AI57*(AI29/(AI57+AJ57+AK57))))) -> 94.44186047
B59: =Input!$D$46 -> 2040 | C59: A.M. TURNS 5 | D59: =D58*($D$29/(D58+E58+F58))*($N$29/((D58*($D$29/(D58+E58+F58)))+(H58*($G$29/(G58+H58+I58)))+(L58*($J$29/(J58+K58+L58))))) -> 67.80729167 | E59: =E58*($D$29/(D58+E58+F58))*($K$29/((E58*($D$29/(D58+E58+F58)))+(I58*($G$29/(G58+H58+I58)))+(M58*($M$29/(M58+N58+O58))))) -> 695.3854167 | F59: =F58*($D$29/(D58+E58+F58))*($H$29/((F58*($D$29/(D58+E58+F58)))+(J58*($J$29/(J58+K58+L58)))+(N58*($M$29/(M58+N58+O58))))) -> 67.80729167 | G59: =G58*($G$29/(G58+H58+I58))*($E$29/((G58*($G$29/(G58+H58+I58)))+(K58*($J$29/(J58+K58+L58)))+(O58*($M$29/(M58+N58+O58))))) -> 67.80729167 | H59: =H58*($G$29/(G58+H58+I58))*($N$29/((H58*($G$29/(G58+H58+I58)))+(D58*($D$29/(D58+E58+F58)))+(L58*($J$29/(J58+K58+L58))))) -> 695.3854167 | I59: =I58*($G$29/(G58+H58+I58))*($K$29/((I58*($G$29/(G58+H58+I58)))+(E58*($D$29/(D58+E58+F58)))+(M58*($M$29/(M58+N58+O58))))) -> 67.80729167 | J59: =J58*($J$29/(J58+K58+L58))*($H$29/((J58*($J$29/(J58+K58+L58)))+(N58*($M$29/(M58+N58+O58)))+(F58*($D$29/(D58+E58+F58))))) -> 67.80729167 | K59: =K58*($J$29/(J58+K58+L58))*($E$29/((K58*($J$29/(J58+K58+L58)))+(G58*($G$29/(G58+H58+I58)))+(O58*($M$29/(M58+N58+O58))))) -> 695.3854167 | L59: =L58*($J$29/(J58+K58+L58))*($N$29/((L58*($J$29/(J58+K58+L58)))+(H58*($G$29/(G58+H58+I58)))+(D58*($D$29/(D58+E58+F58))))) -> 67.80729167 | M59: =M58*($M$29/(M58+N58+O58))*($K$29/((M58*($M$29/(M58+N58+O58)))+(I58*($G$29/(G58+H58+I58)))+(E58*($D$29/(D58+E58+F58))))) -> 67.80729167 | N59: =N58*($M$29/(M58+N58+O58))*($H$29/((N58*($M$29/(M58+N58+O58)))+(J58*($J$29/(J58+K58+L58)))+(F58*($D$29/(D58+E58+F58))))) -> 695.3854167 | O59: =O58*($M$29/(M58+N58+O58))*($E$29/((O58*($M$29/(M58+N58+O58)))+(K58*($J$29/(J58+K58+L58)))+(G58*($G$29/(G58+H58+I58))))) -> 67.80729167 | P59: =Input!$D$46 -> 2040 | Q59: MIDDAY TURNS 5 | R59: =R58*(R29/(R58+S58+T58))*(AB29/((R58*(R29/(R58+S58+T58)))+(V58*(U29/(U58+V58+W58)))+(Z58*(X29/(X58+Y58+Z58))))) -> 80.66666667 | S59: =S58*(R29/(R58+S58+T58))*(Y29/((S58*(R29/(R58+S58+T58)))+(W58*(U29/(U58+V58+W58)))+(AA58*(AA29/(AA58+AB58+AC58))))) -> 806.6666667 | T59: =T58*(R29/(R58+S58+T58))*(V29/((T58*(R29/(R58+S58+T58)))+(X58*(X29/(X58+Y58+Z58)))+(AB58*(AA29/(AA58+AB58+AC58))))) -> 80.66666667 | U59: =U58*(U29/(U58+V58+W58))*(S29/((U58*(U29/(U58+V58+W58)))+(Y58*(X29/(X58+Y58+Z58)))+(AC58*(AA29/(AA58+AB58+AC58))))) -> 80.66666667 | V59: =V58*(U29/(U58+V58+W58))*(AB29/((V58*(U29/(U58+V58+W58)))+(R58*(R29/(R58+S58+T58)))+(Z58*(X29/(X58+Y58+Z58))))) -> 806.6666667 | W59: =W58*(U29/(U58+V58+W58))*(Y29/((W58*(U29/(U58+V58+W58)))+(S58*(R29/(R58+S58+T58)))+(AA58*(AA29/(AA58+AB58+AC58))))) -> 80.66666667 | X59: =X58*(X29/(X58+Y58+Z58))*(V29/((X58*(X29/(X58+Y58+Z58)))+(AB58*(AA29/(AA58+AB58+AC58)))+(T58*(R29/(R58+S58+T58))))) -> 80.66666667 | Y59: =Y58*(X29/(X58+Y58+Z58))*(S29/((Y58*(X29/(X58+Y58+Z58)))+(U58*(U29/(U58+V58+W58)))+(AC58*(AA29/(AA58+AB58+AC58))))) -> 806.6666667 | Z59: =Z58*(X29/(X58+Y58+Z58))*(AB29/((Z58*(X29/(X58+Y58+Z58)))+(V58*(U29/(U58+V58+W58)))+(R58*(R29/(R58+S58+T58))))) -> 80.66666667 | AA59: =AA58*(AA29/(AA58+AB58+AC58))*(Y29/((AA58*(AA29/(AA58+AB58+AC58)))+(W58*(U29/(U58+V58+W58)))+(S58*(R29/(R58+S58+T58))))) -> 80.66666667 | AB59: =AB58*(AA29/(AA58+AB58+AC58))*(V29/((AB58*(AA29/(AA58+AB58+AC58)))+(X58*(X29/(X58+Y58+Z58)))+(T58*(R29/(R58+S58+T58))))) -> 806.6666667 | AC59: =AC58*(AA29/(AA58+AB58+AC58))*(S29/((AC58*(AA29/(AA58+AB58+AC58)))+(Y58*(X29/(X58+Y58+Z58)))+(U58*(U29/(U58+V58+W58))))) -> 80.66666667 | AD59: =Input!$D$46 -> 2040 | AE59: P.M. TURNS 5 | AF59: =AF58*(AF29/(AF58+AG58+AH58))*(AP29/((AF58*(AF29/(AF58+AG58+AH58)))+(AJ58*(AI29/(AI58+AJ58+AK58)))+(AN58*(AL29/(AL58+AM58+AN58))))) -> 94.44186047 | AG59: =AG58*(AF29/(AF58+AG58+AH58))*(AM29/((AG58*(AF29/(AF58+AG58+AH58)))+(AK58*(AI29/(AI58+AJ58+AK58)))+(AO58*(AO29/(AO58+AP58+AQ58))))) -> 927.1162791 | AH59: =AH58*(AF29/(AF58+AG58+AH58))*(AJ29/((AH58*(AF29/(AF58+AG58+AH58)))+(AL58*(AL29/(AL58+AM58+AN58)))+(AP58*(AO29/(AO58+AP58+AQ58))))) -> 94.44186047 | AI59: =AI58*(AI29/(AI58+AJ58+AK58))*(AG29/((AI58*(AI29/(AI58+AJ58+AK58)))+(AM58*(AL29/(AL58+AM58+AN58)))+(AQ58*(AO29/(AO58+AP58+AQ58))))) -> 94.44186047 | AJ59: =AJ58*(AI29/(AI58+AJ58+AK58))*(AP29/((AJ58*(AI29/(AI58+AJ58+AK58)))+(AF58*(AF29/(AF58+AG58+AH58)))+(AN58*(AL29/(AL58+AM58+AN58))))) -> 927.1162791 | AK59: =AK58*(AI29/(AI58+AJ58+AK58))*(AM29/((AK58*(AI29/(AI58+AJ58+AK58)))+(AG58*(AF29/(AF58+AG58+AH58)))+(AO58*(AO29/(AO58+AP58+AQ58))))) -> 94.44186047 | AL59: =AL58*(AL29/(AL58+AM58+AN58))*(AJ29/((AL58*(AL29/(AL58+AM58+AN58)))+(AP58*(AO29/(AO58+AP58+AQ58)))+(AH58*(AF29/(AF58+AG58+AH58))))) -> 94.44186047 | AM59: =AM58*(AL29/(AL58+AM58+AN58))*(AG29/((AM58*(AL29/(AL58+AM58+AN58)))+(AI58*(AI29/(AI58+AJ58+AK58)))+(AQ58*(AO29/(AO58+AP58+AQ58))))) -> 927.1162791 | AN59: =AN58*(AL29/(AL58+AM58+AN58))*(AP29/((AN58*(AL29/(AL58+AM58+AN58)))+(AJ58*(AI29/(AI58+AJ58+AK58)))+(AF58*(AF29/(AF58+AG58+AH58))))) -> 94.44186047 | AO59: =AO58*(AO29/(AO58+AP58+AQ58))*(AM29/((AO58*(AO29/(AO58+AP58+AQ58)))+(AK58*(AI29/(AI58+AJ58+AK58)))+(AG58*(AF29/(AF58+AG58+AH58))))) -> 94.44186047 | AP59: =AP58*(AO29/(AO58+AP58+AQ58))*(AJ29/((AP58*(AO29/(AO58+AP58+AQ58)))+(AL58*(AL29/(AL58+AM58+AN58)))+(AH58*(AF29/(AF58+AG58+AH58))))) -> 927.1162791 | AQ59: =AQ58*(AO29/(AO58+AP58+AQ58))*(AG29/((AQ58*(AO29/(AO58+AP58+AQ58)))+(AM58*(AL29/(AL58+AM58+AN58)))+(AI58*(AI29/(AI58+AJ58+AK58))))) -> 94.44186047
